Body Name,Body,Date,Department,Beneficiary,Summary of Purpose (SeRCOP),Amount SUM,Merchant Code,Transaction Number,Supplier ID
Sandwell Metropolitan Borough Council,http://www.sandwell.gov.uk/info/200202/performance_and_spending/1079/payments_over_500,14-Feb-2023,Adult Social Care,BLACK COUNTRY WOMEN'S AID.,Adult Social Care,30498.25,Supporting People,2223P11_CR00001,164584
Sandwell Metropolitan Borough Council,http://www.sandwell.gov.uk/info/200202/performance_and_spending/1079/payments_over_500,02-Feb-2023,Adults Social Care Capital,AXIS EUROPE PLC      ,Adults Social Care Capital,1344.68,Deferred Charges/Grant Payments,2223P11_CR00002,64946
Sandwell Metropolitan Borough Council,http://www.sandwell.gov.uk/info/200202/performance_and_spending/1079/payments_over_500,02-Feb-2023,Adults Social Care Capital,AXIS EUROPE PLC      ,Adults Social Care Capital,3876.00,Deferred Charges/Grant Payments,2223P11_CR00003,64946
Sandwell Metropolitan Borough Council,http://www.sandwell.gov.uk/info/200202/performance_and_spending/1079/payments_over_500,01-Feb-2023,Adults Social Care Capital,AXIS EUROPE PLC      ,Adults Social Care Capital,7920.83,Deferred Charges/Grant Payments,2223P11_CR00004,64946
Sandwell Metropolitan Borough Council,http://www.sandwell.gov.uk/info/200202/performance_and_spending/1079/payments_over_500,01-Feb-2023,Adults Social Care Capital,AXIS EUROPE PLC      ,Adults Social Care Capital,8985.56,Deferred Charges/Grant Payments,2223P11_CR00005,64946
Sandwell Metropolitan Borough Council,http://www.sandwell.gov.uk/info/200202/performance_and_spending/1079/payments_over_500,01-Feb-2023,Adults Social Care Capital,AXIS EUROPE PLC      ,Adults Social Care Capital,14980.94,Deferred Charges/Grant Payments,2223P11_CR00006,64946
Sandwell Metropolitan Borough Council,http://www.sandwell.gov.uk/info/200202/performance_and_spending/1079/payments_over_500,03-Feb-2023,Adults Social Care Capital,DOLPHIN LIFTS MIDLANDS LTD,Adults Social Care Capital,1594.02,Deferred Charges/Grant Payments,2223P11_CR00007,123852
Sandwell Metropolitan Borough Council,http://www.sandwell.gov.uk/info/200202/performance_and_spending/1079/payments_over_500,01-Feb-2023,Adults Social Care Capital,DOLPHIN LIFTS MIDLANDS LTD,Adults Social Care Capital,1730.34,Deferred Charges/Grant Payments,2223P11_CR00008,123852
Sandwell Metropolitan Borough Council,http://www.sandwell.gov.uk/info/200202/performance_and_spending/1079/payments_over_500,03-Feb-2023,Adults Social Care Capital,DOLPHIN LIFTS MIDLANDS LTD,Adults Social Care Capital,3384.16,Deferred Charges/Grant Payments,2223P11_CR00009,123852
Sandwell Metropolitan Borough Council,http://www.sandwell.gov.uk/info/200202/performance_and_spending/1079/payments_over_500,01-Feb-2023,Adults Social Care Capital,DOLPHIN LIFTS MIDLANDS LTD,Adults Social Care Capital,3394.66,Deferred Charges/Grant Payments,2223P11_CR00010,123852
Sandwell Metropolitan Borough Council,http://www.sandwell.gov.uk/info/200202/performance_and_spending/1079/payments_over_500,03-Feb-2023,Adults Social Care Capital,DOLPHIN LIFTS MIDLANDS LTD,Adults Social Care Capital,3771.21,Deferred Charges/Grant Payments,2223P11_CR00011,123852
Sandwell Metropolitan Borough Council,http://www.sandwell.gov.uk/info/200202/performance_and_spending/1079/payments_over_500,15-Feb-2023,Adults Social Care Capital,DOLPHIN LIFTS MIDLANDS LTD,Adults Social Care Capital,4755.81,Deferred Charges/Grant Payments,2223P11_CR00012,123852
Sandwell Metropolitan Borough Council,http://www.sandwell.gov.uk/info/200202/performance_and_spending/1079/payments_over_500,15-Feb-2023,Adults Social Care Capital,DOLPHIN LIFTS MIDLANDS LTD,Adults Social Care Capital,5187.38,Deferred Charges/Grant Payments,2223P11_CR00013,123852
Sandwell Metropolitan Borough Council,http://www.sandwell.gov.uk/info/200202/performance_and_spending/1079/payments_over_500,03-Feb-2023,Adults Social Care Capital,DOLPHIN LIFTS MIDLANDS LTD,Adults Social Care Capital,6381.60,Deferred Charges/Grant Payments,2223P11_CR00014,123852
Sandwell Metropolitan Borough Council,http://www.sandwell.gov.uk/info/200202/performance_and_spending/1079/payments_over_500,06-Feb-2023,Adults Social Care Capital,J A BEDWARD & SON                               ,Adults Social Care Capital,510.90,Deferred Charges/Grant Payments,2223P11_CR00015,77001727
Sandwell Metropolitan Borough Council,http://www.sandwell.gov.uk/info/200202/performance_and_spending/1079/payments_over_500,03-Feb-2023,Adults Social Care Capital,PR PROPERTY MAINTENANCE,Adults Social Care Capital,7490.72,Deferred Charges/Grant Payments,2223P11_CR00016,33836
Sandwell Metropolitan Borough Council,http://www.sandwell.gov.uk/info/200202/performance_and_spending/1079/payments_over_500,01-Feb-2023,Adults Social Care Capital,PR PROPERTY MAINTENANCE,Adults Social Care Capital,24909.62,Deferred Charges/Grant Payments,2223P11_CR00017,33836
Sandwell Metropolitan Borough Council,http://www.sandwell.gov.uk/info/200202/performance_and_spending/1079/payments_over_500,01-Feb-2023,Adults Social Care Capital,RENAISSANCE CREATIVE DESIGN & PRINT LTD,Adults Social Care Capital,6895.00,"Printing, Stationery & General Office Expenses",2223P11_CR00018,97376
Sandwell Metropolitan Borough Council,http://www.sandwell.gov.uk/info/200202/performance_and_spending/1079/payments_over_500,07-Feb-2023,Adults Social Care Capital,RIDGE & PARTNERS LLP,Adults Social Care Capital,576.75,"CIP - New Construction,Conversion, Enhancement & Reno",2223P11_CR00019,134994
Sandwell Metropolitan Borough Council,http://www.sandwell.gov.uk/info/200202/performance_and_spending/1079/payments_over_500,14-Feb-2023,Adults Social Care Capital,RIDGE & PARTNERS LLP,Adults Social Care Capital,2923.25,"CIP - New Construction,Conversion, Enhancement & Reno",2223P11_CR00020,134994
Sandwell Metropolitan Borough Council,http://www.sandwell.gov.uk/info/200202/performance_and_spending/1079/payments_over_500,23-Feb-2023,Adults Social Care Capital,VINCI CONSTRUCTION LTD,Adults Social Care Capital,1993.36,Deferred Charges/Grant Payments,2223P11_CR00021,36361
Sandwell Metropolitan Borough Council,http://www.sandwell.gov.uk/info/200202/performance_and_spending/1079/payments_over_500,06-Feb-2023,Adults Social Care Capital,VINCI CONSTRUCTION LTD,Adults Social Care Capital,2517.23,Deferred Charges/Grant Payments,2223P11_CR00022,36361
Sandwell Metropolitan Borough Council,http://www.sandwell.gov.uk/info/200202/performance_and_spending/1079/payments_over_500,01-Feb-2023,Adults Social Care Capital,VINCI CONSTRUCTION LTD,Adults Social Care Capital,2806.20,Deferred Charges/Grant Payments,2223P11_CR00023,36361
Sandwell Metropolitan Borough Council,http://www.sandwell.gov.uk/info/200202/performance_and_spending/1079/payments_over_500,23-Feb-2023,Adults Social Care Capital,VINCI CONSTRUCTION LTD,Adults Social Care Capital,2930.22,Deferred Charges/Grant Payments,2223P11_CR00024,36361
Sandwell Metropolitan Borough Council,http://www.sandwell.gov.uk/info/200202/performance_and_spending/1079/payments_over_500,23-Feb-2023,Adults Social Care Capital,VINCI CONSTRUCTION LTD,Adults Social Care Capital,3179.50,Deferred Charges/Grant Payments,2223P11_CR00025,36361
Sandwell Metropolitan Borough Council,http://www.sandwell.gov.uk/info/200202/performance_and_spending/1079/payments_over_500,06-Feb-2023,Adults Social Care Capital,VINCI CONSTRUCTION LTD,Adults Social Care Capital,3916.03,Deferred Charges/Grant Payments,2223P11_CR00026,36361
Sandwell Metropolitan Borough Council,http://www.sandwell.gov.uk/info/200202/performance_and_spending/1079/payments_over_500,01-Feb-2023,Adults Social Care Capital,DESIGN SYNTAX LIMITED,Adults Social Care Capital,6000.00,Deferred Charges/Grant Payments,2223P11_CR00027,106226
Sandwell Metropolitan Borough Council,http://www.sandwell.gov.uk/info/200202/performance_and_spending/1079/payments_over_500,01-Feb-2023,Adults Social Care Capital,DESIGN SYNTAX LIMITED,Adults Social Care Capital,7300.00,Deferred Charges/Grant Payments,2223P11_CR00028,106226
Sandwell Metropolitan Borough Council,http://www.sandwell.gov.uk/info/200202/performance_and_spending/1079/payments_over_500,01-Feb-2023,Adults Social Care Capital,DESIGN SYNTAX LIMITED,Adults Social Care Capital,18175.00,Deferred Charges/Grant Payments,2223P11_CR00029,106226
Sandwell Metropolitan Borough Council,http://www.sandwell.gov.uk/info/200202/performance_and_spending/1079/payments_over_500,09-Feb-2023,Adults Social Care Capital,DESIGN SYNTAX LIMITED,Adults Social Care Capital,21000.00,Deferred Charges/Grant Payments,2223P11_CR00030,106226
Sandwell Metropolitan Borough Council,http://www.sandwell.gov.uk/info/200202/performance_and_spending/1079/payments_over_500,01-Feb-2023,Adults Social Care Capital,HOME DESIGN,Adults Social Care Capital,9478.00,Deferred Charges/Grant Payments,2223P11_CR00031,141847
Sandwell Metropolitan Borough Council,http://www.sandwell.gov.uk/info/200202/performance_and_spending/1079/payments_over_500,01-Feb-2023,Adults Social Care Capital,HOME DESIGN,Adults Social Care Capital,20000.00,Deferred Charges/Grant Payments,2223P11_CR00032,141847
Sandwell Metropolitan Borough Council,http://www.sandwell.gov.uk/info/200202/performance_and_spending/1079/payments_over_500,01-Feb-2023,Adults Social Care Capital,SAFESPACES (CORNHOLME) LTD,Adults Social Care Capital,7912.82,Deferred Charges/Grant Payments,2223P11_CR00033,65847
Sandwell Metropolitan Borough Council,http://www.sandwell.gov.uk/info/200202/performance_and_spending/1079/payments_over_500,01-Feb-2023,Adults Social Care Capital,SPECTOR DESIGN LTD,Adults Social Care Capital,23075.00,Deferred Charges/Grant Payments,2223P11_CR00034,134898
Sandwell Metropolitan Borough Council,http://www.sandwell.gov.uk/info/200202/performance_and_spending/1079/payments_over_500,01-Feb-2023,Adults Social Care Capital,TDF DESIGN LIMITED,Adults Social Care Capital,574.18,Deferred Charges/Grant Payments,2223P11_CR00035,10320
Sandwell Metropolitan Borough Council,http://www.sandwell.gov.uk/info/200202/performance_and_spending/1079/payments_over_500,01-Feb-2023,Adults Social Care Capital,TDF DESIGN LIMITED,Adults Social Care Capital,10268.99,Deferred Charges/Grant Payments,2223P11_CR00036,10320
Sandwell Metropolitan Borough Council,http://www.sandwell.gov.uk/info/200202/performance_and_spending/1079/payments_over_500,13-Feb-2023,Adults Social Care Capital,TDF DESIGN LIMITED,Adults Social Care Capital,14000.00,Deferred Charges/Grant Payments,2223P11_CR00037,10320
Sandwell Metropolitan Borough Council,http://www.sandwell.gov.uk/info/200202/performance_and_spending/1079/payments_over_500,14-Feb-2023,Adults Social Care Capital,TDF DESIGN LIMITED,Adults Social Care Capital,15000.00,Deferred Charges/Grant Payments,2223P11_CR00038,10320
Sandwell Metropolitan Borough Council,http://www.sandwell.gov.uk/info/200202/performance_and_spending/1079/payments_over_500,01-Feb-2023,Adults Social Care Capital,TDF DESIGN LIMITED,Adults Social Care Capital,23974.96,Deferred Charges/Grant Payments,2223P11_CR00039,10320
Sandwell Metropolitan Borough Council,http://www.sandwell.gov.uk/info/200202/performance_and_spending/1079/payments_over_500,01-Feb-2023,Adults Social Care Capital,TDF DESIGN LIMITED,Adults Social Care Capital,24786.20,Deferred Charges/Grant Payments,2223P11_CR00040,10320
Sandwell Metropolitan Borough Council,http://www.sandwell.gov.uk/info/200202/performance_and_spending/1079/payments_over_500,01-Feb-2023,Adults Social Care Capital,REDACTED PERSONAL DATA,Adults Social Care Capital,8870.00,Deferred Charges/Grant Payments,2223P11_CR00041,REDACTED PERSONAL DATA
Sandwell Metropolitan Borough Council,http://www.sandwell.gov.uk/info/200202/performance_and_spending/1079/payments_over_500,01-Feb-2023,Adults Social Care Capital,B S VIRDEE,Adults Social Care Capital,9025.00,Deferred Charges/Grant Payments,2223P11_CR00042,16907
Sandwell Metropolitan Borough Council,http://www.sandwell.gov.uk/info/200202/performance_and_spending/1079/payments_over_500,01-Feb-2023,Adults Social Care Capital,PARVINDER SINGH.,Adults Social Care Capital,513.05,Deferred Charges/Grant Payments,2223P11_CR00043,164062
Sandwell Metropolitan Borough Council,http://www.sandwell.gov.uk/info/200202/performance_and_spending/1079/payments_over_500,08-Feb-2023,Childrens Services,SANDWELL CHILDREN'S TRUST,Childrens Services,-5421070.54,Other Establishments,2223P11_CR00044,133302
Sandwell Metropolitan Borough Council,http://www.sandwell.gov.uk/info/200202/performance_and_spending/1079/payments_over_500,01-Feb-2023,Childrens Services,SSE ENERGY SUPPLY LIMITED,Childrens Services,-7217.12,Electricity,2223P11_CR00045,116134
Sandwell Metropolitan Borough Council,http://www.sandwell.gov.uk/info/200202/performance_and_spending/1079/payments_over_500,01-Feb-2023,Childrens Services,THE CONSORTIUM FOR PURCHASING AND DISTRIBUTION LIMITED,Childrens Services,-507.97,Materials & Consumables,2223P11_CR00046,1461
Sandwell Metropolitan Borough Council,http://www.sandwell.gov.uk/info/200202/performance_and_spending/1079/payments_over_500,01-Feb-2023,Childrens Services,ACTION FOR CHILDREN SERVICES LIMITED,Childrens Services,29132.48,Externally Purchased Professional Services ,2223P11_CR00047,111189
Sandwell Metropolitan Borough Council,http://www.sandwell.gov.uk/info/200202/performance_and_spending/1079/payments_over_500,14-Feb-2023,Childrens Services,AFJ LIMITED,Childrens Services,57722.68,Public Transport,2223P11_CR00048,164912
Sandwell Metropolitan Borough Council,http://www.sandwell.gov.uk/info/200202/performance_and_spending/1079/payments_over_500,10-Feb-2023,Childrens Services,ALL SAINTS CE PRIMARY SCHOOL     ,Childrens Services,1044.28,Externally Purchased Professional Services ,2223P11_CR00049,08457454
Sandwell Metropolitan Borough Council,http://www.sandwell.gov.uk/info/200202/performance_and_spending/1079/payments_over_500,10-Feb-2023,Childrens Services,ALL SAINTS CE PRIMARY SCHOOL   ,Childrens Services,1044.28,Externally Purchased Professional Services ,2223P11_CR00050,08457454
Sandwell Metropolitan Borough Council,http://www.sandwell.gov.uk/info/200202/performance_and_spending/1079/payments_over_500,08-Feb-2023,Childrens Services,AMP BIOMASS FUEL LTD T/A AMP CLEAN ENERGY,Childrens Services,3775.12,Ingestre Hall Arts Centre.Energy Costs,2223P11_CR00051,128761
Sandwell Metropolitan Borough Council,http://www.sandwell.gov.uk/info/200202/performance_and_spending/1079/payments_over_500,01-Feb-2023,Childrens Services,ASDA STORES LTD           ,Childrens Services,840.00,Protective Clothing & Uniforms,2223P11_CR00052,01610594
Sandwell Metropolitan Borough Council,http://www.sandwell.gov.uk/info/200202/performance_and_spending/1079/payments_over_500,16-Feb-2023,Childrens Services,ASDA STORES LTD           ,Childrens Services,855.00,Protective Clothing & Uniforms,2223P11_CR00053,01610594
Sandwell Metropolitan Borough Council,http://www.sandwell.gov.uk/info/200202/performance_and_spending/1079/payments_over_500,01-Feb-2023,Childrens Services,AVANTI GAS LIMITED,Childrens Services,2715.25,Gas,2223P11_CR00054,60069
Sandwell Metropolitan Borough Council,http://www.sandwell.gov.uk/info/200202/performance_and_spending/1079/payments_over_500,16-Feb-2023,Childrens Services,BLAKEMORE FOOD SERVICE LTD,Childrens Services,549.63,Catering Provisions,2223P11_CR00055,2518
Sandwell Metropolitan Borough Council,http://www.sandwell.gov.uk/info/200202/performance_and_spending/1079/payments_over_500,01-Feb-2023,Childrens Services,BLAKEMORE FOOD SERVICE LTD,Childrens Services,621.57,Catering Provisions,2223P11_CR00056,2518
Sandwell Metropolitan Borough Council,http://www.sandwell.gov.uk/info/200202/performance_and_spending/1079/payments_over_500,03-Feb-2023,Childrens Services,BRISTNALL HALL ACADEMY,Childrens Services,600.00,Equipment & Furniture ,2223P11_CR00057,107471
Sandwell Metropolitan Borough Council,http://www.sandwell.gov.uk/info/200202/performance_and_spending/1079/payments_over_500,15-Feb-2023,Childrens Services,CANAL & RIVER TRUST,Childrens Services,864.00,Licences,2223P11_CR00058,01631306
Sandwell Metropolitan Borough Council,http://www.sandwell.gov.uk/info/200202/performance_and_spending/1079/payments_over_500,24-Feb-2023,Childrens Services,CASTLES UK (MATTRESSES) LIMITED,Childrens Services,2260.00,Equipment & Furniture ,2223P11_CR00059,113161
Sandwell Metropolitan Borough Council,http://www.sandwell.gov.uk/info/200202/performance_and_spending/1079/payments_over_500,24-Feb-2023,Childrens Services,CASTLES UK (MATTRESSES) LIMITED,Childrens Services,2545.00,Equipment & Furniture ,2223P11_CR00060,113161
Sandwell Metropolitan Borough Council,http://www.sandwell.gov.uk/info/200202/performance_and_spending/1079/payments_over_500,01-Feb-2023,Childrens Services,CC UNIFORMS LIMITED,Childrens Services,510.00,Protective Clothing & Uniforms,2223P11_CR00061,141379
Sandwell Metropolitan Borough Council,http://www.sandwell.gov.uk/info/200202/performance_and_spending/1079/payments_over_500,01-Feb-2023,Childrens Services,CC UNIFORMS LIMITED,Childrens Services,705.00,Protective Clothing & Uniforms,2223P11_CR00062,141379
Sandwell Metropolitan Borough Council,http://www.sandwell.gov.uk/info/200202/performance_and_spending/1079/payments_over_500,06-Feb-2023,Childrens Services,CERTAS ENERGY LIMITED,Childrens Services,769.60,Oil,2223P11_CR00063,80421
Sandwell Metropolitan Borough Council,http://www.sandwell.gov.uk/info/200202/performance_and_spending/1079/payments_over_500,06-Feb-2023,Childrens Services,CERTAS ENERGY LIMITED,Childrens Services,885.04,Oil,2223P11_CR00064,80421
Sandwell Metropolitan Borough Council,http://www.sandwell.gov.uk/info/200202/performance_and_spending/1079/payments_over_500,15-Feb-2023,Childrens Services,CHRIST CHURCH C OF E PRIMARY SCHOOL,Childrens Services,1500.00,Grants,2223P11_CR00065,1705
Sandwell Metropolitan Borough Council,http://www.sandwell.gov.uk/info/200202/performance_and_spending/1079/payments_over_500,16-Feb-2023,Childrens Services,CHRIST CHURCH C OF E PRIMARY SCHOOL,Childrens Services,1500.00,Grants,2223P11_CR00066,1705
Sandwell Metropolitan Borough Council,http://www.sandwell.gov.uk/info/200202/performance_and_spending/1079/payments_over_500,16-Feb-2023,Childrens Services,CHRIST CHURCH C OF E PRIMARY SCHOOL,Childrens Services,1500.00,Grants,2223P11_CR00067,1705
Sandwell Metropolitan Borough Council,http://www.sandwell.gov.uk/info/200202/performance_and_spending/1079/payments_over_500,16-Feb-2023,Childrens Services,CHRIST CHURCH C OF E PRIMARY SCHOOL,Childrens Services,1500.00,Grants,2223P11_CR00068,1705
Sandwell Metropolitan Borough Council,http://www.sandwell.gov.uk/info/200202/performance_and_spending/1079/payments_over_500,13-Feb-2023,Childrens Services,CLB MUSIC SERVICES LTD,Childrens Services,720.00,Externally Purchased Professional Services ,2223P11_CR00069,163924
Sandwell Metropolitan Borough Council,http://www.sandwell.gov.uk/info/200202/performance_and_spending/1079/payments_over_500,13-Feb-2023,Childrens Services,CLB MUSIC SERVICES LTD,Childrens Services,720.00,Externally Purchased Professional Services ,2223P11_CR00070,163924
Sandwell Metropolitan Borough Council,http://www.sandwell.gov.uk/info/200202/performance_and_spending/1079/payments_over_500,13-Feb-2023,Childrens Services,CLB MUSIC SERVICES LTD,Childrens Services,720.00,Externally Purchased Professional Services ,2223P11_CR00071,163924
Sandwell Metropolitan Borough Council,http://www.sandwell.gov.uk/info/200202/performance_and_spending/1079/payments_over_500,01-Feb-2023,Childrens Services,CORONA ENERGY RETAIL 2 LIMITED,Childrens Services,985.69,Gas,2223P11_CR00072,118395
Sandwell Metropolitan Borough Council,http://www.sandwell.gov.uk/info/200202/performance_and_spending/1079/payments_over_500,16-Feb-2023,Childrens Services,CORONA ENERGY RETAIL 2 LIMITED,Childrens Services,1725.51,Gas,2223P11_CR00073,118395
Sandwell Metropolitan Borough Council,http://www.sandwell.gov.uk/info/200202/performance_and_spending/1079/payments_over_500,01-Feb-2023,Childrens Services,CORONA ENERGY RETAIL 2 LIMITED,Childrens Services,1797.05,Gas,2223P11_CR00074,118395
Sandwell Metropolitan Borough Council,http://www.sandwell.gov.uk/info/200202/performance_and_spending/1079/payments_over_500,23-Feb-2023,Childrens Services,COUNTY CARS (2003) LIMITED,Childrens Services,22605.25,Public Transport,2223P11_CR00075,06002387
Sandwell Metropolitan Borough Council,http://www.sandwell.gov.uk/info/200202/performance_and_spending/1079/payments_over_500,23-Feb-2023,Childrens Services,COUNTY CARS (2003) LIMITED,Childrens Services,34914.96,Public Transport,2223P11_CR00076,06002387
Sandwell Metropolitan Borough Council,http://www.sandwell.gov.uk/info/200202/performance_and_spending/1079/payments_over_500,01-Feb-2023,Childrens Services,COUNTY CARS (2003) LIMITED,Childrens Services,37549.72,Public Transport,2223P11_CR00077,06002387
Sandwell Metropolitan Borough Council,http://www.sandwell.gov.uk/info/200202/performance_and_spending/1079/payments_over_500,23-Feb-2023,Childrens Services,COUNTY CARS (2003) LIMITED,Childrens Services,37894.15,Public Transport,2223P11_CR00078,06002387
Sandwell Metropolitan Borough Council,http://www.sandwell.gov.uk/info/200202/performance_and_spending/1079/payments_over_500,23-Feb-2023,Childrens Services,COUNTY CARS (2003) LIMITED,Childrens Services,87531.77,Public Transport,2223P11_CR00079,06002387
Sandwell Metropolitan Borough Council,http://www.sandwell.gov.uk/info/200202/performance_and_spending/1079/payments_over_500,23-Feb-2023,Childrens Services,COUNTY CARS (2003) LIMITED,Childrens Services,100406.04,Public Transport,2223P11_CR00080,06002387
Sandwell Metropolitan Borough Council,http://www.sandwell.gov.uk/info/200202/performance_and_spending/1079/payments_over_500,23-Feb-2023,Childrens Services,COUNTY CARS (2003) LIMITED,Childrens Services,114968.20,Public Transport,2223P11_CR00081,06002387
Sandwell Metropolitan Borough Council,http://www.sandwell.gov.uk/info/200202/performance_and_spending/1079/payments_over_500,01-Feb-2023,Childrens Services,DJB PEST CONTROL,Childrens Services,635.00,Pest Control,2223P11_CR00082,119231
Sandwell Metropolitan Borough Council,http://www.sandwell.gov.uk/info/200202/performance_and_spending/1079/payments_over_500,01-Feb-2023,Childrens Services,DROACH TRAVEL LTD,Childrens Services,59832.73,Public Transport,2223P11_CR00083,06002707
Sandwell Metropolitan Borough Council,http://www.sandwell.gov.uk/info/200202/performance_and_spending/1079/payments_over_500,01-Feb-2023,Childrens Services,DROACH TRAVEL LTD,Childrens Services,59832.73,Public Transport,2223P11_CR00084,06002707
Sandwell Metropolitan Borough Council,http://www.sandwell.gov.uk/info/200202/performance_and_spending/1079/payments_over_500,14-Feb-2023,Childrens Services,EON NEXT ENERGY LTD,Childrens Services,747.51,Electricity,2223P11_CR00085,149566
Sandwell Metropolitan Borough Council,http://www.sandwell.gov.uk/info/200202/performance_and_spending/1079/payments_over_500,01-Feb-2023,Childrens Services,EURO SHAF TRAINING SERVICES LIMITED,Childrens Services,875.00,Externally Purchased Professional Services ,2223P11_CR00086,76260
Sandwell Metropolitan Borough Council,http://www.sandwell.gov.uk/info/200202/performance_and_spending/1079/payments_over_500,03-Feb-2023,Childrens Services,EURO SHAF TRAINING SERVICES LIMITED,Childrens Services,901.00,Externally Purchased Professional Services ,2223P11_CR00087,76260
Sandwell Metropolitan Borough Council,http://www.sandwell.gov.uk/info/200202/performance_and_spending/1079/payments_over_500,03-Feb-2023,Childrens Services,EURO SHAF TRAINING SERVICES LIMITED,Childrens Services,901.00,Externally Purchased Professional Services ,2223P11_CR00088,76260
Sandwell Metropolitan Borough Council,http://www.sandwell.gov.uk/info/200202/performance_and_spending/1079/payments_over_500,08-Feb-2023,Childrens Services,FIRST RESPONSE (FIRST AID) LTD,Childrens Services,875.00,Externally Purchased Professional Services ,2223P11_CR00089,57372
Sandwell Metropolitan Borough Council,http://www.sandwell.gov.uk/info/200202/performance_and_spending/1079/payments_over_500,05-Feb-2023,Childrens Services,FIRST RESPONSE (FIRST AID) LTD,Childrens Services,875.00,Externally Purchased Professional Services ,2223P11_CR00090,57372
Sandwell Metropolitan Borough Council,http://www.sandwell.gov.uk/info/200202/performance_and_spending/1079/payments_over_500,07-Feb-2023,Childrens Services,GEORGE BETTS PRIMARY ACADEMY,Childrens Services,1795.00,Externally Purchased Professional Services ,2223P11_CR00091,113420
Sandwell Metropolitan Borough Council,http://www.sandwell.gov.uk/info/200202/performance_and_spending/1079/payments_over_500,01-Feb-2023,Childrens Services,GREEN DESTINATIONS LTD,Childrens Services,3639.41,Public Transport,2223P11_CR00092,109275
Sandwell Metropolitan Borough Council,http://www.sandwell.gov.uk/info/200202/performance_and_spending/1079/payments_over_500,01-Feb-2023,Childrens Services,GREEN DESTINATIONS LTD,Childrens Services,3998.80,Public Transport,2223P11_CR00093,109275
Sandwell Metropolitan Borough Council,http://www.sandwell.gov.uk/info/200202/performance_and_spending/1079/payments_over_500,01-Feb-2023,Childrens Services,GREEN DESTINATIONS LTD,Childrens Services,7529.73,Public Transport,2223P11_CR00094,109275
Sandwell Metropolitan Borough Council,http://www.sandwell.gov.uk/info/200202/performance_and_spending/1079/payments_over_500,01-Feb-2023,Childrens Services,GREEN DESTINATIONS LTD,Childrens Services,64008.03,Public Transport,2223P11_CR00095,109275
Sandwell Metropolitan Borough Council,http://www.sandwell.gov.uk/info/200202/performance_and_spending/1079/payments_over_500,01-Feb-2023,Childrens Services,GREEN DESTINATIONS LTD,Childrens Services,91847.37,Public Transport,2223P11_CR00096,109275
Sandwell Metropolitan Borough Council,http://www.sandwell.gov.uk/info/200202/performance_and_spending/1079/payments_over_500,15-Feb-2023,Childrens Services,GWYNEDD DISPOSABLES,Childrens Services,525.70,Materials & Consumables,2223P11_CR00097,01015484
Sandwell Metropolitan Borough Council,http://www.sandwell.gov.uk/info/200202/performance_and_spending/1079/payments_over_500,01-Feb-2023,Childrens Services,HD UK GROUP LTD,Childrens Services,740.00,Weekends functions/self catering,2223P11_CR00098,165318
Sandwell Metropolitan Borough Council,http://www.sandwell.gov.uk/info/200202/performance_and_spending/1079/payments_over_500,01-Feb-2023,Childrens Services,HEART & SOUL COMMUNITY CIC LTD,Childrens Services,1074.28,Externally Purchased Professional Services ,2223P11_CR00099,133378
Sandwell Metropolitan Borough Council,http://www.sandwell.gov.uk/info/200202/performance_and_spending/1079/payments_over_500,01-Feb-2023,Childrens Services,HEART & SOUL COMMUNITY CIC LTD,Childrens Services,1074.28,Externally Purchased Professional Services ,2223P11_CR00100,133378
Sandwell Metropolitan Borough Council,http://www.sandwell.gov.uk/info/200202/performance_and_spending/1079/payments_over_500,01-Feb-2023,Childrens Services,HEART & SOUL COMMUNITY CIC LTD,Childrens Services,1074.28,Externally Purchased Professional Services ,2223P11_CR00101,133378
Sandwell Metropolitan Borough Council,http://www.sandwell.gov.uk/info/200202/performance_and_spending/1079/payments_over_500,01-Feb-2023,Childrens Services,HEART & SOUL COMMUNITY CIC LTD,Childrens Services,1074.28,Externally Purchased Professional Services ,2223P11_CR00102,133378
Sandwell Metropolitan Borough Council,http://www.sandwell.gov.uk/info/200202/performance_and_spending/1079/payments_over_500,04-Feb-2023,Childrens Services,HEART & SOUL COMMUNITY CIC LTD,Childrens Services,1074.28,Externally Purchased Professional Services ,2223P11_CR00103,133378
Sandwell Metropolitan Borough Council,http://www.sandwell.gov.uk/info/200202/performance_and_spending/1079/payments_over_500,01-Feb-2023,Childrens Services,HEART & SOUL COMMUNITY CIC LTD,Childrens Services,1074.28,Externally Purchased Professional Services ,2223P11_CR00104,133378
Sandwell Metropolitan Borough Council,http://www.sandwell.gov.uk/info/200202/performance_and_spending/1079/payments_over_500,01-Feb-2023,Childrens Services,HEART & SOUL COMMUNITY CIC LTD,Childrens Services,1074.28,Externally Purchased Professional Services ,2223P11_CR00105,133378
Sandwell Metropolitan Borough Council,http://www.sandwell.gov.uk/info/200202/performance_and_spending/1079/payments_over_500,04-Feb-2023,Childrens Services,HEART & SOUL COMMUNITY CIC LTD,Childrens Services,1074.28,Externally Purchased Professional Services ,2223P11_CR00106,133378
Sandwell Metropolitan Borough Council,http://www.sandwell.gov.uk/info/200202/performance_and_spending/1079/payments_over_500,01-Feb-2023,Childrens Services,HEART & SOUL COMMUNITY CIC LTD,Childrens Services,1074.28,Externally Purchased Professional Services ,2223P11_CR00107,133378
Sandwell Metropolitan Borough Council,http://www.sandwell.gov.uk/info/200202/performance_and_spending/1079/payments_over_500,01-Feb-2023,Childrens Services,HEART & SOUL COMMUNITY CIC LTD,Childrens Services,1074.28,Externally Purchased Professional Services ,2223P11_CR00108,133378
Sandwell Metropolitan Borough Council,http://www.sandwell.gov.uk/info/200202/performance_and_spending/1079/payments_over_500,01-Feb-2023,Childrens Services,HEART & SOUL COMMUNITY CIC LTD,Childrens Services,1074.28,Externally Purchased Professional Services ,2223P11_CR00109,133378
Sandwell Metropolitan Borough Council,http://www.sandwell.gov.uk/info/200202/performance_and_spending/1079/payments_over_500,01-Feb-2023,Childrens Services,HEART & SOUL COMMUNITY CIC LTD,Childrens Services,1074.28,Externally Purchased Professional Services ,2223P11_CR00110,133378
Sandwell Metropolitan Borough Council,http://www.sandwell.gov.uk/info/200202/performance_and_spending/1079/payments_over_500,01-Feb-2023,Childrens Services,HEART & SOUL COMMUNITY CIC LTD,Childrens Services,1074.28,Externally Purchased Professional Services ,2223P11_CR00111,133378
Sandwell Metropolitan Borough Council,http://www.sandwell.gov.uk/info/200202/performance_and_spending/1079/payments_over_500,01-Feb-2023,Childrens Services,HEART & SOUL COMMUNITY CIC LTD,Childrens Services,1074.28,Externally Purchased Professional Services ,2223P11_CR00112,133378
Sandwell Metropolitan Borough Council,http://www.sandwell.gov.uk/info/200202/performance_and_spending/1079/payments_over_500,01-Feb-2023,Childrens Services,HEART & SOUL COMMUNITY CIC LTD,Childrens Services,1074.28,Externally Purchased Professional Services ,2223P11_CR00113,133378
Sandwell Metropolitan Borough Council,http://www.sandwell.gov.uk/info/200202/performance_and_spending/1079/payments_over_500,01-Feb-2023,Childrens Services,HEART & SOUL COMMUNITY CIC LTD,Childrens Services,1074.28,Externally Purchased Professional Services ,2223P11_CR00114,133378
Sandwell Metropolitan Borough Council,http://www.sandwell.gov.uk/info/200202/performance_and_spending/1079/payments_over_500,01-Feb-2023,Childrens Services,HEART & SOUL COMMUNITY CIC LTD,Childrens Services,1074.28,Externally Purchased Professional Services ,2223P11_CR00115,133378
Sandwell Metropolitan Borough Council,http://www.sandwell.gov.uk/info/200202/performance_and_spending/1079/payments_over_500,01-Feb-2023,Childrens Services,HEART & SOUL COMMUNITY CIC LTD,Childrens Services,1074.28,Externally Purchased Professional Services ,2223P11_CR00116,133378
Sandwell Metropolitan Borough Council,http://www.sandwell.gov.uk/info/200202/performance_and_spending/1079/payments_over_500,01-Feb-2023,Childrens Services,HEART & SOUL COMMUNITY CIC LTD,Childrens Services,1074.28,Externally Purchased Professional Services ,2223P11_CR00117,133378
Sandwell Metropolitan Borough Council,http://www.sandwell.gov.uk/info/200202/performance_and_spending/1079/payments_over_500,01-Feb-2023,Childrens Services,HEART & SOUL COMMUNITY CIC LTD,Childrens Services,1074.28,Externally Purchased Professional Services ,2223P11_CR00118,133378
Sandwell Metropolitan Borough Council,http://www.sandwell.gov.uk/info/200202/performance_and_spending/1079/payments_over_500,01-Feb-2023,Childrens Services,HEART & SOUL COMMUNITY CIC LTD,Childrens Services,1074.28,Externally Purchased Professional Services ,2223P11_CR00119,133378
Sandwell Metropolitan Borough Council,http://www.sandwell.gov.uk/info/200202/performance_and_spending/1079/payments_over_500,01-Feb-2023,Childrens Services,HEART & SOUL COMMUNITY CIC LTD,Childrens Services,1074.28,Externally Purchased Professional Services ,2223P11_CR00120,133378
Sandwell Metropolitan Borough Council,http://www.sandwell.gov.uk/info/200202/performance_and_spending/1079/payments_over_500,01-Feb-2023,Childrens Services,HEART & SOUL COMMUNITY CIC LTD,Childrens Services,1074.28,Externally Purchased Professional Services ,2223P11_CR00121,133378
Sandwell Metropolitan Borough Council,http://www.sandwell.gov.uk/info/200202/performance_and_spending/1079/payments_over_500,01-Feb-2023,Childrens Services,HEART & SOUL COMMUNITY CIC LTD,Childrens Services,1074.28,Externally Purchased Professional Services ,2223P11_CR00122,133378
Sandwell Metropolitan Borough Council,http://www.sandwell.gov.uk/info/200202/performance_and_spending/1079/payments_over_500,01-Feb-2023,Childrens Services,HEART & SOUL COMMUNITY CIC LTD,Childrens Services,1074.28,Externally Purchased Professional Services ,2223P11_CR00123,133378
Sandwell Metropolitan Borough Council,http://www.sandwell.gov.uk/info/200202/performance_and_spending/1079/payments_over_500,01-Feb-2023,Childrens Services,HEART & SOUL COMMUNITY CIC LTD,Childrens Services,1074.28,Externally Purchased Professional Services ,2223P11_CR00124,133378
Sandwell Metropolitan Borough Council,http://www.sandwell.gov.uk/info/200202/performance_and_spending/1079/payments_over_500,01-Feb-2023,Childrens Services,HEART & SOUL COMMUNITY CIC LTD,Childrens Services,1074.28,Externally Purchased Professional Services ,2223P11_CR00125,133378
Sandwell Metropolitan Borough Council,http://www.sandwell.gov.uk/info/200202/performance_and_spending/1079/payments_over_500,01-Feb-2023,Childrens Services,HEART & SOUL COMMUNITY CIC LTD,Childrens Services,1074.28,Externally Purchased Professional Services ,2223P11_CR00126,133378
Sandwell Metropolitan Borough Council,http://www.sandwell.gov.uk/info/200202/performance_and_spending/1079/payments_over_500,01-Feb-2023,Childrens Services,HEART & SOUL COMMUNITY CIC LTD,Childrens Services,1074.28,Externally Purchased Professional Services ,2223P11_CR00127,133378
Sandwell Metropolitan Borough Council,http://www.sandwell.gov.uk/info/200202/performance_and_spending/1079/payments_over_500,01-Feb-2023,Childrens Services,HER MAJESTYS PRISON AND PROBATION SERVICE,Childrens Services,3850.00,Other Establishments,2223P11_CR00128,134815
Sandwell Metropolitan Borough Council,http://www.sandwell.gov.uk/info/200202/performance_and_spending/1079/payments_over_500,01-Feb-2023,Childrens Services,HER MAJESTYS PRISON AND PROBATION SERVICE,Childrens Services,7700.00,Other Establishments,2223P11_CR00129,134815
Sandwell Metropolitan Borough Council,http://www.sandwell.gov.uk/info/200202/performance_and_spending/1079/payments_over_500,01-Feb-2023,Childrens Services,HER MAJESTYS PRISON AND PROBATION SERVICE,Childrens Services,8596.00,Other Establishments,2223P11_CR00130,134815
Sandwell Metropolitan Borough Council,http://www.sandwell.gov.uk/info/200202/performance_and_spending/1079/payments_over_500,01-Feb-2023,Childrens Services,HER MAJESTYS PRISON AND PROBATION SERVICE,Childrens Services,9210.00,Other Establishments,2223P11_CR00131,134815
Sandwell Metropolitan Borough Council,http://www.sandwell.gov.uk/info/200202/performance_and_spending/1079/payments_over_500,01-Feb-2023,Childrens Services,HER MAJESTYS PRISON AND PROBATION SERVICE,Childrens Services,9210.00,Other Establishments,2223P11_CR00132,134815
Sandwell Metropolitan Borough Council,http://www.sandwell.gov.uk/info/200202/performance_and_spending/1079/payments_over_500,01-Feb-2023,Childrens Services,HER MAJESTYS PRISON AND PROBATION SERVICE,Childrens Services,9517.00,Other Establishments,2223P11_CR00133,134815
Sandwell Metropolitan Borough Council,http://www.sandwell.gov.uk/info/200202/performance_and_spending/1079/payments_over_500,01-Feb-2023,Childrens Services,HER MAJESTYS PRISON AND PROBATION SERVICE,Childrens Services,9517.00,Other Establishments,2223P11_CR00134,134815
Sandwell Metropolitan Borough Council,http://www.sandwell.gov.uk/info/200202/performance_and_spending/1079/payments_over_500,01-Feb-2023,Childrens Services,HER MAJESTYS PRISON AND PROBATION SERVICE,Childrens Services,23870.00,Other Establishments,2223P11_CR00135,134815
Sandwell Metropolitan Borough Council,http://www.sandwell.gov.uk/info/200202/performance_and_spending/1079/payments_over_500,01-Feb-2023,Childrens Services,INGESTRE ORANGERY AND GARDENS,Childrens Services,650.00,Materials & Consumables,2223P11_CR00136,127331
Sandwell Metropolitan Borough Council,http://www.sandwell.gov.uk/info/200202/performance_and_spending/1079/payments_over_500,01-Feb-2023,Childrens Services,IRON MAIDENS COMMERCIAL LAUNDRY LIMITED,Childrens Services,531.14,Laundry,2223P11_CR00137,124628
Sandwell Metropolitan Borough Council,http://www.sandwell.gov.uk/info/200202/performance_and_spending/1079/payments_over_500,01-Feb-2023,Childrens Services,JUBILEE PARK COMMUNITY CENTRE,Childrens Services,900.00,Hire of Facilities,2223P11_CR00138,13048
Sandwell Metropolitan Borough Council,http://www.sandwell.gov.uk/info/200202/performance_and_spending/1079/payments_over_500,01-Feb-2023,Childrens Services,LEARNING INTO EMPLOYMENT ACADEMY LTD,Childrens Services,508.50,Externally Purchased Professional Services ,2223P11_CR00139,147427
Sandwell Metropolitan Borough Council,http://www.sandwell.gov.uk/info/200202/performance_and_spending/1079/payments_over_500,01-Feb-2023,Childrens Services,LEARNING INTO EMPLOYMENT ACADEMY LTD,Childrens Services,576.30,Externally Purchased Professional Services ,2223P11_CR00140,147427
Sandwell Metropolitan Borough Council,http://www.sandwell.gov.uk/info/200202/performance_and_spending/1079/payments_over_500,01-Feb-2023,Childrens Services,LEARNING INTO EMPLOYMENT ACADEMY LTD,Childrens Services,587.60,Externally Purchased Professional Services ,2223P11_CR00141,147427
Sandwell Metropolitan Borough Council,http://www.sandwell.gov.uk/info/200202/performance_and_spending/1079/payments_over_500,01-Feb-2023,Childrens Services,LEARNING INTO EMPLOYMENT ACADEMY LTD,Childrens Services,1242.99,Externally Purchased Professional Services ,2223P11_CR00142,147427
Sandwell Metropolitan Borough Council,http://www.sandwell.gov.uk/info/200202/performance_and_spending/1079/payments_over_500,01-Feb-2023,Childrens Services,LEARNING INTO EMPLOYMENT ACADEMY LTD,Childrens Services,1242.99,Externally Purchased Professional Services ,2223P11_CR00143,147427
Sandwell Metropolitan Borough Council,http://www.sandwell.gov.uk/info/200202/performance_and_spending/1079/payments_over_500,01-Feb-2023,Childrens Services,LEARNING INTO EMPLOYMENT ACADEMY LTD,Childrens Services,1242.99,Externally Purchased Professional Services ,2223P11_CR00144,147427
Sandwell Metropolitan Borough Council,http://www.sandwell.gov.uk/info/200202/performance_and_spending/1079/payments_over_500,10-Feb-2023,Childrens Services,LEARNPLAY FOUNDATION LTD,Childrens Services,575.64,Externally Purchased Professional Services ,2223P11_CR00145,86525
Sandwell Metropolitan Borough Council,http://www.sandwell.gov.uk/info/200202/performance_and_spending/1079/payments_over_500,01-Feb-2023,Childrens Services,LEARNPLAY FOUNDATION LTD,Childrens Services,2046.91,Externally Purchased Professional Services ,2223P11_CR00146,86525
Sandwell Metropolitan Borough Council,http://www.sandwell.gov.uk/info/200202/performance_and_spending/1079/payments_over_500,01-Feb-2023,Childrens Services,LEARNPLAY FOUNDATION LTD,Childrens Services,2046.91,Externally Purchased Professional Services ,2223P11_CR00147,86525
Sandwell Metropolitan Borough Council,http://www.sandwell.gov.uk/info/200202/performance_and_spending/1079/payments_over_500,01-Feb-2023,Childrens Services,LEARNPLAY FOUNDATION LTD,Childrens Services,2567.16,Externally Purchased Professional Services ,2223P11_CR00148,86525
Sandwell Metropolitan Borough Council,http://www.sandwell.gov.uk/info/200202/performance_and_spending/1079/payments_over_500,17-Feb-2023,Childrens Services,MIDLAND FORESTRY LIMITED,Childrens Services,720.00,Grounds Maintenance & Improvements,2223P11_CR00149,45812
Sandwell Metropolitan Borough Council,http://www.sandwell.gov.uk/info/200202/performance_and_spending/1079/payments_over_500,17-Feb-2023,Childrens Services,NEW BEGINNINGS COMMUNITY,Childrens Services,700.00,Hire of Facilities,2223P11_CR00150,155886
Sandwell Metropolitan Borough Council,http://www.sandwell.gov.uk/info/200202/performance_and_spending/1079/payments_over_500,17-Feb-2023,Childrens Services,NEW BEGINNINGS COMMUNITY,Childrens Services,700.00,Hire of Facilities,2223P11_CR00151,155886
Sandwell Metropolitan Borough Council,http://www.sandwell.gov.uk/info/200202/performance_and_spending/1079/payments_over_500,17-Feb-2023,Childrens Services,NEW BEGINNINGS COMMUNITY,Childrens Services,700.00,Hire of Facilities,2223P11_CR00152,155886
Sandwell Metropolitan Borough Council,http://www.sandwell.gov.uk/info/200202/performance_and_spending/1079/payments_over_500,13-Feb-2023,Childrens Services,NEW BEGINNINGS COMMUNITY,Childrens Services,700.00,Hire of Facilities,2223P11_CR00153,155886
Sandwell Metropolitan Borough Council,http://www.sandwell.gov.uk/info/200202/performance_and_spending/1079/payments_over_500,17-Feb-2023,Childrens Services,NEW BEGINNINGS COMMUNITY,Childrens Services,1080.00,Hire of Facilities,2223P11_CR00154,155886
Sandwell Metropolitan Borough Council,http://www.sandwell.gov.uk/info/200202/performance_and_spending/1079/payments_over_500,01-Feb-2023,Childrens Services,NEWAVE LTD,Childrens Services,1008.00,Agency Staff,2223P11_CR00155,101666
Sandwell Metropolitan Borough Council,http://www.sandwell.gov.uk/info/200202/performance_and_spending/1079/payments_over_500,01-Feb-2023,Childrens Services,NEWAVE LTD,Childrens Services,1010.10,Agency Staff,2223P11_CR00156,101666
Sandwell Metropolitan Borough Council,http://www.sandwell.gov.uk/info/200202/performance_and_spending/1079/payments_over_500,10-Feb-2023,Childrens Services,NEWAVE LTD,Childrens Services,2580.40,Agency Staff,2223P11_CR00157,101666
Sandwell Metropolitan Borough Council,http://www.sandwell.gov.uk/info/200202/performance_and_spending/1079/payments_over_500,01-Feb-2023,Childrens Services,NEWAVE LTD,Childrens Services,2830.40,Agency Staff,2223P11_CR00158,101666
Sandwell Metropolitan Borough Council,http://www.sandwell.gov.uk/info/200202/performance_and_spending/1079/payments_over_500,10-Feb-2023,Childrens Services,NEWAVE LTD,Childrens Services,3205.40,Agency Staff,2223P11_CR00159,101666
Sandwell Metropolitan Borough Council,http://www.sandwell.gov.uk/info/200202/performance_and_spending/1079/payments_over_500,01-Feb-2023,Childrens Services,NEWAVE LTD,Childrens Services,3486.00,Agency Staff,2223P11_CR00160,101666
Sandwell Metropolitan Borough Council,http://www.sandwell.gov.uk/info/200202/performance_and_spending/1079/payments_over_500,14-Feb-2023,Childrens Services,NORTH BIRMINGHAM TRAVEL LTD,Childrens Services,29263.62,Public Transport,2223P11_CR00161,72112
Sandwell Metropolitan Borough Council,http://www.sandwell.gov.uk/info/200202/performance_and_spending/1079/payments_over_500,14-Feb-2023,Childrens Services,NORTH BIRMINGHAM TRAVEL LTD,Childrens Services,107550.86,Public Transport,2223P11_CR00162,72112
Sandwell Metropolitan Borough Council,http://www.sandwell.gov.uk/info/200202/performance_and_spending/1079/payments_over_500,14-Feb-2023,Childrens Services,NORTH BIRMINGHAM TRAVEL LTD,Childrens Services,110193.31,Public Transport,2223P11_CR00163,72112
Sandwell Metropolitan Borough Council,http://www.sandwell.gov.uk/info/200202/performance_and_spending/1079/payments_over_500,14-Feb-2023,Childrens Services,NORTH BIRMINGHAM TRAVEL LTD,Childrens Services,132527.22,Public Transport,2223P11_CR00164,72112
Sandwell Metropolitan Borough Council,http://www.sandwell.gov.uk/info/200202/performance_and_spending/1079/payments_over_500,14-Feb-2023,Childrens Services,NORTH BIRMINGHAM TRAVEL LTD,Childrens Services,149754.55,Public Transport,2223P11_CR00165,72112
Sandwell Metropolitan Borough Council,http://www.sandwell.gov.uk/info/200202/performance_and_spending/1079/payments_over_500,14-Feb-2023,Childrens Services,ONE 4 YOU SERVICES LTD,Childrens Services,107403.87,Public Transport,2223P11_CR00166,81204
Sandwell Metropolitan Borough Council,http://www.sandwell.gov.uk/info/200202/performance_and_spending/1079/payments_over_500,07-Feb-2023,Childrens Services,PLACES FOR PEOPLE LEISURE LIMITED,Childrens Services,5863.00,Grant Payments,2223P11_CR00167,119069
Sandwell Metropolitan Borough Council,http://www.sandwell.gov.uk/info/200202/performance_and_spending/1079/payments_over_500,01-Feb-2023,Childrens Services,PROSPECTS SERVICES LIMITED,Childrens Services,4089.92,Grant Payments,2223P11_CR00168,01721288
Sandwell Metropolitan Borough Council,http://www.sandwell.gov.uk/info/200202/performance_and_spending/1079/payments_over_500,01-Feb-2023,Childrens Services,SANDWELL CHILDREN'S TRUST,Childrens Services,2240.00,External Contract Hire,2223P11_CR00169,133302
Sandwell Metropolitan Borough Council,http://www.sandwell.gov.uk/info/200202/performance_and_spending/1079/payments_over_500,01-Feb-2023,Childrens Services,SANDWELL CHILDREN'S TRUST,Childrens Services,1237617.78,Other Establishments,2223P11_CR00170,133302
Sandwell Metropolitan Borough Council,http://www.sandwell.gov.uk/info/200202/performance_and_spending/1079/payments_over_500,07-Feb-2023,Childrens Services,SANDWELL CHILDREN'S TRUST,Childrens Services,5421069.14,Other Establishments,2223P11_CR00171,133302
Sandwell Metropolitan Borough Council,http://www.sandwell.gov.uk/info/200202/performance_and_spending/1079/payments_over_500,08-Feb-2023,Childrens Services,SANDWELL CHILDREN'S TRUST,Childrens Services,5421070.54,Other Establishments,2223P11_CR00172,133302
Sandwell Metropolitan Borough Council,http://www.sandwell.gov.uk/info/200202/performance_and_spending/1079/payments_over_500,08-Feb-2023,Childrens Services,SANDWELL CHILDREN'S TRUST,Childrens Services,356633.79,SH Payments,2223P11_CR00173,133302
Sandwell Metropolitan Borough Council,http://www.sandwell.gov.uk/info/200202/performance_and_spending/1079/payments_over_500,15-Feb-2023,Childrens Services,SANDWELL PARENTS FOR DISABLED CHILDREN,Childrens Services,6000.00,Grant Payments,2223P11_CR00174,70991
Sandwell Metropolitan Borough Council,http://www.sandwell.gov.uk/info/200202/performance_and_spending/1079/payments_over_500,07-Feb-2023,Childrens Services,SHIRELAND HALL PRIMARY ACADEMY,Childrens Services,755.00,Externally Purchased Professional Services ,2223P11_CR00175,15209
Sandwell Metropolitan Borough Council,http://www.sandwell.gov.uk/info/200202/performance_and_spending/1079/payments_over_500,16-Feb-2023,Childrens Services,SIPS EDUCATION LTD,Childrens Services,25500.00,Contract Payments,2223P11_CR00176,110784
Sandwell Metropolitan Borough Council,http://www.sandwell.gov.uk/info/200202/performance_and_spending/1079/payments_over_500,01-Feb-2023,Childrens Services,SKILLS WORK AND ENTERPRISE DEVELOPMENT AGENCY LTD,Childrens Services,528.85,Grants,2223P11_CR00177,5092
Sandwell Metropolitan Borough Council,http://www.sandwell.gov.uk/info/200202/performance_and_spending/1079/payments_over_500,01-Feb-2023,Childrens Services,SKILLS WORK AND ENTERPRISE DEVELOPMENT AGENCY LTD,Childrens Services,1214.03,Grants,2223P11_CR00178,5092
Sandwell Metropolitan Borough Council,http://www.sandwell.gov.uk/info/200202/performance_and_spending/1079/payments_over_500,01-Feb-2023,Childrens Services,SKILLS WORK AND ENTERPRISE DEVELOPMENT AGENCY LTD,Childrens Services,1879.32,Grants,2223P11_CR00179,5092
Sandwell Metropolitan Borough Council,http://www.sandwell.gov.uk/info/200202/performance_and_spending/1079/payments_over_500,01-Feb-2023,Childrens Services,SKILLS WORK AND ENTERPRISE DEVELOPMENT AGENCY LTD,Childrens Services,2867.54,Grants,2223P11_CR00180,5092
Sandwell Metropolitan Borough Council,http://www.sandwell.gov.uk/info/200202/performance_and_spending/1079/payments_over_500,01-Feb-2023,Childrens Services,SSE ENERGY SUPPLY LIMITED,Childrens Services,1500.49,Electricity,2223P11_CR00181,116134
Sandwell Metropolitan Borough Council,http://www.sandwell.gov.uk/info/200202/performance_and_spending/1079/payments_over_500,01-Feb-2023,Childrens Services,SSE ENERGY SUPPLY LIMITED,Childrens Services,1945.38,Electricity,2223P11_CR00182,116134
Sandwell Metropolitan Borough Council,http://www.sandwell.gov.uk/info/200202/performance_and_spending/1079/payments_over_500,16-Feb-2023,Childrens Services,SSE ENERGY SUPPLY LIMITED,Childrens Services,7088.22,Electricity,2223P11_CR00183,116134
Sandwell Metropolitan Borough Council,http://www.sandwell.gov.uk/info/200202/performance_and_spending/1079/payments_over_500,01-Feb-2023,Childrens Services,THE BRANCH,Childrens Services,3055.00,Grant Payments,2223P11_CR00184,08588514
Sandwell Metropolitan Borough Council,http://www.sandwell.gov.uk/info/200202/performance_and_spending/1079/payments_over_500,01-Feb-2023,Childrens Services,THE GIFT VOUCHER SHOP LIMITED,Childrens Services,539.00,Operational Services ,2223P11_CR00185,111545
Sandwell Metropolitan Borough Council,http://www.sandwell.gov.uk/info/200202/performance_and_spending/1079/payments_over_500,01-Feb-2023,Childrens Services,THE GIFT VOUCHER SHOP LIMITED,Childrens Services,1102.50,Operational Services ,2223P11_CR00186,111545
Sandwell Metropolitan Borough Council,http://www.sandwell.gov.uk/info/200202/performance_and_spending/1079/payments_over_500,27-Feb-2023,Childrens Services,THE PRIORY PRIMARY,Childrens Services,2798.79,Rents,2223P11_CR00187,01746051
Sandwell Metropolitan Borough Council,http://www.sandwell.gov.uk/info/200202/performance_and_spending/1079/payments_over_500,01-Feb-2023,Childrens Services,THE PRIORY PRIMARY,Childrens Services,2843.70,Rents,2223P11_CR00188,01746051
Sandwell Metropolitan Borough Council,http://www.sandwell.gov.uk/info/200202/performance_and_spending/1079/payments_over_500,02-Feb-2023,Childrens Services,TIVIDALE COMMUNITY PRIMARY SCHOOL,Childrens Services,1500.00,Grants,2223P11_CR00189,20555
Sandwell Metropolitan Borough Council,http://www.sandwell.gov.uk/info/200202/performance_and_spending/1079/payments_over_500,02-Feb-2023,Childrens Services,TOPPS MANAGEMENT & SUPPORT SERVICES LTD,Childrens Services,8214.22,Discretionary Awards,2223P11_CR00190,68846
Sandwell Metropolitan Borough Council,http://www.sandwell.gov.uk/info/200202/performance_and_spending/1079/payments_over_500,01-Feb-2023,Childrens Services,TOPPS MANAGEMENT & SUPPORT SERVICES LTD,Childrens Services,996.94,Externally Purchased Professional Services ,2223P11_CR00191,68846
Sandwell Metropolitan Borough Council,http://www.sandwell.gov.uk/info/200202/performance_and_spending/1079/payments_over_500,01-Feb-2023,Childrens Services,TOTALENERGIES GAS & POWER LTD,Childrens Services,519.35,Electricity,2223P11_CR00192,107605
Sandwell Metropolitan Borough Council,http://www.sandwell.gov.uk/info/200202/performance_and_spending/1079/payments_over_500,11-Feb-2023,Childrens Services,TOTALENERGIES GAS & POWER LTD,Childrens Services,543.94,Electricity,2223P11_CR00193,107605
Sandwell Metropolitan Borough Council,http://www.sandwell.gov.uk/info/200202/performance_and_spending/1079/payments_over_500,01-Feb-2023,Childrens Services,TOTALENERGIES GAS & POWER LTD,Childrens Services,553.64,Electricity,2223P11_CR00194,107605
Sandwell Metropolitan Borough Council,http://www.sandwell.gov.uk/info/200202/performance_and_spending/1079/payments_over_500,11-Feb-2023,Childrens Services,TOTALENERGIES GAS & POWER LTD,Childrens Services,572.18,Electricity,2223P11_CR00195,107605
Sandwell Metropolitan Borough Council,http://www.sandwell.gov.uk/info/200202/performance_and_spending/1079/payments_over_500,11-Feb-2023,Childrens Services,TOTALENERGIES GAS & POWER LTD,Childrens Services,586.32,Electricity,2223P11_CR00196,107605
Sandwell Metropolitan Borough Council,http://www.sandwell.gov.uk/info/200202/performance_and_spending/1079/payments_over_500,11-Feb-2023,Childrens Services,TOTALENERGIES GAS & POWER LTD,Childrens Services,587.10,Electricity,2223P11_CR00197,107605
Sandwell Metropolitan Borough Council,http://www.sandwell.gov.uk/info/200202/performance_and_spending/1079/payments_over_500,11-Feb-2023,Childrens Services,TOTALENERGIES GAS & POWER LTD,Childrens Services,628.95,Electricity,2223P11_CR00198,107605
Sandwell Metropolitan Borough Council,http://www.sandwell.gov.uk/info/200202/performance_and_spending/1079/payments_over_500,11-Feb-2023,Childrens Services,TOTALENERGIES GAS & POWER LTD,Childrens Services,797.64,Electricity,2223P11_CR00199,107605
Sandwell Metropolitan Borough Council,http://www.sandwell.gov.uk/info/200202/performance_and_spending/1079/payments_over_500,01-Feb-2023,Childrens Services,TOTALENERGIES GAS & POWER LTD,Childrens Services,998.71,Electricity,2223P11_CR00200,107605
Sandwell Metropolitan Borough Council,http://www.sandwell.gov.uk/info/200202/performance_and_spending/1079/payments_over_500,01-Feb-2023,Childrens Services,TOTALENERGIES GAS & POWER LTD,Childrens Services,1013.12,Electricity,2223P11_CR00201,107605
Sandwell Metropolitan Borough Council,http://www.sandwell.gov.uk/info/200202/performance_and_spending/1079/payments_over_500,11-Feb-2023,Childrens Services,TOTALENERGIES GAS & POWER LTD,Childrens Services,1068.05,Electricity,2223P11_CR00202,107605
Sandwell Metropolitan Borough Council,http://www.sandwell.gov.uk/info/200202/performance_and_spending/1079/payments_over_500,11-Feb-2023,Childrens Services,TOTALENERGIES GAS & POWER LTD,Childrens Services,1076.38,Electricity,2223P11_CR00203,107605
Sandwell Metropolitan Borough Council,http://www.sandwell.gov.uk/info/200202/performance_and_spending/1079/payments_over_500,11-Feb-2023,Childrens Services,TOTALENERGIES GAS & POWER LTD,Childrens Services,1158.92,Electricity,2223P11_CR00204,107605
Sandwell Metropolitan Borough Council,http://www.sandwell.gov.uk/info/200202/performance_and_spending/1079/payments_over_500,11-Feb-2023,Childrens Services,TOTALENERGIES GAS & POWER LTD,Childrens Services,1307.17,Electricity,2223P11_CR00205,107605
Sandwell Metropolitan Borough Council,http://www.sandwell.gov.uk/info/200202/performance_and_spending/1079/payments_over_500,11-Feb-2023,Childrens Services,TOTALENERGIES GAS & POWER LTD,Childrens Services,1661.27,Electricity,2223P11_CR00206,107605
Sandwell Metropolitan Borough Council,http://www.sandwell.gov.uk/info/200202/performance_and_spending/1079/payments_over_500,11-Feb-2023,Childrens Services,TOTALENERGIES GAS & POWER LTD,Childrens Services,2757.56,Electricity,2223P11_CR00207,107605
Sandwell Metropolitan Borough Council,http://www.sandwell.gov.uk/info/200202/performance_and_spending/1079/payments_over_500,11-Feb-2023,Childrens Services,TOTALENERGIES GAS & POWER LTD,Childrens Services,508.04,Gas,2223P11_CR00208,107605
Sandwell Metropolitan Borough Council,http://www.sandwell.gov.uk/info/200202/performance_and_spending/1079/payments_over_500,01-Feb-2023,Childrens Services,TOTALENERGIES GAS & POWER LTD,Childrens Services,518.25,Gas,2223P11_CR00209,107605
Sandwell Metropolitan Borough Council,http://www.sandwell.gov.uk/info/200202/performance_and_spending/1079/payments_over_500,11-Feb-2023,Childrens Services,TOTALENERGIES GAS & POWER LTD,Childrens Services,608.01,Gas,2223P11_CR00210,107605
Sandwell Metropolitan Borough Council,http://www.sandwell.gov.uk/info/200202/performance_and_spending/1079/payments_over_500,12-Feb-2023,Childrens Services,TOTALENERGIES GAS & POWER LTD,Childrens Services,2046.75,Gas,2223P11_CR00211,107605
Sandwell Metropolitan Borough Council,http://www.sandwell.gov.uk/info/200202/performance_and_spending/1079/payments_over_500,16-Feb-2023,Childrens Services,VSSGB,Childrens Services,35505.00,Grant Payments,2223P11_CR00212,120965
Sandwell Metropolitan Borough Council,http://www.sandwell.gov.uk/info/200202/performance_and_spending/1079/payments_over_500,02-Feb-2023,Childrens Services,WEST BROMWICH ALBION FC LTD,Childrens Services,1560.33,Hire of Facilities,2223P11_CR00213,01606624
Sandwell Metropolitan Borough Council,http://www.sandwell.gov.uk/info/200202/performance_and_spending/1079/payments_over_500,02-Feb-2023,Childrens Services,WEST BROMWICH ALBION FC LTD,Childrens Services,1756.00,Hire of Facilities,2223P11_CR00214,01606624
Sandwell Metropolitan Borough Council,http://www.sandwell.gov.uk/info/200202/performance_and_spending/1079/payments_over_500,01-Feb-2023,Childrens Services,WEST BROMWICH ALBION FC LTD,Childrens Services,1924.00,Hire of Facilities,2223P11_CR00215,01606624
Sandwell Metropolitan Borough Council,http://www.sandwell.gov.uk/info/200202/performance_and_spending/1079/payments_over_500,01-Feb-2023,Childrens Services,WEST MIDLANDS FIRE SERVICE,Childrens Services,5000.00,Discretionary Awards,2223P11_CR00216,2378
Sandwell Metropolitan Borough Council,http://www.sandwell.gov.uk/info/200202/performance_and_spending/1079/payments_over_500,13-Feb-2023,Childrens Services,WMA COMMUNITY FITNESS CENTRE,Childrens Services,720.00,Hire of Facilities,2223P11_CR00217,141572
Sandwell Metropolitan Borough Council,http://www.sandwell.gov.uk/info/200202/performance_and_spending/1079/payments_over_500,09-Feb-2023,Childrens Services,YOUNG IMAGE,Childrens Services,620.00,Protective Clothing & Uniforms,2223P11_CR00218,04006431
Sandwell Metropolitan Borough Council,http://www.sandwell.gov.uk/info/200202/performance_and_spending/1079/payments_over_500,07-Feb-2023,Childrens Services,REDACTED PERSONAL DATA,Childrens Services,550.80,External Contract Hire,2223P11_CR00219,REDACTED PERSONAL DATA
Sandwell Metropolitan Borough Council,http://www.sandwell.gov.uk/info/200202/performance_and_spending/1079/payments_over_500,10-Feb-2023,Childrens Services,REDACTED PERSONAL DATA,Childrens Services,545.45,External Contract Hire,2223P11_CR00220,REDACTED PERSONAL DATA
Sandwell Metropolitan Borough Council,http://www.sandwell.gov.uk/info/200202/performance_and_spending/1079/payments_over_500,10-Feb-2023,Childrens Services,REDACTED PERSONAL DATA,Childrens Services,727.27,External Contract Hire,2223P11_CR00221,REDACTED PERSONAL DATA
Sandwell Metropolitan Borough Council,http://www.sandwell.gov.uk/info/200202/performance_and_spending/1079/payments_over_500,10-Feb-2023,Childrens Services,REDACTED PERSONAL DATA,Childrens Services,545.45,External Contract Hire,2223P11_CR00222,REDACTED PERSONAL DATA
Sandwell Metropolitan Borough Council,http://www.sandwell.gov.uk/info/200202/performance_and_spending/1079/payments_over_500,10-Feb-2023,Childrens Services,REDACTED PERSONAL DATA,Childrens Services,545.45,External Contract Hire,2223P11_CR00223,REDACTED PERSONAL DATA
Sandwell Metropolitan Borough Council,http://www.sandwell.gov.uk/info/200202/performance_and_spending/1079/payments_over_500,10-Feb-2023,Childrens Services,REDACTED PERSONAL DATA,Childrens Services,727.28,External Contract Hire,2223P11_CR00224,REDACTED PERSONAL DATA
Sandwell Metropolitan Borough Council,http://www.sandwell.gov.uk/info/200202/performance_and_spending/1079/payments_over_500,10-Feb-2023,Childrens Services,REDACTED PERSONAL DATA,Childrens Services,545.45,External Contract Hire,2223P11_CR00225,REDACTED PERSONAL DATA
Sandwell Metropolitan Borough Council,http://www.sandwell.gov.uk/info/200202/performance_and_spending/1079/payments_over_500,10-Feb-2023,Childrens Services,REDACTED PERSONAL DATA,Childrens Services,545.45,External Contract Hire,2223P11_CR00226,REDACTED PERSONAL DATA
Sandwell Metropolitan Borough Council,http://www.sandwell.gov.uk/info/200202/performance_and_spending/1079/payments_over_500,10-Feb-2023,Childrens Services,REDACTED PERSONAL DATA,Childrens Services,545.45,External Contract Hire,2223P11_CR00227,REDACTED PERSONAL DATA
Sandwell Metropolitan Borough Council,http://www.sandwell.gov.uk/info/200202/performance_and_spending/1079/payments_over_500,10-Feb-2023,Childrens Services,REDACTED PERSONAL DATA,Childrens Services,1090.90,External Contract Hire,2223P11_CR00228,REDACTED PERSONAL DATA
Sandwell Metropolitan Borough Council,http://www.sandwell.gov.uk/info/200202/performance_and_spending/1079/payments_over_500,10-Feb-2023,Childrens Services,REDACTED PERSONAL DATA,Childrens Services,545.45,External Contract Hire,2223P11_CR00229,REDACTED PERSONAL DATA
Sandwell Metropolitan Borough Council,http://www.sandwell.gov.uk/info/200202/performance_and_spending/1079/payments_over_500,10-Feb-2023,Childrens Services,REDACTED PERSONAL DATA,Childrens Services,727.27,External Contract Hire,2223P11_CR00230,REDACTED PERSONAL DATA
Sandwell Metropolitan Borough Council,http://www.sandwell.gov.uk/info/200202/performance_and_spending/1079/payments_over_500,10-Feb-2023,Childrens Services,REDACTED PERSONAL DATA,Childrens Services,727.27,External Contract Hire,2223P11_CR00231,REDACTED PERSONAL DATA
Sandwell Metropolitan Borough Council,http://www.sandwell.gov.uk/info/200202/performance_and_spending/1079/payments_over_500,10-Feb-2023,Childrens Services,REDACTED PERSONAL DATA,Childrens Services,727.27,External Contract Hire,2223P11_CR00232,REDACTED PERSONAL DATA
Sandwell Metropolitan Borough Council,http://www.sandwell.gov.uk/info/200202/performance_and_spending/1079/payments_over_500,10-Feb-2023,Childrens Services,REDACTED PERSONAL DATA,Childrens Services,545.45,External Contract Hire,2223P11_CR00233,REDACTED PERSONAL DATA
Sandwell Metropolitan Borough Council,http://www.sandwell.gov.uk/info/200202/performance_and_spending/1079/payments_over_500,10-Feb-2023,Childrens Services,REDACTED PERSONAL DATA,Childrens Services,545.45,External Contract Hire,2223P11_CR00234,REDACTED PERSONAL DATA
Sandwell Metropolitan Borough Council,http://www.sandwell.gov.uk/info/200202/performance_and_spending/1079/payments_over_500,10-Feb-2023,Childrens Services,REDACTED PERSONAL DATA,Childrens Services,727.27,External Contract Hire,2223P11_CR00235,REDACTED PERSONAL DATA
Sandwell Metropolitan Borough Council,http://www.sandwell.gov.uk/info/200202/performance_and_spending/1079/payments_over_500,10-Feb-2023,Childrens Services,REDACTED PERSONAL DATA,Childrens Services,545.45,External Contract Hire,2223P11_CR00236,REDACTED PERSONAL DATA
Sandwell Metropolitan Borough Council,http://www.sandwell.gov.uk/info/200202/performance_and_spending/1079/payments_over_500,10-Feb-2023,Childrens Services,REDACTED PERSONAL DATA,Childrens Services,909.09,External Contract Hire,2223P11_CR00237,REDACTED PERSONAL DATA
Sandwell Metropolitan Borough Council,http://www.sandwell.gov.uk/info/200202/performance_and_spending/1079/payments_over_500,10-Feb-2023,Childrens Services,REDACTED PERSONAL DATA,Childrens Services,727.27,External Contract Hire,2223P11_CR00238,REDACTED PERSONAL DATA
Sandwell Metropolitan Borough Council,http://www.sandwell.gov.uk/info/200202/performance_and_spending/1079/payments_over_500,10-Feb-2023,Childrens Services,REDACTED PERSONAL DATA,Childrens Services,545.45,External Contract Hire,2223P11_CR00239,REDACTED PERSONAL DATA
Sandwell Metropolitan Borough Council,http://www.sandwell.gov.uk/info/200202/performance_and_spending/1079/payments_over_500,10-Feb-2023,Childrens Services,REDACTED PERSONAL DATA,Childrens Services,545.45,External Contract Hire,2223P11_CR00240,REDACTED PERSONAL DATA
Sandwell Metropolitan Borough Council,http://www.sandwell.gov.uk/info/200202/performance_and_spending/1079/payments_over_500,10-Feb-2023,Childrens Services,REDACTED PERSONAL DATA,Childrens Services,545.45,External Contract Hire,2223P11_CR00241,REDACTED PERSONAL DATA
Sandwell Metropolitan Borough Council,http://www.sandwell.gov.uk/info/200202/performance_and_spending/1079/payments_over_500,10-Feb-2023,Childrens Services,REDACTED PERSONAL DATA,Childrens Services,545.45,External Contract Hire,2223P11_CR00242,REDACTED PERSONAL DATA
Sandwell Metropolitan Borough Council,http://www.sandwell.gov.uk/info/200202/performance_and_spending/1079/payments_over_500,10-Feb-2023,Childrens Services,REDACTED PERSONAL DATA,Childrens Services,800.00,External Contract Hire,2223P11_CR00243,REDACTED PERSONAL DATA
Sandwell Metropolitan Borough Council,http://www.sandwell.gov.uk/info/200202/performance_and_spending/1079/payments_over_500,10-Feb-2023,Childrens Services,REDACTED PERSONAL DATA,Childrens Services,727.27,External Contract Hire,2223P11_CR00244,REDACTED PERSONAL DATA
Sandwell Metropolitan Borough Council,http://www.sandwell.gov.uk/info/200202/performance_and_spending/1079/payments_over_500,10-Feb-2023,Childrens Services,REDACTED PERSONAL DATA,Childrens Services,545.45,External Contract Hire,2223P11_CR00245,REDACTED PERSONAL DATA
Sandwell Metropolitan Borough Council,http://www.sandwell.gov.uk/info/200202/performance_and_spending/1079/payments_over_500,10-Feb-2023,Childrens Services,REDACTED PERSONAL DATA,Childrens Services,727.28,External Contract Hire,2223P11_CR00246,REDACTED PERSONAL DATA
Sandwell Metropolitan Borough Council,http://www.sandwell.gov.uk/info/200202/performance_and_spending/1079/payments_over_500,10-Feb-2023,Childrens Services,REDACTED PERSONAL DATA,Childrens Services,545.45,External Contract Hire,2223P11_CR00247,REDACTED PERSONAL DATA
Sandwell Metropolitan Borough Council,http://www.sandwell.gov.uk/info/200202/performance_and_spending/1079/payments_over_500,10-Feb-2023,Childrens Services,REDACTED PERSONAL DATA,Childrens Services,727.27,External Contract Hire,2223P11_CR00248,REDACTED PERSONAL DATA
Sandwell Metropolitan Borough Council,http://www.sandwell.gov.uk/info/200202/performance_and_spending/1079/payments_over_500,10-Feb-2023,Childrens Services,REDACTED PERSONAL DATA,Childrens Services,727.27,External Contract Hire,2223P11_CR00249,REDACTED PERSONAL DATA
Sandwell Metropolitan Borough Council,http://www.sandwell.gov.uk/info/200202/performance_and_spending/1079/payments_over_500,10-Feb-2023,Childrens Services,REDACTED PERSONAL DATA,Childrens Services,545.45,External Contract Hire,2223P11_CR00250,REDACTED PERSONAL DATA
Sandwell Metropolitan Borough Council,http://www.sandwell.gov.uk/info/200202/performance_and_spending/1079/payments_over_500,10-Feb-2023,Childrens Services,REDACTED PERSONAL DATA,Childrens Services,545.45,External Contract Hire,2223P11_CR00251,REDACTED PERSONAL DATA
Sandwell Metropolitan Borough Council,http://www.sandwell.gov.uk/info/200202/performance_and_spending/1079/payments_over_500,10-Feb-2023,Childrens Services,REDACTED PERSONAL DATA,Childrens Services,727.27,External Contract Hire,2223P11_CR00252,REDACTED PERSONAL DATA
Sandwell Metropolitan Borough Council,http://www.sandwell.gov.uk/info/200202/performance_and_spending/1079/payments_over_500,10-Feb-2023,Childrens Services,REDACTED PERSONAL DATA,Childrens Services,545.45,External Contract Hire,2223P11_CR00253,REDACTED PERSONAL DATA
Sandwell Metropolitan Borough Council,http://www.sandwell.gov.uk/info/200202/performance_and_spending/1079/payments_over_500,10-Feb-2023,Childrens Services,REDACTED PERSONAL DATA,Childrens Services,727.27,External Contract Hire,2223P11_CR00254,REDACTED PERSONAL DATA
Sandwell Metropolitan Borough Council,http://www.sandwell.gov.uk/info/200202/performance_and_spending/1079/payments_over_500,14-Feb-2023,Childrens Services Capital,ASTOR-BANNERMAN (MEDICAL) LIMITED,Childrens Services Capital,4688.00,"CIP - New Construction,Conversion, Enhancement & Reno",2223P11_CR00255,44879
Sandwell Metropolitan Borough Council,http://www.sandwell.gov.uk/info/200202/performance_and_spending/1079/payments_over_500,01-Feb-2023,Childrens Services Capital,MODEL SIGNAGE LTD,Childrens Services Capital,572.15,"CIP - New Construction,Conversion, Enhancement & Reno",2223P11_CR00256,165347
Sandwell Metropolitan Borough Council,http://www.sandwell.gov.uk/info/200202/performance_and_spending/1079/payments_over_500,08-Feb-2023,Childrens Services Capital,PELL FRISCHMANN CONSULTANTS LIMITED,Childrens Services Capital,663.30,"CIP - New Construction,Conversion, Enhancement & Reno",2223P11_CR00257,42350
Sandwell Metropolitan Borough Council,http://www.sandwell.gov.uk/info/200202/performance_and_spending/1079/payments_over_500,14-Feb-2023,Childrens Services Capital,SEDDON CONSTRUCTION LIMITED,Childrens Services Capital,8183.42,"CIP - New Construction,Conversion, Enhancement & Reno",2223P11_CR00258,132999
Sandwell Metropolitan Borough Council,http://www.sandwell.gov.uk/info/200202/performance_and_spending/1079/payments_over_500,07-Feb-2023,Childrens Services Capital,SEDDON CONSTRUCTION LIMITED,Childrens Services Capital,221119.30,"CIP - New Construction,Conversion, Enhancement & Reno",2223P11_CR00259,132999
Sandwell Metropolitan Borough Council,http://www.sandwell.gov.uk/info/200202/performance_and_spending/1079/payments_over_500,13-Feb-2023,Director of Law & Governance,ASSOCIATION OF ELECTORAL ADMINISTRATORS LTD,Assistant Chief Executive (Excl SIU),869.55,Advertising & Publicity,2223P11_CR00260,01693286
Sandwell Metropolitan Borough Council,http://www.sandwell.gov.uk/info/200202/performance_and_spending/1079/payments_over_500,01-Feb-2023,Director of Law & Governance,BEVAN BRITTAN LLP,Assistant Chief Executive (Excl SIU),1908.10,Externally Purchased Professional Services ,2223P11_CR00261,55036
Sandwell Metropolitan Borough Council,http://www.sandwell.gov.uk/info/200202/performance_and_spending/1079/payments_over_500,01-Feb-2023,Director of Law & Governance,BEVAN BRITTAN LLP,Assistant Chief Executive (Excl SIU),8901.80,Externally Purchased Professional Services ,2223P11_CR00262,55036
Sandwell Metropolitan Borough Council,http://www.sandwell.gov.uk/info/200202/performance_and_spending/1079/payments_over_500,27-Feb-2023,Director of Law & Governance,BROWNE JACOBSON LLP,Assistant Chief Executive (Excl SIU),3121.00,Externally Purchased Professional Services ,2223P11_CR00263,109574
Sandwell Metropolitan Borough Council,http://www.sandwell.gov.uk/info/200202/performance_and_spending/1079/payments_over_500,15-Feb-2023,Director of Law & Governance,CFH DOCMAIIL LTD,Assistant Chief Executive (Excl SIU),953.57,"Printing, Stationery & General Office Expenses",2223P11_CR00264,140107
Sandwell Metropolitan Borough Council,http://www.sandwell.gov.uk/info/200202/performance_and_spending/1079/payments_over_500,01-Feb-2023,Director of Law & Governance,CIPFA BUSINESS LIMITED,Assistant Chief Executive (Excl SIU),1200.00,Externally Purchased Professional Services ,2223P11_CR00265,01023717
Sandwell Metropolitan Borough Council,http://www.sandwell.gov.uk/info/200202/performance_and_spending/1079/payments_over_500,15-Feb-2023,Director of Law & Governance,CIVICA UK LTD,Assistant Chief Executive (Excl SIU),24809.00,Licences,2223P11_CR00266,26200
Sandwell Metropolitan Borough Council,http://www.sandwell.gov.uk/info/200202/performance_and_spending/1079/payments_over_500,13-Feb-2023,Director of Law & Governance,E4LAW LTD T/A LEXTOX,Assistant Chief Executive (Excl SIU),1052.00,Externally Purchased Professional Services ,2223P11_CR00267,123174
Sandwell Metropolitan Borough Council,http://www.sandwell.gov.uk/info/200202/performance_and_spending/1079/payments_over_500,01-Feb-2023,Director of Law & Governance,ENVIRONMENTAL CONTRACTS LTD,Assistant Chief Executive (Excl SIU),2708.72,Materials & Consumables,2223P11_CR00268,2572
Sandwell Metropolitan Borough Council,http://www.sandwell.gov.uk/info/200202/performance_and_spending/1079/payments_over_500,07-Feb-2023,Director of Law & Governance,EVAC+CHAIR INTERNATIONAL LIMITED,Assistant Chief Executive (Excl SIU),670.00,Equipment & Furniture ,2223P11_CR00269,01523274
Sandwell Metropolitan Borough Council,http://www.sandwell.gov.uk/info/200202/performance_and_spending/1079/payments_over_500,01-Feb-2023,Director of Law & Governance,FACULTATIEVE TECHNOLOGIES LTD,Assistant Chief Executive (Excl SIU),1890.13,Building Maintenance & Improvements,2223P11_CR00270,89268
Sandwell Metropolitan Borough Council,http://www.sandwell.gov.uk/info/200202/performance_and_spending/1079/payments_over_500,01-Feb-2023,Director of Law & Governance,GREENTECH LTD,Assistant Chief Executive (Excl SIU),655.25,Materials & Consumables,2223P11_CR00271,163053
Sandwell Metropolitan Borough Council,http://www.sandwell.gov.uk/info/200202/performance_and_spending/1079/payments_over_500,06-Feb-2023,Director of Law & Governance,ISWP ASSESSMENT SERVICES LTD,Assistant Chief Executive (Excl SIU),1476.45,Externally Purchased Professional Services ,2223P11_CR00272,137138
Sandwell Metropolitan Borough Council,http://www.sandwell.gov.uk/info/200202/performance_and_spending/1079/payments_over_500,01-Feb-2023,Director of Law & Governance,JEWSON LIMITED,Assistant Chief Executive (Excl SIU),6495.00,Materials & Consumables,2223P11_CR00273,01540195
Sandwell Metropolitan Borough Council,http://www.sandwell.gov.uk/info/200202/performance_and_spending/1079/payments_over_500,10-Feb-2023,Director of Law & Governance,LWC DRINKS LIMITED,Assistant Chief Executive (Excl SIU),578.38,Catering Provisions,2223P11_CR00274,122226
Sandwell Metropolitan Borough Council,http://www.sandwell.gov.uk/info/200202/performance_and_spending/1079/payments_over_500,01-Feb-2023,Director of Law & Governance,METACOMPLIANCE LTD,Assistant Chief Executive (Excl SIU),18500.00,Externally Purchased Professional Services ,2223P11_CR00275,147439
Sandwell Metropolitan Borough Council,http://www.sandwell.gov.uk/info/200202/performance_and_spending/1079/payments_over_500,01-Feb-2023,Director of Law & Governance,NATIONAL WESTMINSTER BANK PLC - HM LAND REGISTRY,Assistant Chief Executive (Excl SIU),1924.00,Externally Purchased Professional Services ,2223P11_CR00276,120965
Sandwell Metropolitan Borough Council,http://www.sandwell.gov.uk/info/200202/performance_and_spending/1079/payments_over_500,06-Feb-2023,Director of Law & Governance,PARAMOUNT CARE SOLUTIONS,Assistant Chief Executive (Excl SIU),2600.00,Externally Purchased Professional Services ,2223P11_CR00277,129972
Sandwell Metropolitan Borough Council,http://www.sandwell.gov.uk/info/200202/performance_and_spending/1079/payments_over_500,14-Feb-2023,Director of Law & Governance,QUADIENT UK LTD,Assistant Chief Executive (Excl SIU),500.59,Postages,2223P11_CR00278,93566
Sandwell Metropolitan Borough Council,http://www.sandwell.gov.uk/info/200202/performance_and_spending/1079/payments_over_500,01-Feb-2023,Director of Law & Governance,ROYAL MAIL GROUP LIMITED,Assistant Chief Executive (Excl SIU),1124.04,Postages,2223P11_CR00279,01657985
Sandwell Metropolitan Borough Council,http://www.sandwell.gov.uk/info/200202/performance_and_spending/1079/payments_over_500,03-Feb-2023,Director of Law & Governance,SERCO LIMITED,Assistant Chief Executive (Excl SIU),520.90,Externally Purchased Professional Services ,2223P11_CR00280,53771
Sandwell Metropolitan Borough Council,http://www.sandwell.gov.uk/info/200202/performance_and_spending/1079/payments_over_500,03-Feb-2023,Director of Law & Governance,SERCO LIMITED,Assistant Chief Executive (Excl SIU),583.10,Externally Purchased Professional Services ,2223P11_CR00281,53771
Sandwell Metropolitan Borough Council,http://www.sandwell.gov.uk/info/200202/performance_and_spending/1079/payments_over_500,03-Feb-2023,Director of Law & Governance,SERCO LIMITED,Assistant Chief Executive (Excl SIU),747.10,Externally Purchased Professional Services ,2223P11_CR00282,53771
Sandwell Metropolitan Borough Council,http://www.sandwell.gov.uk/info/200202/performance_and_spending/1079/payments_over_500,03-Feb-2023,Director of Law & Governance,SERCO LIMITED,Assistant Chief Executive (Excl SIU),1012.10,Externally Purchased Professional Services ,2223P11_CR00283,53771
Sandwell Metropolitan Borough Council,http://www.sandwell.gov.uk/info/200202/performance_and_spending/1079/payments_over_500,03-Feb-2023,Director of Law & Governance,SERCO LIMITED,Assistant Chief Executive (Excl SIU),1144.18,Externally Purchased Professional Services ,2223P11_CR00284,53771
Sandwell Metropolitan Borough Council,http://www.sandwell.gov.uk/info/200202/performance_and_spending/1079/payments_over_500,03-Feb-2023,Director of Law & Governance,SERCO LIMITED,Assistant Chief Executive (Excl SIU),1607.84,Externally Purchased Professional Services ,2223P11_CR00285,53771
Sandwell Metropolitan Borough Council,http://www.sandwell.gov.uk/info/200202/performance_and_spending/1079/payments_over_500,01-Feb-2023,Director of Law & Governance,TELESHORE U.K. LTD,Assistant Chief Executive (Excl SIU),2295.00,Materials & Consumables,2223P11_CR00286,01638687
Sandwell Metropolitan Borough Council,http://www.sandwell.gov.uk/info/200202/performance_and_spending/1079/payments_over_500,07-Feb-2023,Director of Law & Governance,TELESHORE U.K. LTD,Assistant Chief Executive (Excl SIU),3010.50,Materials & Consumables,2223P11_CR00287,01638687
Sandwell Metropolitan Borough Council,http://www.sandwell.gov.uk/info/200202/performance_and_spending/1079/payments_over_500,10-Feb-2023,Director of Law & Governance,THORNES THE SOLICITORS,Assistant Chief Executive (Excl SIU),1012.50,Externally Purchased Professional Services ,2223P11_CR00288,137982
Sandwell Metropolitan Borough Council,http://www.sandwell.gov.uk/info/200202/performance_and_spending/1079/payments_over_500,01-Feb-2023,Director of Law & Governance,TROWERS & HAMLINS LLP,Assistant Chief Executive (Excl SIU),2850.00,Externally Purchased Professional Services ,2223P11_CR00289,37198
Sandwell Metropolitan Borough Council,http://www.sandwell.gov.uk/info/200202/performance_and_spending/1079/payments_over_500,10-Feb-2023,Director of Law & Governance,UBIQUS UK LTD,Assistant Chief Executive (Excl SIU),750.00,Externally Purchased Professional Services ,2223P11_CR00290,76474
Sandwell Metropolitan Borough Council,http://www.sandwell.gov.uk/info/200202/performance_and_spending/1079/payments_over_500,01-Feb-2023,Director of Law & Governance,VIVEDIA LTD,Assistant Chief Executive (Excl SIU),1386.00,Building Maintenance & Improvements,2223P11_CR00291,141990
Sandwell Metropolitan Borough Council,http://www.sandwell.gov.uk/info/200202/performance_and_spending/1079/payments_over_500,01-Feb-2023,Director of Law & Governance,VIVEDIA LTD,Assistant Chief Executive (Excl SIU),3821.00,Building Maintenance & Improvements,2223P11_CR00292,141990
Sandwell Metropolitan Borough Council,http://www.sandwell.gov.uk/info/200202/performance_and_spending/1079/payments_over_500,20-Feb-2023,Director of Law & Governance,REDACTED PERSONAL DATA,Assistant Chief Executive (Excl SIU),6382.00,Bereavement Expenses,2223P11_CR00293,REDACTED PERSONAL DATA
Sandwell Metropolitan Borough Council,http://www.sandwell.gov.uk/info/200202/performance_and_spending/1079/payments_over_500,01-Feb-2023,Director of Law & Governance,CATHERINE ROWLANDS,Assistant Chief Executive (Excl SIU),1000.00,Externally Purchased Professional Services ,2223P11_CR00294,01680147
Sandwell Metropolitan Borough Council,http://www.sandwell.gov.uk/info/200202/performance_and_spending/1079/payments_over_500,01-Feb-2023,Director of Law & Governance,DR B A ANDREOU,Assistant Chief Executive (Excl SIU),2052.00,Externally Purchased Professional Services ,2223P11_CR00295,13025425
Sandwell Metropolitan Borough Council,http://www.sandwell.gov.uk/info/200202/performance_and_spending/1079/payments_over_500,01-Feb-2023,Director of Law & Governance,DR JOHN DUNCAN MIDDLETON,Assistant Chief Executive (Excl SIU),1653.00,Externally Purchased Professional Services ,2223P11_CR00296,118186
Sandwell Metropolitan Borough Council,http://www.sandwell.gov.uk/info/200202/performance_and_spending/1079/payments_over_500,01-Feb-2023,Director of Law & Governance,DR TONY COLLINS,Assistant Chief Executive (Excl SIU),1995.00,Externally Purchased Professional Services ,2223P11_CR00297,119994
Sandwell Metropolitan Borough Council,http://www.sandwell.gov.uk/info/200202/performance_and_spending/1079/payments_over_500,10-Feb-2023,Director of Law & Governance,FAYE EDWARDS,Assistant Chief Executive (Excl SIU),1250.00,Externally Purchased Professional Services ,2223P11_CR00298,165305
Sandwell Metropolitan Borough Council,http://www.sandwell.gov.uk/info/200202/performance_and_spending/1079/payments_over_500,06-Feb-2023,Director of Law & Governance,JONATHAN BOTT,Assistant Chief Executive (Excl SIU),1200.00,Externally Purchased Professional Services ,2223P11_CR00299,125485
Sandwell Metropolitan Borough Council,http://www.sandwell.gov.uk/info/200202/performance_and_spending/1079/payments_over_500,01-Feb-2023,Director of Law & Governance,LEE PARKHILL,Assistant Chief Executive (Excl SIU),750.00,Externally Purchased Professional Services ,2223P11_CR00300,130565
Sandwell Metropolitan Borough Council,http://www.sandwell.gov.uk/info/200202/performance_and_spending/1079/payments_over_500,03-Feb-2023,Director of Law & Governance,MARK JACKSON,Assistant Chief Executive (Excl SIU),2250.00,Externally Purchased Professional Services ,2223P11_CR00301,79150
Sandwell Metropolitan Borough Council,http://www.sandwell.gov.uk/info/200202/performance_and_spending/1079/payments_over_500,01-Feb-2023,Director of Law & Governance,MARTIN HUTCHINGS,Director of Law & Governance,825.00,Externally Purchased Professional Services ,2223P11_CR00302,123035
Sandwell Metropolitan Borough Council,http://www.sandwell.gov.uk/info/200202/performance_and_spending/1079/payments_over_500,01-Feb-2023,Director of Law & Governance,MICHAEL SINGLETON,Assistant Chief Executive (Excl SIU),1000.00,Externally Purchased Professional Services ,2223P11_CR00303,45301
Sandwell Metropolitan Borough Council,http://www.sandwell.gov.uk/info/200202/performance_and_spending/1079/payments_over_500,01-Feb-2023,Director of Law & Governance,NEIL CURTIS,Assistant Chief Executive (Excl SIU),1000.00,Bereavement Expenses,2223P11_CR00304,165142
Sandwell Metropolitan Borough Council,http://www.sandwell.gov.uk/info/200202/performance_and_spending/1079/payments_over_500,10-Feb-2023,Director of Law & Governance,VICTORIA CLIFFORD,Assistant Chief Executive (Excl SIU),1050.00,Externally Purchased Professional Services ,2223P11_CR00305,50862
Sandwell Metropolitan Borough Council,http://www.sandwell.gov.uk/info/200202/performance_and_spending/1079/payments_over_500,03-Feb-2023,FINANCE (Inc SIU),AMIN HAQUE LTD CLIENT,Assistant Chief Executive (Excl SIU),1050.00,Insurance,2223P11_CR00306,164603
Sandwell Metropolitan Borough Council,http://www.sandwell.gov.uk/info/200202/performance_and_spending/1079/payments_over_500,13-Feb-2023,FINANCE (Inc SIU),BAKER REIGN CLIENT ACCOUNT,Assistant Chief Executive (Excl SIU),1200.00,Insurance,2223P11_CR00307,165298
Sandwell Metropolitan Borough Council,http://www.sandwell.gov.uk/info/200202/performance_and_spending/1079/payments_over_500,13-Feb-2023,FINANCE (Inc SIU),BAKER REIGN CLIENT ACCOUNT,Assistant Chief Executive (Excl SIU),3900.00,Insurance,2223P11_CR00308,165298
Sandwell Metropolitan Borough Council,http://www.sandwell.gov.uk/info/200202/performance_and_spending/1079/payments_over_500,23-Feb-2023,FINANCE (Inc SIU),BOND TURNER,Assistant Chief Executive (Excl SIU),792.38,Insurance,2223P11_CR00309,152400
Sandwell Metropolitan Borough Council,http://www.sandwell.gov.uk/info/200202/performance_and_spending/1079/payments_over_500,10-Feb-2023,FINANCE (Inc SIU),BOND TURNER,Assistant Chief Executive (Excl SIU),1000.00,Insurance,2223P11_CR00310,152400
Sandwell Metropolitan Borough Council,http://www.sandwell.gov.uk/info/200202/performance_and_spending/1079/payments_over_500,02-Feb-2023,FINANCE (Inc SIU),BOND TURNER,Assistant Chief Executive (Excl SIU),1000.00,Insurance,2223P11_CR00311,152400
Sandwell Metropolitan Borough Council,http://www.sandwell.gov.uk/info/200202/performance_and_spending/1079/payments_over_500,27-Feb-2023,FINANCE (Inc SIU),BOND TURNER,Assistant Chief Executive (Excl SIU),1975.00,Insurance,2223P11_CR00312,152400
Sandwell Metropolitan Borough Council,http://www.sandwell.gov.uk/info/200202/performance_and_spending/1079/payments_over_500,10-Feb-2023,FINANCE (Inc SIU),BOND TURNER,Assistant Chief Executive (Excl SIU),5000.00,Insurance,2223P11_CR00313,152400
Sandwell Metropolitan Borough Council,http://www.sandwell.gov.uk/info/200202/performance_and_spending/1079/payments_over_500,22-Feb-2023,FINANCE (Inc SIU),BOND TURNER,Assistant Chief Executive (Excl SIU),8000.00,Insurance,2223P11_CR00314,152400
Sandwell Metropolitan Borough Council,http://www.sandwell.gov.uk/info/200202/performance_and_spending/1079/payments_over_500,01-Feb-2023,FINANCE (Inc SIU),BROWNE JACOBSON LLP,Assistant Chief Executive (Excl SIU),523.90,Externally Purchased Professional Services ,2223P11_CR00315,109574
Sandwell Metropolitan Borough Council,http://www.sandwell.gov.uk/info/200202/performance_and_spending/1079/payments_over_500,01-Feb-2023,FINANCE (Inc SIU),BROWNE JACOBSON LLP,Assistant Chief Executive (Excl SIU),523.90,Externally Purchased Professional Services ,2223P11_CR00316,109574
Sandwell Metropolitan Borough Council,http://www.sandwell.gov.uk/info/200202/performance_and_spending/1079/payments_over_500,01-Feb-2023,FINANCE (Inc SIU),BROWNE JACOBSON LLP,Assistant Chief Executive (Excl SIU),557.70,Externally Purchased Professional Services ,2223P11_CR00317,109574
Sandwell Metropolitan Borough Council,http://www.sandwell.gov.uk/info/200202/performance_and_spending/1079/payments_over_500,01-Feb-2023,FINANCE (Inc SIU),BROWNE JACOBSON LLP,Assistant Chief Executive (Excl SIU),676.00,Externally Purchased Professional Services ,2223P11_CR00318,109574
Sandwell Metropolitan Borough Council,http://www.sandwell.gov.uk/info/200202/performance_and_spending/1079/payments_over_500,01-Feb-2023,FINANCE (Inc SIU),BROWNE JACOBSON LLP,Assistant Chief Executive (Excl SIU),743.60,Externally Purchased Professional Services ,2223P11_CR00319,109574
Sandwell Metropolitan Borough Council,http://www.sandwell.gov.uk/info/200202/performance_and_spending/1079/payments_over_500,01-Feb-2023,FINANCE (Inc SIU),BROWNE JACOBSON LLP,Assistant Chief Executive (Excl SIU),777.40,Externally Purchased Professional Services ,2223P11_CR00320,109574
Sandwell Metropolitan Borough Council,http://www.sandwell.gov.uk/info/200202/performance_and_spending/1079/payments_over_500,01-Feb-2023,FINANCE (Inc SIU),BROWNE JACOBSON LLP,Assistant Chief Executive (Excl SIU),794.30,Externally Purchased Professional Services ,2223P11_CR00321,109574
Sandwell Metropolitan Borough Council,http://www.sandwell.gov.uk/info/200202/performance_and_spending/1079/payments_over_500,01-Feb-2023,FINANCE (Inc SIU),BROWNE JACOBSON LLP,Assistant Chief Executive (Excl SIU),878.80,Externally Purchased Professional Services ,2223P11_CR00322,109574
Sandwell Metropolitan Borough Council,http://www.sandwell.gov.uk/info/200202/performance_and_spending/1079/payments_over_500,01-Feb-2023,FINANCE (Inc SIU),BROWNE JACOBSON LLP,Assistant Chief Executive (Excl SIU),878.80,Externally Purchased Professional Services ,2223P11_CR00323,109574
Sandwell Metropolitan Borough Council,http://www.sandwell.gov.uk/info/200202/performance_and_spending/1079/payments_over_500,01-Feb-2023,FINANCE (Inc SIU),BROWNE JACOBSON LLP,Assistant Chief Executive (Excl SIU),912.60,Externally Purchased Professional Services ,2223P11_CR00324,109574
Sandwell Metropolitan Borough Council,http://www.sandwell.gov.uk/info/200202/performance_and_spending/1079/payments_over_500,01-Feb-2023,FINANCE (Inc SIU),BROWNE JACOBSON LLP,Assistant Chief Executive (Excl SIU),1030.90,Externally Purchased Professional Services ,2223P11_CR00325,109574
Sandwell Metropolitan Borough Council,http://www.sandwell.gov.uk/info/200202/performance_and_spending/1079/payments_over_500,01-Feb-2023,FINANCE (Inc SIU),BROWNE JACOBSON LLP,Assistant Chief Executive (Excl SIU),1098.50,Externally Purchased Professional Services ,2223P11_CR00326,109574
Sandwell Metropolitan Borough Council,http://www.sandwell.gov.uk/info/200202/performance_and_spending/1079/payments_over_500,01-Feb-2023,FINANCE (Inc SIU),BROWNE JACOBSON LLP,Assistant Chief Executive (Excl SIU),1098.50,Externally Purchased Professional Services ,2223P11_CR00327,109574
Sandwell Metropolitan Borough Council,http://www.sandwell.gov.uk/info/200202/performance_and_spending/1079/payments_over_500,16-Feb-2023,FINANCE (Inc SIU),BROWNE JACOBSON LLP,Assistant Chief Executive (Excl SIU),1119.70,Externally Purchased Professional Services ,2223P11_CR00328,109574
Sandwell Metropolitan Borough Council,http://www.sandwell.gov.uk/info/200202/performance_and_spending/1079/payments_over_500,01-Feb-2023,FINANCE (Inc SIU),BROWNE JACOBSON LLP,Assistant Chief Executive (Excl SIU),1132.30,Externally Purchased Professional Services ,2223P11_CR00329,109574
Sandwell Metropolitan Borough Council,http://www.sandwell.gov.uk/info/200202/performance_and_spending/1079/payments_over_500,01-Feb-2023,FINANCE (Inc SIU),BROWNE JACOBSON LLP,Assistant Chief Executive (Excl SIU),1149.20,Externally Purchased Professional Services ,2223P11_CR00330,109574
Sandwell Metropolitan Borough Council,http://www.sandwell.gov.uk/info/200202/performance_and_spending/1079/payments_over_500,01-Feb-2023,FINANCE (Inc SIU),BROWNE JACOBSON LLP,Assistant Chief Executive (Excl SIU),1182.90,Externally Purchased Professional Services ,2223P11_CR00331,109574
Sandwell Metropolitan Borough Council,http://www.sandwell.gov.uk/info/200202/performance_and_spending/1079/payments_over_500,01-Feb-2023,FINANCE (Inc SIU),BROWNE JACOBSON LLP,Assistant Chief Executive (Excl SIU),1409.60,Externally Purchased Professional Services ,2223P11_CR00332,109574
Sandwell Metropolitan Borough Council,http://www.sandwell.gov.uk/info/200202/performance_and_spending/1079/payments_over_500,01-Feb-2023,FINANCE (Inc SIU),BROWNE JACOBSON LLP,Assistant Chief Executive (Excl SIU),1474.60,Externally Purchased Professional Services ,2223P11_CR00333,109574
Sandwell Metropolitan Borough Council,http://www.sandwell.gov.uk/info/200202/performance_and_spending/1079/payments_over_500,02-Feb-2023,FINANCE (Inc SIU),BROWNE JACOBSON LLP,Assistant Chief Executive (Excl SIU),1950.00,Externally Purchased Professional Services ,2223P11_CR00334,109574
Sandwell Metropolitan Borough Council,http://www.sandwell.gov.uk/info/200202/performance_and_spending/1079/payments_over_500,01-Feb-2023,FINANCE (Inc SIU),BROWNE JACOBSON LLP,Assistant Chief Executive (Excl SIU),2293.60,Externally Purchased Professional Services ,2223P11_CR00335,109574
Sandwell Metropolitan Borough Council,http://www.sandwell.gov.uk/info/200202/performance_and_spending/1079/payments_over_500,14-Feb-2023,FINANCE (Inc SIU),BROWNE JACOBSON LLP,Assistant Chief Executive (Excl SIU),8250.00,Externally Purchased Professional Services ,2223P11_CR00336,109574
Sandwell Metropolitan Borough Council,http://www.sandwell.gov.uk/info/200202/performance_and_spending/1079/payments_over_500,03-Feb-2023,FINANCE (Inc SIU),BROWNE JACOBSON LLP,Assistant Chief Executive (Excl SIU),8926.50,Externally Purchased Professional Services ,2223P11_CR00337,109574
Sandwell Metropolitan Borough Council,http://www.sandwell.gov.uk/info/200202/performance_and_spending/1079/payments_over_500,10-Feb-2023,FINANCE (Inc SIU),BROWNE JACOBSON LLP,Assistant Chief Executive (Excl SIU),1750.00,Insurance,2223P11_CR00338,109574
Sandwell Metropolitan Borough Council,http://www.sandwell.gov.uk/info/200202/performance_and_spending/1079/payments_over_500,03-Feb-2023,FINANCE (Inc SIU),DRISCOLL KINGSTON SOLICITORS,Assistant Chief Executive (Excl SIU),1500.00,Insurance,2223P11_CR00339,140883
Sandwell Metropolitan Borough Council,http://www.sandwell.gov.uk/info/200202/performance_and_spending/1079/payments_over_500,07-Feb-2023,FINANCE (Inc SIU),GOWING LAW SOLICITORS,Assistant Chief Executive (Excl SIU),500.00,Insurance,2223P11_CR00340,163069
Sandwell Metropolitan Borough Council,http://www.sandwell.gov.uk/info/200202/performance_and_spending/1079/payments_over_500,20-Feb-2023,FINANCE (Inc SIU),GOWING LAW SOLICITORS,Assistant Chief Executive (Excl SIU),500.00,Insurance,2223P11_CR00341,163069
Sandwell Metropolitan Borough Council,http://www.sandwell.gov.uk/info/200202/performance_and_spending/1079/payments_over_500,03-Feb-2023,FINANCE (Inc SIU),GOWING LAW SOLICITORS,Assistant Chief Executive (Excl SIU),1000.00,Insurance,2223P11_CR00342,163069
Sandwell Metropolitan Borough Council,http://www.sandwell.gov.uk/info/200202/performance_and_spending/1079/payments_over_500,20-Feb-2023,FINANCE (Inc SIU),GOWING LAW SOLICITORS,Assistant Chief Executive (Excl SIU),1062.00,Insurance,2223P11_CR00343,163069
Sandwell Metropolitan Borough Council,http://www.sandwell.gov.uk/info/200202/performance_and_spending/1079/payments_over_500,27-Feb-2023,FINANCE (Inc SIU),GOWING LAW SOLICITORS,Assistant Chief Executive (Excl SIU),1200.00,Insurance,2223P11_CR00344,163069
Sandwell Metropolitan Borough Council,http://www.sandwell.gov.uk/info/200202/performance_and_spending/1079/payments_over_500,07-Feb-2023,FINANCE (Inc SIU),GOWING LAW SOLICITORS,Assistant Chief Executive (Excl SIU),1212.00,Insurance,2223P11_CR00345,163069
Sandwell Metropolitan Borough Council,http://www.sandwell.gov.uk/info/200202/performance_and_spending/1079/payments_over_500,20-Feb-2023,FINANCE (Inc SIU),GOWING LAW SOLICITORS,Assistant Chief Executive (Excl SIU),1232.03,Insurance,2223P11_CR00346,163069
Sandwell Metropolitan Borough Council,http://www.sandwell.gov.uk/info/200202/performance_and_spending/1079/payments_over_500,16-Feb-2023,FINANCE (Inc SIU),GOWING LAW SOLICITORS,Assistant Chief Executive (Excl SIU),2322.99,Insurance,2223P11_CR00347,163069
Sandwell Metropolitan Borough Council,http://www.sandwell.gov.uk/info/200202/performance_and_spending/1079/payments_over_500,27-Feb-2023,FINANCE (Inc SIU),MATRIX SOLICITORS,Assistant Chief Executive (Excl SIU),800.00,Insurance,2223P11_CR00348,150465
Sandwell Metropolitan Borough Council,http://www.sandwell.gov.uk/info/200202/performance_and_spending/1079/payments_over_500,02-Feb-2023,FINANCE (Inc SIU),MATRIX SOLICITORS,Assistant Chief Executive (Excl SIU),1000.00,Insurance,2223P11_CR00349,150465
Sandwell Metropolitan Borough Council,http://www.sandwell.gov.uk/info/200202/performance_and_spending/1079/payments_over_500,23-Feb-2023,FINANCE (Inc SIU),MATRIX SOLICITORS,Assistant Chief Executive (Excl SIU),1500.00,Insurance,2223P11_CR00350,150465
Sandwell Metropolitan Borough Council,http://www.sandwell.gov.uk/info/200202/performance_and_spending/1079/payments_over_500,17-Feb-2023,FINANCE (Inc SIU),MATRIX SOLICITORS,Assistant Chief Executive (Excl SIU),2000.00,Insurance,2223P11_CR00351,150465
Sandwell Metropolitan Borough Council,http://www.sandwell.gov.uk/info/200202/performance_and_spending/1079/payments_over_500,09-Feb-2023,FINANCE (Inc SIU),MATRIX SOLICITORS,Assistant Chief Executive (Excl SIU),2000.00,Insurance,2223P11_CR00352,150465
Sandwell Metropolitan Borough Council,http://www.sandwell.gov.uk/info/200202/performance_and_spending/1079/payments_over_500,17-Feb-2023,FINANCE (Inc SIU),MATRIX SOLICITORS,Assistant Chief Executive (Excl SIU),2000.00,Insurance,2223P11_CR00353,150465
Sandwell Metropolitan Borough Council,http://www.sandwell.gov.uk/info/200202/performance_and_spending/1079/payments_over_500,02-Feb-2023,FINANCE (Inc SIU),MATRIX SOLICITORS,Assistant Chief Executive (Excl SIU),3000.00,Insurance,2223P11_CR00354,150465
Sandwell Metropolitan Borough Council,http://www.sandwell.gov.uk/info/200202/performance_and_spending/1079/payments_over_500,13-Feb-2023,FINANCE (Inc SIU),MATRIX SOLICITORS,Assistant Chief Executive (Excl SIU),4020.00,Insurance,2223P11_CR00355,150465
Sandwell Metropolitan Borough Council,http://www.sandwell.gov.uk/info/200202/performance_and_spending/1079/payments_over_500,09-Feb-2023,FINANCE (Inc SIU),MATRIX SOLICITORS,Assistant Chief Executive (Excl SIU),5000.00,Insurance,2223P11_CR00356,150465
Sandwell Metropolitan Borough Council,http://www.sandwell.gov.uk/info/200202/performance_and_spending/1079/payments_over_500,17-Feb-2023,FINANCE (Inc SIU),MATRIX SOLICITORS,Assistant Chief Executive (Excl SIU),6000.00,Insurance,2223P11_CR00357,150465
Sandwell Metropolitan Borough Council,http://www.sandwell.gov.uk/info/200202/performance_and_spending/1079/payments_over_500,07-Feb-2023,FINANCE (Inc SIU),MATRIX SOLICITORS,Assistant Chief Executive (Excl SIU),7000.00,Insurance,2223P11_CR00358,150465
Sandwell Metropolitan Borough Council,http://www.sandwell.gov.uk/info/200202/performance_and_spending/1079/payments_over_500,02-Feb-2023,FINANCE (Inc SIU),MATRIX SOLICITORS,Assistant Chief Executive (Excl SIU),8250.00,Insurance,2223P11_CR00359,150465
Sandwell Metropolitan Borough Council,http://www.sandwell.gov.uk/info/200202/performance_and_spending/1079/payments_over_500,22-Feb-2023,FINANCE (Inc SIU),MATRIX SOLICITORS,Assistant Chief Executive (Excl SIU),8500.00,Insurance,2223P11_CR00360,150465
Sandwell Metropolitan Borough Council,http://www.sandwell.gov.uk/info/200202/performance_and_spending/1079/payments_over_500,10-Feb-2023,FINANCE (Inc SIU),NICHOLSON JONES SUTTON SOLICITORS,Assistant Chief Executive (Excl SIU),5000.00,Insurance,2223P11_CR00361,165032
Sandwell Metropolitan Borough Council,http://www.sandwell.gov.uk/info/200202/performance_and_spending/1079/payments_over_500,23-Feb-2023,FINANCE (Inc SIU),PROGRESS LAW,Assistant Chief Executive (Excl SIU),3000.00,Insurance,2223P11_CR00362,164592
Sandwell Metropolitan Borough Council,http://www.sandwell.gov.uk/info/200202/performance_and_spending/1079/payments_over_500,20-Feb-2023,FINANCE (Inc SIU),PROWSE PHILLIPS LAW LTD,Assistant Chief Executive (Excl SIU),5500.00,Insurance,2223P11_CR00363,151583
Sandwell Metropolitan Borough Council,http://www.sandwell.gov.uk/info/200202/performance_and_spending/1079/payments_over_500,27-Feb-2023,FINANCE (Inc SIU),ROBERT BINGHAM LTD,Assistant Chief Executive (Excl SIU),2000.00,Insurance,2223P11_CR00364,164179
Sandwell Metropolitan Borough Council,http://www.sandwell.gov.uk/info/200202/performance_and_spending/1079/payments_over_500,27-Feb-2023,FINANCE (Inc SIU),ROBERT BINGHAM LTD,Assistant Chief Executive (Excl SIU),4500.00,Insurance,2223P11_CR00365,164179
Sandwell Metropolitan Borough Council,http://www.sandwell.gov.uk/info/200202/performance_and_spending/1079/payments_over_500,16-Feb-2023,FINANCE (Inc SIU),ROBERT BINGHAM LTD,Assistant Chief Executive (Excl SIU),4500.00,Insurance,2223P11_CR00366,164179
Sandwell Metropolitan Borough Council,http://www.sandwell.gov.uk/info/200202/performance_and_spending/1079/payments_over_500,03-Feb-2023,FINANCE (Inc SIU),SATCHELL MORAN SOLICITORS,Assistant Chief Executive (Excl SIU),7500.00,Insurance,2223P11_CR00367,154265
Sandwell Metropolitan Borough Council,http://www.sandwell.gov.uk/info/200202/performance_and_spending/1079/payments_over_500,27-Feb-2023,FINANCE (Inc SIU),SBW LAW LIMITED,Assistant Chief Executive (Excl SIU),500.00,Insurance,2223P11_CR00368,149404
Sandwell Metropolitan Borough Council,http://www.sandwell.gov.uk/info/200202/performance_and_spending/1079/payments_over_500,27-Feb-2023,FINANCE (Inc SIU),SBW LAW LIMITED,Assistant Chief Executive (Excl SIU),3250.00,Insurance,2223P11_CR00369,149404
Sandwell Metropolitan Borough Council,http://www.sandwell.gov.uk/info/200202/performance_and_spending/1079/payments_over_500,16-Feb-2023,FINANCE (Inc SIU),SEDGWICK INTERNATIONAL UK ,Assistant Chief Executive (Excl SIU),1975.00,Externally Purchased Professional Services ,2223P11_CR00370,136510
Sandwell Metropolitan Borough Council,http://www.sandwell.gov.uk/info/200202/performance_and_spending/1079/payments_over_500,10-Feb-2023,FINANCE (Inc SIU),REDACTED PERSONAL DATA,Assistant Chief Executive (Excl SIU),5645.40,Insurance,2223P11_CR00371,REDACTED PERSONAL DATA
Sandwell Metropolitan Borough Council,http://www.sandwell.gov.uk/info/200202/performance_and_spending/1079/payments_over_500,22-Feb-2023,FINANCE (Inc SIU),REDACTED PERSONAL DATA,Assistant Chief Executive (Excl SIU),4000.00,Insurance,2223P11_CR00372,REDACTED PERSONAL DATA
Sandwell Metropolitan Borough Council,http://www.sandwell.gov.uk/info/200202/performance_and_spending/1079/payments_over_500,13-Feb-2023,FINANCE (Inc SIU),REDACTED PERSONAL DATA,Assistant Chief Executive (Excl SIU),750.00,Insurance,2223P11_CR00373,REDACTED PERSONAL DATA
Sandwell Metropolitan Borough Council,http://www.sandwell.gov.uk/info/200202/performance_and_spending/1079/payments_over_500,16-Feb-2023,FINANCE (Inc SIU),REDACTED PERSONAL DATA,Assistant Chief Executive (Excl SIU),506.40,Insurance,2223P11_CR00374,REDACTED PERSONAL DATA
Sandwell Metropolitan Borough Council,http://www.sandwell.gov.uk/info/200202/performance_and_spending/1079/payments_over_500,07-Feb-2023,FINANCE (Inc SIU),REDACTED PERSONAL DATA,Assistant Chief Executive (Excl SIU),1250.00,Insurance,2223P11_CR00375,REDACTED PERSONAL DATA
Sandwell Metropolitan Borough Council,http://www.sandwell.gov.uk/info/200202/performance_and_spending/1079/payments_over_500,14-Feb-2023,FINANCE (Inc SIU),REDACTED PERSONAL DATA,Assistant Chief Executive (Excl SIU),800.00,Insurance,2223P11_CR00376,REDACTED PERSONAL DATA
Sandwell Metropolitan Borough Council,http://www.sandwell.gov.uk/info/200202/performance_and_spending/1079/payments_over_500,27-Feb-2023,FINANCE (Inc SIU),REDACTED PERSONAL DATA,Assistant Chief Executive (Excl SIU),2648.80,Insurance,2223P11_CR00377,REDACTED PERSONAL DATA
Sandwell Metropolitan Borough Council,http://www.sandwell.gov.uk/info/200202/performance_and_spending/1079/payments_over_500,01-Feb-2023,FINANCE (Inc SIU),BIRMINGHAM CHILDRENS HOSPITAL NHS TRUST,Assistant Chief Executive (Excl SIU),-1210.22,Bereavement Expenses,2223P11_CR00378,01748491
Sandwell Metropolitan Borough Council,http://www.sandwell.gov.uk/info/200202/performance_and_spending/1079/payments_over_500,02-Feb-2023,FINANCE (Inc SIU),HAYS SPECIALIST RECRUITMENT LTD,Assistant Chief Executive (Excl SIU),-991.38,Agency Staff,2223P11_CR00379,80349
Sandwell Metropolitan Borough Council,http://www.sandwell.gov.uk/info/200202/performance_and_spending/1079/payments_over_500,01-Feb-2023,FINANCE (Inc SIU),HAYS SPECIALIST RECRUITMENT LTD,Assistant Chief Executive (Excl SIU),-849.98,Agency Staff,2223P11_CR00380,80349
Sandwell Metropolitan Borough Council,http://www.sandwell.gov.uk/info/200202/performance_and_spending/1079/payments_over_500,15-Feb-2023,FINANCE (Inc SIU),ACCOUNTANT GENERAL OF THE SENIOR COURT,Assistant Chief Executive (Excl SIU),20000.00,Insurance,2223P11_CR00381,5091
Sandwell Metropolitan Borough Council,http://www.sandwell.gov.uk/info/200202/performance_and_spending/1079/payments_over_500,15-Feb-2023,FINANCE (Inc SIU),ACCOUNTANT GENERAL OF THE SENIOR COURT,Assistant Chief Executive (Excl SIU),47500.00,Insurance,2223P11_CR00382,5091
Sandwell Metropolitan Borough Council,http://www.sandwell.gov.uk/info/200202/performance_and_spending/1079/payments_over_500,01-Feb-2023,FINANCE (Inc SIU),ADVANCED VISUALISATION TECHNOLOGIES LTD T/A DIGITAL AUTOPSY UK,Assistant Chief Executive (Excl SIU),8568.00,Bereavement Expenses,2223P11_CR00383,164897
Sandwell Metropolitan Borough Council,http://www.sandwell.gov.uk/info/200202/performance_and_spending/1079/payments_over_500,06-Feb-2023,FINANCE (Inc SIU),ALPHATEC SOFTWARE LTD,Assistant Chief Executive (Excl SIU),8357.00,Externally Purchased Professional Services ,2223P11_CR00384,137296
Sandwell Metropolitan Borough Council,http://www.sandwell.gov.uk/info/200202/performance_and_spending/1079/payments_over_500,01-Feb-2023,FINANCE (Inc SIU),ANALYTICAL SERVICES INTERNATIONAL LTD,Assistant Chief Executive (Excl SIU),2740.00,Bereavement Expenses,2223P11_CR00385,141474
Sandwell Metropolitan Borough Council,http://www.sandwell.gov.uk/info/200202/performance_and_spending/1079/payments_over_500,01-Feb-2023,FINANCE (Inc SIU),BCH PROPERTY LIMITED,Childrens Services,784.00,Rents,2223P11_CR00386,01011861
Sandwell Metropolitan Borough Council,http://www.sandwell.gov.uk/info/200202/performance_and_spending/1079/payments_over_500,01-Feb-2023,FINANCE (Inc SIU),BCH PROPERTY LIMITED,Childrens Services,933.52,Rents,2223P11_CR00387,01011861
Sandwell Metropolitan Borough Council,http://www.sandwell.gov.uk/info/200202/performance_and_spending/1079/payments_over_500,01-Feb-2023,FINANCE (Inc SIU),BCH PROPERTY LIMITED,Childrens Services,1166.76,Rents,2223P11_CR00388,01011861
Sandwell Metropolitan Borough Council,http://www.sandwell.gov.uk/info/200202/performance_and_spending/1079/payments_over_500,01-Feb-2023,FINANCE (Inc SIU),BCH PROPERTY LIMITED,Childrens Services,1166.76,Rents,2223P11_CR00389,01011861
Sandwell Metropolitan Borough Council,http://www.sandwell.gov.uk/info/200202/performance_and_spending/1079/payments_over_500,01-Feb-2023,FINANCE (Inc SIU),BCH PROPERTY LIMITED,Childrens Services,1166.76,Rents,2223P11_CR00390,01011861
Sandwell Metropolitan Borough Council,http://www.sandwell.gov.uk/info/200202/performance_and_spending/1079/payments_over_500,01-Feb-2023,FINANCE (Inc SIU),BCH PROPERTY LIMITED,Childrens Services,1283.52,Rents,2223P11_CR00391,01011861
Sandwell Metropolitan Borough Council,http://www.sandwell.gov.uk/info/200202/performance_and_spending/1079/payments_over_500,01-Feb-2023,FINANCE (Inc SIU),BCH PROPERTY LIMITED,Childrens Services,1283.52,Rents,2223P11_CR00392,01011861
Sandwell Metropolitan Borough Council,http://www.sandwell.gov.uk/info/200202/performance_and_spending/1079/payments_over_500,01-Feb-2023,FINANCE (Inc SIU),BCH PROPERTY LIMITED,Childrens Services,1283.52,Rents,2223P11_CR00393,01011861
Sandwell Metropolitan Borough Council,http://www.sandwell.gov.uk/info/200202/performance_and_spending/1079/payments_over_500,01-Feb-2023,FINANCE (Inc SIU),BCH PROPERTY LIMITED,Childrens Services,1568.00,Rents,2223P11_CR00394,01011861
Sandwell Metropolitan Borough Council,http://www.sandwell.gov.uk/info/200202/performance_and_spending/1079/payments_over_500,01-Feb-2023,FINANCE (Inc SIU),BCH PROPERTY LIMITED,Childrens Services,1568.00,Rents,2223P11_CR00395,01011861
Sandwell Metropolitan Borough Council,http://www.sandwell.gov.uk/info/200202/performance_and_spending/1079/payments_over_500,01-Feb-2023,FINANCE (Inc SIU),BIRMINGHAM CHILDRENS HOSPITAL NHS TRUST,Assistant Chief Executive (Excl SIU),1210.22,Bereavement Expenses,2223P11_CR00396,01748491
Sandwell Metropolitan Borough Council,http://www.sandwell.gov.uk/info/200202/performance_and_spending/1079/payments_over_500,14-Feb-2023,FINANCE (Inc SIU),BIRMINGHAM CHILDRENS HOSPITAL NHS TRUST,Assistant Chief Executive (Excl SIU),1224.00,Bereavement Expenses,2223P11_CR00397,01748491
Sandwell Metropolitan Borough Council,http://www.sandwell.gov.uk/info/200202/performance_and_spending/1079/payments_over_500,07-Feb-2023,FINANCE (Inc SIU),BIRMINGHAM CHILDRENS HOSPITAL NHS TRUST,Assistant Chief Executive (Excl SIU),1292.00,Bereavement Expenses,2223P11_CR00398,01748491
Sandwell Metropolitan Borough Council,http://www.sandwell.gov.uk/info/200202/performance_and_spending/1079/payments_over_500,07-Feb-2023,FINANCE (Inc SIU),BIRMINGHAM CHILDRENS HOSPITAL NHS TRUST,Assistant Chief Executive (Excl SIU),1372.43,Bereavement Expenses,2223P11_CR00399,01748491
Sandwell Metropolitan Borough Council,http://www.sandwell.gov.uk/info/200202/performance_and_spending/1079/payments_over_500,15-Feb-2023,FINANCE (Inc SIU),BWR RECRUITMENT LTD TA TOTAL SOCIAL,Assistant Chief Executive (Excl SIU),1014.80,Agency Staff,2223P11_CR00400,162923
Sandwell Metropolitan Borough Council,http://www.sandwell.gov.uk/info/200202/performance_and_spending/1079/payments_over_500,01-Feb-2023,FINANCE (Inc SIU),BWR RECRUITMENT LTD TA TOTAL SOCIAL,Assistant Chief Executive (Excl SIU),1191.40,Agency Staff,2223P11_CR00401,162923
Sandwell Metropolitan Borough Council,http://www.sandwell.gov.uk/info/200202/performance_and_spending/1079/payments_over_500,15-Feb-2023,FINANCE (Inc SIU),BWR RECRUITMENT LTD TA TOTAL SOCIAL,Assistant Chief Executive (Excl SIU),1191.40,Agency Staff,2223P11_CR00402,162923
Sandwell Metropolitan Borough Council,http://www.sandwell.gov.uk/info/200202/performance_and_spending/1079/payments_over_500,01-Feb-2023,FINANCE (Inc SIU),BWR RECRUITMENT LTD TA TOTAL SOCIAL,Assistant Chief Executive (Excl SIU),1191.40,Agency Staff,2223P11_CR00403,162923
Sandwell Metropolitan Borough Council,http://www.sandwell.gov.uk/info/200202/performance_and_spending/1079/payments_over_500,01-Feb-2023,FINANCE (Inc SIU),BWR RECRUITMENT LTD TA TOTAL SOCIAL,Assistant Chief Executive (Excl SIU),1191.40,Agency Staff,2223P11_CR00404,162923
Sandwell Metropolitan Borough Council,http://www.sandwell.gov.uk/info/200202/performance_and_spending/1079/payments_over_500,01-Feb-2023,FINANCE (Inc SIU),BWR RECRUITMENT LTD TA TOTAL SOCIAL,Assistant Chief Executive (Excl SIU),1272.80,Agency Staff,2223P11_CR00405,162923
Sandwell Metropolitan Borough Council,http://www.sandwell.gov.uk/info/200202/performance_and_spending/1079/payments_over_500,01-Feb-2023,FINANCE (Inc SIU),BWR RECRUITMENT LTD TA TOTAL SOCIAL,Assistant Chief Executive (Excl SIU),1272.80,Agency Staff,2223P11_CR00406,162923
Sandwell Metropolitan Borough Council,http://www.sandwell.gov.uk/info/200202/performance_and_spending/1079/payments_over_500,01-Feb-2023,FINANCE (Inc SIU),BWR RECRUITMENT LTD TA TOTAL SOCIAL,Assistant Chief Executive (Excl SIU),1272.80,Agency Staff,2223P11_CR00407,162923
Sandwell Metropolitan Borough Council,http://www.sandwell.gov.uk/info/200202/performance_and_spending/1079/payments_over_500,01-Feb-2023,FINANCE (Inc SIU),CAMPBELL TICKELL LTD,Assistant Chief Executive (Excl SIU),15120.00,Agency Staff,2223P11_CR00408,163142
Sandwell Metropolitan Borough Council,http://www.sandwell.gov.uk/info/200202/performance_and_spending/1079/payments_over_500,01-Feb-2023,FINANCE (Inc SIU),CIPFA C.CO,Assistant Chief Executive (Excl SIU),25000.00,Externally Purchased Professional Services ,2223P11_CR00409,134304
Sandwell Metropolitan Borough Council,http://www.sandwell.gov.uk/info/200202/performance_and_spending/1079/payments_over_500,01-Feb-2023,FINANCE (Inc SIU),CUSTODIAN GROUP LTD,Childrens Services,630.00,Rents,2223P11_CR00410,151637
Sandwell Metropolitan Borough Council,http://www.sandwell.gov.uk/info/200202/performance_and_spending/1079/payments_over_500,01-Feb-2023,FINANCE (Inc SIU),CUSTODIAN GROUP LTD,Childrens Services,630.00,Rents,2223P11_CR00411,151637
Sandwell Metropolitan Borough Council,http://www.sandwell.gov.uk/info/200202/performance_and_spending/1079/payments_over_500,01-Feb-2023,FINANCE (Inc SIU),CUSTODIAN GROUP LTD,Childrens Services,630.00,Rents,2223P11_CR00412,151637
Sandwell Metropolitan Borough Council,http://www.sandwell.gov.uk/info/200202/performance_and_spending/1079/payments_over_500,01-Feb-2023,FINANCE (Inc SIU),CUSTODIAN GROUP LTD,Childrens Services,630.00,Rents,2223P11_CR00413,151637
Sandwell Metropolitan Borough Council,http://www.sandwell.gov.uk/info/200202/performance_and_spending/1079/payments_over_500,01-Feb-2023,FINANCE (Inc SIU),CUSTODIAN GROUP LTD,Childrens Services,630.00,Rents,2223P11_CR00414,151637
Sandwell Metropolitan Borough Council,http://www.sandwell.gov.uk/info/200202/performance_and_spending/1079/payments_over_500,01-Feb-2023,FINANCE (Inc SIU),CUSTODIAN GROUP LTD,Childrens Services,630.00,Rents,2223P11_CR00415,151637
Sandwell Metropolitan Borough Council,http://www.sandwell.gov.uk/info/200202/performance_and_spending/1079/payments_over_500,01-Feb-2023,FINANCE (Inc SIU),CUSTODIAN GROUP LTD,Childrens Services,630.00,Rents,2223P11_CR00416,151637
Sandwell Metropolitan Borough Council,http://www.sandwell.gov.uk/info/200202/performance_and_spending/1079/payments_over_500,01-Feb-2023,FINANCE (Inc SIU),CUSTODIAN GROUP LTD,Childrens Services,630.00,Rents,2223P11_CR00417,151637
Sandwell Metropolitan Borough Council,http://www.sandwell.gov.uk/info/200202/performance_and_spending/1079/payments_over_500,01-Feb-2023,FINANCE (Inc SIU),CUSTODIAN GROUP LTD,Childrens Services,630.00,Rents,2223P11_CR00418,151637
Sandwell Metropolitan Borough Council,http://www.sandwell.gov.uk/info/200202/performance_and_spending/1079/payments_over_500,01-Feb-2023,FINANCE (Inc SIU),CUSTODIAN GROUP LTD,Childrens Services,630.00,Rents,2223P11_CR00419,151637
Sandwell Metropolitan Borough Council,http://www.sandwell.gov.uk/info/200202/performance_and_spending/1079/payments_over_500,02-Feb-2023,FINANCE (Inc SIU),CUSTODIAN GROUP LTD,Childrens Services,630.00,Rents,2223P11_CR00420,151637
Sandwell Metropolitan Borough Council,http://www.sandwell.gov.uk/info/200202/performance_and_spending/1079/payments_over_500,02-Feb-2023,FINANCE (Inc SIU),CUSTODIAN GROUP LTD,Childrens Services,630.00,Rents,2223P11_CR00421,151637
Sandwell Metropolitan Borough Council,http://www.sandwell.gov.uk/info/200202/performance_and_spending/1079/payments_over_500,02-Feb-2023,FINANCE (Inc SIU),CUSTODIAN GROUP LTD,Childrens Services,630.00,Rents,2223P11_CR00422,151637
Sandwell Metropolitan Borough Council,http://www.sandwell.gov.uk/info/200202/performance_and_spending/1079/payments_over_500,02-Feb-2023,FINANCE (Inc SIU),CUSTODIAN GROUP LTD,Childrens Services,630.00,Rents,2223P11_CR00423,151637
Sandwell Metropolitan Borough Council,http://www.sandwell.gov.uk/info/200202/performance_and_spending/1079/payments_over_500,02-Feb-2023,FINANCE (Inc SIU),CUSTODIAN GROUP LTD,Childrens Services,630.00,Rents,2223P11_CR00424,151637
Sandwell Metropolitan Borough Council,http://www.sandwell.gov.uk/info/200202/performance_and_spending/1079/payments_over_500,15-Feb-2023,FINANCE (Inc SIU),DSI BILLING SERVICES LIMITED,Assistant Chief Executive (Excl SIU),2943.36,"Printing, Stationery & General Office Expenses",2223P11_CR00425,161962
Sandwell Metropolitan Borough Council,http://www.sandwell.gov.uk/info/200202/performance_and_spending/1079/payments_over_500,09-Feb-2023,FINANCE (Inc SIU),DSI BILLING SERVICES LIMITED,Assistant Chief Executive (Excl SIU),21410.93,"Printing, Stationery & General Office Expenses",2223P11_CR00426,161962
Sandwell Metropolitan Borough Council,http://www.sandwell.gov.uk/info/200202/performance_and_spending/1079/payments_over_500,15-Feb-2023,FINANCE (Inc SIU),EDEN BROWN LIMITED,Assistant Chief Executive (Excl SIU),725.12,Agency Staff,2223P11_CR00427,47241
Sandwell Metropolitan Borough Council,http://www.sandwell.gov.uk/info/200202/performance_and_spending/1079/payments_over_500,01-Feb-2023,FINANCE (Inc SIU),EDEN BROWN LIMITED,Assistant Chief Executive (Excl SIU),972.32,Agency Staff,2223P11_CR00428,47241
Sandwell Metropolitan Borough Council,http://www.sandwell.gov.uk/info/200202/performance_and_spending/1079/payments_over_500,01-Feb-2023,FINANCE (Inc SIU),EDEN BROWN LIMITED,Assistant Chief Executive (Excl SIU),972.32,Agency Staff,2223P11_CR00429,47241
Sandwell Metropolitan Borough Council,http://www.sandwell.gov.uk/info/200202/performance_and_spending/1079/payments_over_500,01-Feb-2023,FINANCE (Inc SIU),EUROFINS FORENSIC SERVICES LTD,Assistant Chief Executive (Excl SIU),941.00,Bereavement Expenses,2223P11_CR00430,165178
Sandwell Metropolitan Borough Council,http://www.sandwell.gov.uk/info/200202/performance_and_spending/1079/payments_over_500,01-Feb-2023,FINANCE (Inc SIU),G2 RECRUITMENT SOLUTIONS,Assistant Chief Executive (Excl SIU),1138.50,Agency Staff,2223P11_CR00431,150458
Sandwell Metropolitan Borough Council,http://www.sandwell.gov.uk/info/200202/performance_and_spending/1079/payments_over_500,24-Feb-2023,FINANCE (Inc SIU),G4S CASH SOLUTIONS (UK) LTD,Assistant Chief Executive (Excl SIU),686.40,Cash Collections,2223P11_CR00432,01606348
Sandwell Metropolitan Borough Council,http://www.sandwell.gov.uk/info/200202/performance_and_spending/1079/payments_over_500,01-Feb-2023,FINANCE (Inc SIU),GILANI ENTERPRISES LIMITED,Childrens Services,2266.67,Rents,2223P11_CR00433,2696
Sandwell Metropolitan Borough Council,http://www.sandwell.gov.uk/info/200202/performance_and_spending/1079/payments_over_500,01-Feb-2023,FINANCE (Inc SIU),GILANI ENTERPRISES LIMITED,Childrens Services,2625.00,Rents,2223P11_CR00434,2696
Sandwell Metropolitan Borough Council,http://www.sandwell.gov.uk/info/200202/performance_and_spending/1079/payments_over_500,01-Feb-2023,FINANCE (Inc SIU),GILANI ENTERPRISES LIMITED,Childrens Services,2700.00,Rents,2223P11_CR00435,2696
Sandwell Metropolitan Borough Council,http://www.sandwell.gov.uk/info/200202/performance_and_spending/1079/payments_over_500,01-Feb-2023,FINANCE (Inc SIU),GILANI ENTERPRISES LIMITED,Childrens Services,3666.67,Rents,2223P11_CR00436,2696
Sandwell Metropolitan Borough Council,http://www.sandwell.gov.uk/info/200202/performance_and_spending/1079/payments_over_500,01-Feb-2023,FINANCE (Inc SIU),GILANI ENTERPRISES LIMITED,Childrens Services,4200.00,Rents,2223P11_CR00437,2696
Sandwell Metropolitan Borough Council,http://www.sandwell.gov.uk/info/200202/performance_and_spending/1079/payments_over_500,01-Feb-2023,FINANCE (Inc SIU),GILANI ENTERPRISES LIMITED,Childrens Services,4200.00,Rents,2223P11_CR00438,2696
Sandwell Metropolitan Borough Council,http://www.sandwell.gov.uk/info/200202/performance_and_spending/1079/payments_over_500,01-Feb-2023,FINANCE (Inc SIU),GILANI ENTERPRISES LIMITED,Childrens Services,4200.00,Rents,2223P11_CR00439,2696
Sandwell Metropolitan Borough Council,http://www.sandwell.gov.uk/info/200202/performance_and_spending/1079/payments_over_500,01-Feb-2023,FINANCE (Inc SIU),GILANI ENTERPRISES LIMITED,Childrens Services,4200.00,Rents,2223P11_CR00440,2696
Sandwell Metropolitan Borough Council,http://www.sandwell.gov.uk/info/200202/performance_and_spending/1079/payments_over_500,01-Feb-2023,FINANCE (Inc SIU),GILANI ENTERPRISES LIMITED,Childrens Services,4200.00,Rents,2223P11_CR00441,2696
Sandwell Metropolitan Borough Council,http://www.sandwell.gov.uk/info/200202/performance_and_spending/1079/payments_over_500,01-Feb-2023,FINANCE (Inc SIU),GILANI ENTERPRISES LIMITED,Childrens Services,4200.00,Rents,2223P11_CR00442,2696
Sandwell Metropolitan Borough Council,http://www.sandwell.gov.uk/info/200202/performance_and_spending/1079/payments_over_500,01-Feb-2023,FINANCE (Inc SIU),GILANI ENTERPRISES LIMITED,Childrens Services,4200.00,Rents,2223P11_CR00443,2696
Sandwell Metropolitan Borough Council,http://www.sandwell.gov.uk/info/200202/performance_and_spending/1079/payments_over_500,01-Feb-2023,FINANCE (Inc SIU),GILANI ENTERPRISES LIMITED,Childrens Services,4200.00,Rents,2223P11_CR00444,2696
Sandwell Metropolitan Borough Council,http://www.sandwell.gov.uk/info/200202/performance_and_spending/1079/payments_over_500,01-Feb-2023,FINANCE (Inc SIU),GILANI ENTERPRISES LIMITED,Childrens Services,4300.00,Rents,2223P11_CR00445,2696
Sandwell Metropolitan Borough Council,http://www.sandwell.gov.uk/info/200202/performance_and_spending/1079/payments_over_500,01-Feb-2023,FINANCE (Inc SIU),GILANI ENTERPRISES LIMITED,Childrens Services,6300.00,Rents,2223P11_CR00446,2696
Sandwell Metropolitan Borough Council,http://www.sandwell.gov.uk/info/200202/performance_and_spending/1079/payments_over_500,01-Feb-2023,FINANCE (Inc SIU),GILANI ENTERPRISES LIMITED,Childrens Services,6300.00,Rents,2223P11_CR00447,2696
Sandwell Metropolitan Borough Council,http://www.sandwell.gov.uk/info/200202/performance_and_spending/1079/payments_over_500,15-Feb-2023,FINANCE (Inc SIU),GOVTECH SOLUTIONS LIMITED,Assistant Chief Executive (Excl SIU),1500.00,ICT ,2223P11_CR00448,93887
Sandwell Metropolitan Borough Council,http://www.sandwell.gov.uk/info/200202/performance_and_spending/1079/payments_over_500,06-Feb-2023,FINANCE (Inc SIU),GREENHALGH KERR SOLICITORS LIMITED,Assistant Chief Executive (Excl SIU),6105.56,Externally Purchased Professional Services ,2223P11_CR00449,127273
Sandwell Metropolitan Borough Council,http://www.sandwell.gov.uk/info/200202/performance_and_spending/1079/payments_over_500,02-Feb-2023,FINANCE (Inc SIU),HAYS SPECIALIST RECRUITMENT LTD,Assistant Chief Executive (Excl SIU),102213.53,Agency Staff,2223P11_CR00450,80349
Sandwell Metropolitan Borough Council,http://www.sandwell.gov.uk/info/200202/performance_and_spending/1079/payments_over_500,01-Feb-2023,FINANCE (Inc SIU),HAYS SPECIALIST RECRUITMENT LTD,Assistant Chief Executive (Excl SIU),116239.93,Agency Staff,2223P11_CR00451,80349
Sandwell Metropolitan Borough Council,http://www.sandwell.gov.uk/info/200202/performance_and_spending/1079/payments_over_500,15-Feb-2023,FINANCE (Inc SIU),HAYS SPECIALIST RECRUITMENT LTD,Assistant Chief Executive (Excl SIU),124676.28,Agency Staff,2223P11_CR00452,80349
Sandwell Metropolitan Borough Council,http://www.sandwell.gov.uk/info/200202/performance_and_spending/1079/payments_over_500,02-Feb-2023,FINANCE (Inc SIU),HAYS SPECIALIST RECRUITMENT LTD,Assistant Chief Executive (Excl SIU),126838.93,Agency Staff,2223P11_CR00453,80349
Sandwell Metropolitan Borough Council,http://www.sandwell.gov.uk/info/200202/performance_and_spending/1079/payments_over_500,15-Feb-2023,FINANCE (Inc SIU),HAYS SPECIALIST RECRUITMENT LTD,Assistant Chief Executive (Excl SIU),128595.63,Agency Staff,2223P11_CR00454,80349
Sandwell Metropolitan Borough Council,http://www.sandwell.gov.uk/info/200202/performance_and_spending/1079/payments_over_500,01-Feb-2023,FINANCE (Inc SIU),HER MAJESTYS COURT & TRIBUNAL SERVICES,Assistant Chief Executive (Excl SIU),1063.00,Other Agency Payments,2223P11_CR00455,120965
Sandwell Metropolitan Borough Council,http://www.sandwell.gov.uk/info/200202/performance_and_spending/1079/payments_over_500,21-Feb-2023,FINANCE (Inc SIU),HER MAJESTYS COURT & TRIBUNAL SERVICES,Assistant Chief Executive (Excl SIU),5632.00,Other Agency Payments,2223P11_CR00456,120965
Sandwell Metropolitan Borough Council,http://www.sandwell.gov.uk/info/200202/performance_and_spending/1079/payments_over_500,01-Feb-2023,FINANCE (Inc SIU),HUMMINGBIRD-SOLUTIONS LTD,Assistant Chief Executive (Excl SIU),838.86,Agency Staff,2223P11_CR00457,162921
Sandwell Metropolitan Borough Council,http://www.sandwell.gov.uk/info/200202/performance_and_spending/1079/payments_over_500,01-Feb-2023,FINANCE (Inc SIU),HUMMINGBIRD-SOLUTIONS LTD,Assistant Chief Executive (Excl SIU),838.86,Agency Staff,2223P11_CR00458,162921
Sandwell Metropolitan Borough Council,http://www.sandwell.gov.uk/info/200202/performance_and_spending/1079/payments_over_500,01-Feb-2023,FINANCE (Inc SIU),HUMMINGBIRD-SOLUTIONS LTD,Assistant Chief Executive (Excl SIU),1016.48,Agency Staff,2223P11_CR00459,162921
Sandwell Metropolitan Borough Council,http://www.sandwell.gov.uk/info/200202/performance_and_spending/1079/payments_over_500,07-Feb-2023,FINANCE (Inc SIU),INFORM CPI LTD,Assistant Chief Executive (Excl SIU),850.00,Consultancy,2223P11_CR00460,123986
Sandwell Metropolitan Borough Council,http://www.sandwell.gov.uk/info/200202/performance_and_spending/1079/payments_over_500,07-Feb-2023,FINANCE (Inc SIU),INFORM CPI LTD,Assistant Chief Executive (Excl SIU),2100.00,Consultancy,2223P11_CR00461,123986
Sandwell Metropolitan Borough Council,http://www.sandwell.gov.uk/info/200202/performance_and_spending/1079/payments_over_500,07-Feb-2023,FINANCE (Inc SIU),INFORM CPI LTD,Assistant Chief Executive (Excl SIU),3086.00,Consultancy,2223P11_CR00462,123986
Sandwell Metropolitan Borough Council,http://www.sandwell.gov.uk/info/200202/performance_and_spending/1079/payments_over_500,01-Feb-2023,FINANCE (Inc SIU),INOAPPS LIMITED,Assistant Chief Executive (Excl SIU),7700.00,Externally Purchased Professional Services ,2223P11_CR00463,122364
Sandwell Metropolitan Borough Council,http://www.sandwell.gov.uk/info/200202/performance_and_spending/1079/payments_over_500,01-Feb-2023,FINANCE (Inc SIU),JORECRUITMENT LIMITED,Assistant Chief Executive (Excl SIU),512.00,Agency Staff,2223P11_CR00464,154704
Sandwell Metropolitan Borough Council,http://www.sandwell.gov.uk/info/200202/performance_and_spending/1079/payments_over_500,03-Feb-2023,FINANCE (Inc SIU),JORECRUITMENT LIMITED,Assistant Chief Executive (Excl SIU),555.00,Agency Staff,2223P11_CR00465,154704
Sandwell Metropolitan Borough Council,http://www.sandwell.gov.uk/info/200202/performance_and_spending/1079/payments_over_500,15-Feb-2023,FINANCE (Inc SIU),JORECRUITMENT LIMITED,Assistant Chief Executive (Excl SIU),555.00,Agency Staff,2223P11_CR00466,154704
Sandwell Metropolitan Borough Council,http://www.sandwell.gov.uk/info/200202/performance_and_spending/1079/payments_over_500,15-Feb-2023,FINANCE (Inc SIU),JORECRUITMENT LIMITED,Assistant Chief Executive (Excl SIU),560.00,Agency Staff,2223P11_CR00467,154704
Sandwell Metropolitan Borough Council,http://www.sandwell.gov.uk/info/200202/performance_and_spending/1079/payments_over_500,03-Feb-2023,FINANCE (Inc SIU),JORECRUITMENT LIMITED,Assistant Chief Executive (Excl SIU),600.00,Agency Staff,2223P11_CR00468,154704
Sandwell Metropolitan Borough Council,http://www.sandwell.gov.uk/info/200202/performance_and_spending/1079/payments_over_500,01-Feb-2023,FINANCE (Inc SIU),JORECRUITMENT LIMITED,Assistant Chief Executive (Excl SIU),600.00,Agency Staff,2223P11_CR00469,154704
Sandwell Metropolitan Borough Council,http://www.sandwell.gov.uk/info/200202/performance_and_spending/1079/payments_over_500,01-Feb-2023,FINANCE (Inc SIU),JORECRUITMENT LIMITED,Assistant Chief Executive (Excl SIU),666.00,Agency Staff,2223P11_CR00470,154704
Sandwell Metropolitan Borough Council,http://www.sandwell.gov.uk/info/200202/performance_and_spending/1079/payments_over_500,15-Feb-2023,FINANCE (Inc SIU),JORECRUITMENT LIMITED,Assistant Chief Executive (Excl SIU),666.00,Agency Staff,2223P11_CR00471,154704
Sandwell Metropolitan Borough Council,http://www.sandwell.gov.uk/info/200202/performance_and_spending/1079/payments_over_500,15-Feb-2023,FINANCE (Inc SIU),JORECRUITMENT LIMITED,Assistant Chief Executive (Excl SIU),670.00,Agency Staff,2223P11_CR00472,154704
Sandwell Metropolitan Borough Council,http://www.sandwell.gov.uk/info/200202/performance_and_spending/1079/payments_over_500,03-Feb-2023,FINANCE (Inc SIU),JORECRUITMENT LIMITED,Assistant Chief Executive (Excl SIU),740.00,Agency Staff,2223P11_CR00473,154704
Sandwell Metropolitan Borough Council,http://www.sandwell.gov.uk/info/200202/performance_and_spending/1079/payments_over_500,01-Feb-2023,FINANCE (Inc SIU),JORECRUITMENT LIMITED,Assistant Chief Executive (Excl SIU),740.00,Agency Staff,2223P11_CR00474,154704
Sandwell Metropolitan Borough Council,http://www.sandwell.gov.uk/info/200202/performance_and_spending/1079/payments_over_500,03-Feb-2023,FINANCE (Inc SIU),JORECRUITMENT LIMITED,Assistant Chief Executive (Excl SIU),1113.70,Agency Staff,2223P11_CR00475,154704
Sandwell Metropolitan Borough Council,http://www.sandwell.gov.uk/info/200202/performance_and_spending/1079/payments_over_500,03-Feb-2023,FINANCE (Inc SIU),JORECRUITMENT LIMITED,Assistant Chief Executive (Excl SIU),1113.70,Agency Staff,2223P11_CR00476,154704
Sandwell Metropolitan Borough Council,http://www.sandwell.gov.uk/info/200202/performance_and_spending/1079/payments_over_500,15-Feb-2023,FINANCE (Inc SIU),JORECRUITMENT LIMITED,Assistant Chief Executive (Excl SIU),1345.53,Agency Staff,2223P11_CR00477,154704
Sandwell Metropolitan Borough Council,http://www.sandwell.gov.uk/info/200202/performance_and_spending/1079/payments_over_500,03-Feb-2023,FINANCE (Inc SIU),JORECRUITMENT LIMITED,Assistant Chief Executive (Excl SIU),1569.79,Agency Staff,2223P11_CR00478,154704
Sandwell Metropolitan Borough Council,http://www.sandwell.gov.uk/info/200202/performance_and_spending/1079/payments_over_500,01-Feb-2023,FINANCE (Inc SIU),JORECRUITMENT LIMITED,Assistant Chief Executive (Excl SIU),1569.79,Agency Staff,2223P11_CR00479,154704
Sandwell Metropolitan Borough Council,http://www.sandwell.gov.uk/info/200202/performance_and_spending/1079/payments_over_500,01-Feb-2023,FINANCE (Inc SIU),KENYON BLOCK CONSULTANTS LIMITED,Assistant Chief Executive (Excl SIU),866.25,Agency Staff,2223P11_CR00480,119366
Sandwell Metropolitan Borough Council,http://www.sandwell.gov.uk/info/200202/performance_and_spending/1079/payments_over_500,01-Feb-2023,FINANCE (Inc SIU),KENYON BLOCK CONSULTANTS LIMITED,Assistant Chief Executive (Excl SIU),877.50,Agency Staff,2223P11_CR00481,119366
Sandwell Metropolitan Borough Council,http://www.sandwell.gov.uk/info/200202/performance_and_spending/1079/payments_over_500,15-Feb-2023,FINANCE (Inc SIU),KENYON BLOCK CONSULTANTS LIMITED,Assistant Chief Executive (Excl SIU),945.00,Agency Staff,2223P11_CR00482,119366
Sandwell Metropolitan Borough Council,http://www.sandwell.gov.uk/info/200202/performance_and_spending/1079/payments_over_500,01-Feb-2023,FINANCE (Inc SIU),KENYON BLOCK CONSULTANTS LIMITED,Assistant Chief Executive (Excl SIU),978.75,Agency Staff,2223P11_CR00483,119366
Sandwell Metropolitan Borough Council,http://www.sandwell.gov.uk/info/200202/performance_and_spending/1079/payments_over_500,10-Feb-2023,FINANCE (Inc SIU),LOAVES N FISHES,Assistant Chief Executive (Excl SIU),14145.00,Equipment & Furniture ,2223P11_CR00484,71090
Sandwell Metropolitan Borough Council,http://www.sandwell.gov.uk/info/200202/performance_and_spending/1079/payments_over_500,01-Feb-2023,FINANCE (Inc SIU),MACILDOWIE ASSOCIATES LTD,Assistant Chief Executive (Excl SIU),3510.00,Agency Staff,2223P11_CR00485,164797
Sandwell Metropolitan Borough Council,http://www.sandwell.gov.uk/info/200202/performance_and_spending/1079/payments_over_500,01-Feb-2023,FINANCE (Inc SIU),MACILDOWIE ASSOCIATES LTD,Assistant Chief Executive (Excl SIU),3510.00,Agency Staff,2223P11_CR00486,164797
Sandwell Metropolitan Borough Council,http://www.sandwell.gov.uk/info/200202/performance_and_spending/1079/payments_over_500,01-Feb-2023,FINANCE (Inc SIU),MACILDOWIE ASSOCIATES LTD,Assistant Chief Executive (Excl SIU),3510.00,Agency Staff,2223P11_CR00487,164797
Sandwell Metropolitan Borough Council,http://www.sandwell.gov.uk/info/200202/performance_and_spending/1079/payments_over_500,15-Feb-2023,FINANCE (Inc SIU),MACILDOWIE ASSOCIATES LTD,Assistant Chief Executive (Excl SIU),3510.00,Agency Staff,2223P11_CR00488,164797
Sandwell Metropolitan Borough Council,http://www.sandwell.gov.uk/info/200202/performance_and_spending/1079/payments_over_500,01-Feb-2023,FINANCE (Inc SIU),MACILDOWIE ASSOCIATES LTD,Assistant Chief Executive (Excl SIU),3510.00,Agency Staff,2223P11_CR00489,164797
Sandwell Metropolitan Borough Council,http://www.sandwell.gov.uk/info/200202/performance_and_spending/1079/payments_over_500,06-Feb-2023,FINANCE (Inc SIU),MAXWELLS OF HARBOURNE,Total Adult Social Care,569.00,Fees & Charges,2223P11_CR00490,134949
Sandwell Metropolitan Borough Council,http://www.sandwell.gov.uk/info/200202/performance_and_spending/1079/payments_over_500,01-Feb-2023,FINANCE (Inc SIU),NATIONAL MEDICARE SERVICES LTD,Assistant Chief Executive (Excl SIU),1234.00,Agency Staff,2223P11_CR00491,164404
Sandwell Metropolitan Borough Council,http://www.sandwell.gov.uk/info/200202/performance_and_spending/1079/payments_over_500,01-Feb-2023,FINANCE (Inc SIU),NATIONAL MEDICARE SERVICES LTD,Assistant Chief Executive (Excl SIU),1234.00,Agency Staff,2223P11_CR00492,164404
Sandwell Metropolitan Borough Council,http://www.sandwell.gov.uk/info/200202/performance_and_spending/1079/payments_over_500,06-Feb-2023,FINANCE (Inc SIU),NATIONAL WESTMINSTER BANK PLC IRO ENERGY REBATE,FINANCE (Inc SIU),750.00,Grant Payments,2223P11_CR00493,120965
Sandwell Metropolitan Borough Council,http://www.sandwell.gov.uk/info/200202/performance_and_spending/1079/payments_over_500,08-Feb-2023,FINANCE (Inc SIU), HM COURT & TRIBUNAL SERVICES,Assistant Chief Executive (Excl SIU),3335.00,Other Agency Payments,2223P11_CR00494,120965
Sandwell Metropolitan Borough Council,http://www.sandwell.gov.uk/info/200202/performance_and_spending/1079/payments_over_500,01-Feb-2023,FINANCE (Inc SIU),NEC SOFTWARE SOLUTIONS UK LTD,Assistant Chief Executive (Excl SIU),500.00,Private Contractors,2223P11_CR00495,56043
Sandwell Metropolitan Borough Council,http://www.sandwell.gov.uk/info/200202/performance_and_spending/1079/payments_over_500,15-Feb-2023,FINANCE (Inc SIU),NEC SOFTWARE SOLUTIONS UK LTD,Assistant Chief Executive (Excl SIU),674.96,Private Contractors,2223P11_CR00496,56043
Sandwell Metropolitan Borough Council,http://www.sandwell.gov.uk/info/200202/performance_and_spending/1079/payments_over_500,13-Feb-2023,FINANCE (Inc SIU),NEC SOFTWARE SOLUTIONS UK LTD,Assistant Chief Executive (Excl SIU),9120.00,Private Contractors,2223P11_CR00497,56043
Sandwell Metropolitan Borough Council,http://www.sandwell.gov.uk/info/200202/performance_and_spending/1079/payments_over_500,01-Feb-2023,FINANCE (Inc SIU),NEC SOFTWARE SOLUTIONS UK LTD,Assistant Chief Executive (Excl SIU),16480.00,Private Contractors,2223P11_CR00498,56043
Sandwell Metropolitan Borough Council,http://www.sandwell.gov.uk/info/200202/performance_and_spending/1079/payments_over_500,13-Feb-2023,FINANCE (Inc SIU),NEC SOFTWARE SOLUTIONS UK LTD,Assistant Chief Executive (Excl SIU),51000.00,Private Contractors,2223P11_CR00499,56043
Sandwell Metropolitan Borough Council,http://www.sandwell.gov.uk/info/200202/performance_and_spending/1079/payments_over_500,13-Feb-2023,FINANCE (Inc SIU),NEC SOFTWARE SOLUTIONS UK LTD,Assistant Chief Executive (Excl SIU),56646.00,Private Contractors,2223P11_CR00500,56043
Sandwell Metropolitan Borough Council,http://www.sandwell.gov.uk/info/200202/performance_and_spending/1079/payments_over_500,13-Feb-2023,FINANCE (Inc SIU),NEC SOFTWARE SOLUTIONS UK LTD,Assistant Chief Executive (Excl SIU),60172.00,Private Contractors,2223P11_CR00501,56043
Sandwell Metropolitan Borough Council,http://www.sandwell.gov.uk/info/200202/performance_and_spending/1079/payments_over_500,13-Feb-2023,FINANCE (Inc SIU),NEC SOFTWARE SOLUTIONS UK LTD,Assistant Chief Executive (Excl SIU),109607.00,Private Contractors,2223P11_CR00502,56043
Sandwell Metropolitan Borough Council,http://www.sandwell.gov.uk/info/200202/performance_and_spending/1079/payments_over_500,13-Feb-2023,FINANCE (Inc SIU),NEC SOFTWARE SOLUTIONS UK LTD,Assistant Chief Executive (Excl SIU),131365.00,Private Contractors,2223P11_CR00503,56043
Sandwell Metropolitan Borough Council,http://www.sandwell.gov.uk/info/200202/performance_and_spending/1079/payments_over_500,01-Feb-2023,FINANCE (Inc SIU),ORACLE CORPORATION UK LTD,Assistant Chief Executive (Excl SIU),4456.13,Externally Purchased Professional Services ,2223P11_CR00504,01539742
Sandwell Metropolitan Borough Council,http://www.sandwell.gov.uk/info/200202/performance_and_spending/1079/payments_over_500,01-Feb-2023,FINANCE (Inc SIU),ORACLE CORPORATION UK LTD,Assistant Chief Executive (Excl SIU),166574.05,Externally Purchased Professional Services ,2223P11_CR00505,01539742
Sandwell Metropolitan Borough Council,http://www.sandwell.gov.uk/info/200202/performance_and_spending/1079/payments_over_500,20-Feb-2023,FINANCE (Inc SIU),PAYPOINT PLC,Assistant Chief Executive (Excl SIU),2489.20,Fuel ,2223P11_CR00506,112333
Sandwell Metropolitan Borough Council,http://www.sandwell.gov.uk/info/200202/performance_and_spending/1079/payments_over_500,01-Feb-2023,FINANCE (Inc SIU),PAYPOINT PLC,Assistant Chief Executive (Excl SIU),2763.80,Fuel ,2223P11_CR00507,112333
Sandwell Metropolitan Borough Council,http://www.sandwell.gov.uk/info/200202/performance_and_spending/1079/payments_over_500,06-Feb-2023,FINANCE (Inc SIU),PAYPOINT PLC,Assistant Chief Executive (Excl SIU),4504.60,Fuel ,2223P11_CR00508,112333
Sandwell Metropolitan Borough Council,http://www.sandwell.gov.uk/info/200202/performance_and_spending/1079/payments_over_500,28-Feb-2023,FINANCE (Inc SIU),PAYPOINT PLC,Assistant Chief Executive (Excl SIU),4629.60,Fuel ,2223P11_CR00509,112333
Sandwell Metropolitan Borough Council,http://www.sandwell.gov.uk/info/200202/performance_and_spending/1079/payments_over_500,01-Feb-2023,FINANCE (Inc SIU),RENAISSANCE CREATIVE DESIGN & PRINT LTD,FINANCE (Inc SIU),2920.00,Advertising & Publicity,2223P11_CR00510,97376
Sandwell Metropolitan Borough Council,http://www.sandwell.gov.uk/info/200202/performance_and_spending/1079/payments_over_500,01-Feb-2023,FINANCE (Inc SIU),ROC TECHNOLOGIES LTD,Assistant Chief Executive (Excl SIU),3168.75,Externally Purchased Professional Services ,2223P11_CR00511,161921
Sandwell Metropolitan Borough Council,http://www.sandwell.gov.uk/info/200202/performance_and_spending/1079/payments_over_500,01-Feb-2023,FINANCE (Inc SIU),SELLICK PARTNERSHIP GROUP LIMITED,Assistant Chief Executive (Excl SIU),2294.00,Agency Staff,2223P11_CR00512,63607
Sandwell Metropolitan Borough Council,http://www.sandwell.gov.uk/info/200202/performance_and_spending/1079/payments_over_500,01-Feb-2023,FINANCE (Inc SIU),SELLICK PARTNERSHIP GROUP LIMITED,Assistant Chief Executive (Excl SIU),2294.00,Agency Staff,2223P11_CR00513,63607
Sandwell Metropolitan Borough Council,http://www.sandwell.gov.uk/info/200202/performance_and_spending/1079/payments_over_500,01-Feb-2023,FINANCE (Inc SIU),SELLICK PARTNERSHIP GROUP LIMITED,Assistant Chief Executive (Excl SIU),2294.00,Agency Staff,2223P11_CR00514,63607
Sandwell Metropolitan Borough Council,http://www.sandwell.gov.uk/info/200202/performance_and_spending/1079/payments_over_500,15-Feb-2023,FINANCE (Inc SIU),SELLICK PARTNERSHIP GROUP LIMITED,Assistant Chief Executive (Excl SIU),2294.00,Agency Staff,2223P11_CR00515,63607
Sandwell Metropolitan Borough Council,http://www.sandwell.gov.uk/info/200202/performance_and_spending/1079/payments_over_500,01-Feb-2023,FINANCE (Inc SIU),SELLICK PARTNERSHIP GROUP LIMITED,Assistant Chief Executive (Excl SIU),2294.00,Agency Staff,2223P11_CR00516,63607
Sandwell Metropolitan Borough Council,http://www.sandwell.gov.uk/info/200202/performance_and_spending/1079/payments_over_500,15-Feb-2023,FINANCE (Inc SIU),SERVICE CARE SOLUTIONS,Assistant Chief Executive (Excl SIU),567.00,Agency Staff,2223P11_CR00517,123856
Sandwell Metropolitan Borough Council,http://www.sandwell.gov.uk/info/200202/performance_and_spending/1079/payments_over_500,01-Feb-2023,FINANCE (Inc SIU),SERVICE CARE SOLUTIONS,Assistant Chief Executive (Excl SIU),658.44,Agency Staff,2223P11_CR00518,123856
Sandwell Metropolitan Borough Council,http://www.sandwell.gov.uk/info/200202/performance_and_spending/1079/payments_over_500,01-Feb-2023,FINANCE (Inc SIU),SERVICE CARE SOLUTIONS,Assistant Chief Executive (Excl SIU),676.73,Agency Staff,2223P11_CR00519,123856
Sandwell Metropolitan Borough Council,http://www.sandwell.gov.uk/info/200202/performance_and_spending/1079/payments_over_500,01-Feb-2023,FINANCE (Inc SIU),SERVICE CARE SOLUTIONS,Assistant Chief Executive (Excl SIU),676.73,Agency Staff,2223P11_CR00520,123856
Sandwell Metropolitan Borough Council,http://www.sandwell.gov.uk/info/200202/performance_and_spending/1079/payments_over_500,15-Feb-2023,FINANCE (Inc SIU),SERVICE CARE SOLUTIONS,Assistant Chief Executive (Excl SIU),676.73,Agency Staff,2223P11_CR00521,123856
Sandwell Metropolitan Borough Council,http://www.sandwell.gov.uk/info/200202/performance_and_spending/1079/payments_over_500,01-Feb-2023,FINANCE (Inc SIU),SERVICE CARE SOLUTIONS,Assistant Chief Executive (Excl SIU),676.73,Agency Staff,2223P11_CR00522,123856
Sandwell Metropolitan Borough Council,http://www.sandwell.gov.uk/info/200202/performance_and_spending/1079/payments_over_500,01-Feb-2023,FINANCE (Inc SIU),SERVICE CARE SOLUTIONS,Assistant Chief Executive (Excl SIU),748.13,Agency Staff,2223P11_CR00523,123856
Sandwell Metropolitan Borough Council,http://www.sandwell.gov.uk/info/200202/performance_and_spending/1079/payments_over_500,01-Feb-2023,FINANCE (Inc SIU),SERVICE CARE SOLUTIONS,Assistant Chief Executive (Excl SIU),826.88,Agency Staff,2223P11_CR00524,123856
Sandwell Metropolitan Borough Council,http://www.sandwell.gov.uk/info/200202/performance_and_spending/1079/payments_over_500,15-Feb-2023,FINANCE (Inc SIU),SERVICE CARE SOLUTIONS,Assistant Chief Executive (Excl SIU),929.25,Agency Staff,2223P11_CR00525,123856
Sandwell Metropolitan Borough Council,http://www.sandwell.gov.uk/info/200202/performance_and_spending/1079/payments_over_500,01-Feb-2023,FINANCE (Inc SIU),SERVICE CARE SOLUTIONS,Assistant Chief Executive (Excl SIU),945.00,Agency Staff,2223P11_CR00526,123856
Sandwell Metropolitan Borough Council,http://www.sandwell.gov.uk/info/200202/performance_and_spending/1079/payments_over_500,14-Feb-2023,FINANCE (Inc SIU),SHEFFIELD CHILDRENS NHS FOUNDATION TRUST,Assistant Chief Executive (Excl SIU),1358.00,Bereavement Expenses,2223P11_CR00527,97325
Sandwell Metropolitan Borough Council,http://www.sandwell.gov.uk/info/200202/performance_and_spending/1079/payments_over_500,15-Feb-2023,FINANCE (Inc SIU),SMART INSOLVENCY SOLUTIONS LTD,Assistant Chief Executive (Excl SIU),951.28,Externally Purchased Professional Services ,2223P11_CR00528,131213
Sandwell Metropolitan Borough Council,http://www.sandwell.gov.uk/info/200202/performance_and_spending/1079/payments_over_500,01-Feb-2023,FINANCE (Inc SIU),THE OYSTER PARTNERSHIP LTD,Assistant Chief Executive (Excl SIU),1043.20,Agency Staff,2223P11_CR00529,148917
Sandwell Metropolitan Borough Council,http://www.sandwell.gov.uk/info/200202/performance_and_spending/1079/payments_over_500,01-Feb-2023,FINANCE (Inc SIU),THE OYSTER PARTNERSHIP LTD,Assistant Chief Executive (Excl SIU),1044.55,Agency Staff,2223P11_CR00530,148917
Sandwell Metropolitan Borough Council,http://www.sandwell.gov.uk/info/200202/performance_and_spending/1079/payments_over_500,01-Feb-2023,FINANCE (Inc SIU),THE OYSTER PARTNERSHIP LTD,Assistant Chief Executive (Excl SIU),1049.05,Agency Staff,2223P11_CR00531,148917
Sandwell Metropolitan Borough Council,http://www.sandwell.gov.uk/info/200202/performance_and_spending/1079/payments_over_500,15-Feb-2023,FINANCE (Inc SIU),THE OYSTER PARTNERSHIP LTD,Assistant Chief Executive (Excl SIU),1049.95,Agency Staff,2223P11_CR00532,148917
Sandwell Metropolitan Borough Council,http://www.sandwell.gov.uk/info/200202/performance_and_spending/1079/payments_over_500,01-Feb-2023,FINANCE (Inc SIU),THE OYSTER PARTNERSHIP LTD,Assistant Chief Executive (Excl SIU),1665.00,Agency Staff,2223P11_CR00533,148917
Sandwell Metropolitan Borough Council,http://www.sandwell.gov.uk/info/200202/performance_and_spending/1079/payments_over_500,01-Feb-2023,FINANCE (Inc SIU),THE OYSTER PARTNERSHIP LTD,Assistant Chief Executive (Excl SIU),1665.00,Agency Staff,2223P11_CR00534,148917
Sandwell Metropolitan Borough Council,http://www.sandwell.gov.uk/info/200202/performance_and_spending/1079/payments_over_500,01-Feb-2023,FINANCE (Inc SIU),THE OYSTER PARTNERSHIP LTD,Assistant Chief Executive (Excl SIU),1665.00,Agency Staff,2223P11_CR00535,148917
Sandwell Metropolitan Borough Council,http://www.sandwell.gov.uk/info/200202/performance_and_spending/1079/payments_over_500,15-Feb-2023,FINANCE (Inc SIU),THE OYSTER PARTNERSHIP LTD,Assistant Chief Executive (Excl SIU),1665.00,Agency Staff,2223P11_CR00536,148917
Sandwell Metropolitan Borough Council,http://www.sandwell.gov.uk/info/200202/performance_and_spending/1079/payments_over_500,01-Feb-2023,FINANCE (Inc SIU),TOTAL SUPPORT RECRUITMENT LTD,Assistant Chief Executive (Excl SIU),900.88,Agency Staff,2223P11_CR00537,162092
Sandwell Metropolitan Borough Council,http://www.sandwell.gov.uk/info/200202/performance_and_spending/1079/payments_over_500,15-Feb-2023,FINANCE (Inc SIU),TOTAL SUPPORT RECRUITMENT LTD,Assistant Chief Executive (Excl SIU),900.88,Agency Staff,2223P11_CR00538,162092
Sandwell Metropolitan Borough Council,http://www.sandwell.gov.uk/info/200202/performance_and_spending/1079/payments_over_500,01-Feb-2023,FINANCE (Inc SIU),TOTAL SUPPORT RECRUITMENT LTD,Assistant Chief Executive (Excl SIU),908.31,Agency Staff,2223P11_CR00539,162092
Sandwell Metropolitan Borough Council,http://www.sandwell.gov.uk/info/200202/performance_and_spending/1079/payments_over_500,01-Feb-2023,FINANCE (Inc SIU),TOTAL SUPPORT RECRUITMENT LTD,Assistant Chief Executive (Excl SIU),908.80,Agency Staff,2223P11_CR00540,162092
Sandwell Metropolitan Borough Council,http://www.sandwell.gov.uk/info/200202/performance_and_spending/1079/payments_over_500,01-Feb-2023,FINANCE (Inc SIU),TRH WALSALL LTD,Childrens Services,1166.76,Rents,2223P11_CR00541,85648
Sandwell Metropolitan Borough Council,http://www.sandwell.gov.uk/info/200202/performance_and_spending/1079/payments_over_500,02-Feb-2023,FINANCE (Inc SIU),VENN GROUP LTD,Assistant Chief Executive (Excl SIU),604.50,Agency Staff,2223P11_CR00542,49728
Sandwell Metropolitan Borough Council,http://www.sandwell.gov.uk/info/200202/performance_and_spending/1079/payments_over_500,02-Feb-2023,FINANCE (Inc SIU),VENN GROUP LTD,Assistant Chief Executive (Excl SIU),672.20,Agency Staff,2223P11_CR00543,49728
Sandwell Metropolitan Borough Council,http://www.sandwell.gov.uk/info/200202/performance_and_spending/1079/payments_over_500,02-Feb-2023,FINANCE (Inc SIU),VENN GROUP LTD,Assistant Chief Executive (Excl SIU),677.66,Agency Staff,2223P11_CR00544,49728
Sandwell Metropolitan Borough Council,http://www.sandwell.gov.uk/info/200202/performance_and_spending/1079/payments_over_500,01-Feb-2023,FINANCE (Inc SIU),VENN GROUP LTD,Assistant Chief Executive (Excl SIU),690.00,Agency Staff,2223P11_CR00545,49728
Sandwell Metropolitan Borough Council,http://www.sandwell.gov.uk/info/200202/performance_and_spending/1079/payments_over_500,02-Feb-2023,FINANCE (Inc SIU),VENN GROUP LTD,Assistant Chief Executive (Excl SIU),721.50,Agency Staff,2223P11_CR00546,49728
Sandwell Metropolitan Borough Council,http://www.sandwell.gov.uk/info/200202/performance_and_spending/1079/payments_over_500,01-Feb-2023,FINANCE (Inc SIU),VENN GROUP LTD,Assistant Chief Executive (Excl SIU),724.82,Agency Staff,2223P11_CR00547,49728
Sandwell Metropolitan Borough Council,http://www.sandwell.gov.uk/info/200202/performance_and_spending/1079/payments_over_500,01-Feb-2023,FINANCE (Inc SIU),VENN GROUP LTD,Assistant Chief Executive (Excl SIU),735.00,Agency Staff,2223P11_CR00548,49728
Sandwell Metropolitan Borough Council,http://www.sandwell.gov.uk/info/200202/performance_and_spending/1079/payments_over_500,02-Feb-2023,FINANCE (Inc SIU),VENN GROUP LTD,Assistant Chief Executive (Excl SIU),741.00,Agency Staff,2223P11_CR00549,49728
Sandwell Metropolitan Borough Council,http://www.sandwell.gov.uk/info/200202/performance_and_spending/1079/payments_over_500,01-Feb-2023,FINANCE (Inc SIU),VENN GROUP LTD,Assistant Chief Executive (Excl SIU),741.00,Agency Staff,2223P11_CR00550,49728
Sandwell Metropolitan Borough Council,http://www.sandwell.gov.uk/info/200202/performance_and_spending/1079/payments_over_500,02-Feb-2023,FINANCE (Inc SIU),VENN GROUP LTD,Assistant Chief Executive (Excl SIU),741.84,Agency Staff,2223P11_CR00551,49728
Sandwell Metropolitan Borough Council,http://www.sandwell.gov.uk/info/200202/performance_and_spending/1079/payments_over_500,01-Feb-2023,FINANCE (Inc SIU),VENN GROUP LTD,Assistant Chief Executive (Excl SIU),745.55,Agency Staff,2223P11_CR00552,49728
Sandwell Metropolitan Borough Council,http://www.sandwell.gov.uk/info/200202/performance_and_spending/1079/payments_over_500,02-Feb-2023,FINANCE (Inc SIU),VENN GROUP LTD,Assistant Chief Executive (Excl SIU),745.55,Agency Staff,2223P11_CR00553,49728
Sandwell Metropolitan Borough Council,http://www.sandwell.gov.uk/info/200202/performance_and_spending/1079/payments_over_500,01-Feb-2023,FINANCE (Inc SIU),VENN GROUP LTD,Assistant Chief Executive (Excl SIU),745.55,Agency Staff,2223P11_CR00554,49728
Sandwell Metropolitan Borough Council,http://www.sandwell.gov.uk/info/200202/performance_and_spending/1079/payments_over_500,01-Feb-2023,FINANCE (Inc SIU),VENN GROUP LTD,Assistant Chief Executive (Excl SIU),750.00,Agency Staff,2223P11_CR00555,49728
Sandwell Metropolitan Borough Council,http://www.sandwell.gov.uk/info/200202/performance_and_spending/1079/payments_over_500,02-Feb-2023,FINANCE (Inc SIU),VENN GROUP LTD,Assistant Chief Executive (Excl SIU),765.00,Agency Staff,2223P11_CR00556,49728
Sandwell Metropolitan Borough Council,http://www.sandwell.gov.uk/info/200202/performance_and_spending/1079/payments_over_500,01-Feb-2023,FINANCE (Inc SIU),VENN GROUP LTD,Assistant Chief Executive (Excl SIU),770.10,Agency Staff,2223P11_CR00557,49728
Sandwell Metropolitan Borough Council,http://www.sandwell.gov.uk/info/200202/performance_and_spending/1079/payments_over_500,02-Feb-2023,FINANCE (Inc SIU),VENN GROUP LTD,Assistant Chief Executive (Excl SIU),770.25,Agency Staff,2223P11_CR00558,49728
Sandwell Metropolitan Borough Council,http://www.sandwell.gov.uk/info/200202/performance_and_spending/1079/payments_over_500,02-Feb-2023,FINANCE (Inc SIU),VENN GROUP LTD,Assistant Chief Executive (Excl SIU),782.70,Agency Staff,2223P11_CR00559,49728
Sandwell Metropolitan Borough Council,http://www.sandwell.gov.uk/info/200202/performance_and_spending/1079/payments_over_500,01-Feb-2023,FINANCE (Inc SIU),VENN GROUP LTD,Assistant Chief Executive (Excl SIU),801.79,Agency Staff,2223P11_CR00560,49728
Sandwell Metropolitan Borough Council,http://www.sandwell.gov.uk/info/200202/performance_and_spending/1079/payments_over_500,02-Feb-2023,FINANCE (Inc SIU),VENN GROUP LTD,Assistant Chief Executive (Excl SIU),801.79,Agency Staff,2223P11_CR00561,49728
Sandwell Metropolitan Borough Council,http://www.sandwell.gov.uk/info/200202/performance_and_spending/1079/payments_over_500,02-Feb-2023,FINANCE (Inc SIU),VENN GROUP LTD,Assistant Chief Executive (Excl SIU),801.79,Agency Staff,2223P11_CR00562,49728
Sandwell Metropolitan Borough Council,http://www.sandwell.gov.uk/info/200202/performance_and_spending/1079/payments_over_500,01-Feb-2023,FINANCE (Inc SIU),VENN GROUP LTD,Assistant Chief Executive (Excl SIU),801.79,Agency Staff,2223P11_CR00563,49728
Sandwell Metropolitan Borough Council,http://www.sandwell.gov.uk/info/200202/performance_and_spending/1079/payments_over_500,01-Feb-2023,FINANCE (Inc SIU),VENN GROUP LTD,Assistant Chief Executive (Excl SIU),808.82,Agency Staff,2223P11_CR00564,49728
Sandwell Metropolitan Borough Council,http://www.sandwell.gov.uk/info/200202/performance_and_spending/1079/payments_over_500,02-Feb-2023,FINANCE (Inc SIU),VENN GROUP LTD,Assistant Chief Executive (Excl SIU),808.82,Agency Staff,2223P11_CR00565,49728
Sandwell Metropolitan Borough Council,http://www.sandwell.gov.uk/info/200202/performance_and_spending/1079/payments_over_500,02-Feb-2023,FINANCE (Inc SIU),VENN GROUP LTD,Assistant Chief Executive (Excl SIU),808.82,Agency Staff,2223P11_CR00566,49728
Sandwell Metropolitan Borough Council,http://www.sandwell.gov.uk/info/200202/performance_and_spending/1079/payments_over_500,01-Feb-2023,FINANCE (Inc SIU),VENN GROUP LTD,Assistant Chief Executive (Excl SIU),808.82,Agency Staff,2223P11_CR00567,49728
Sandwell Metropolitan Borough Council,http://www.sandwell.gov.uk/info/200202/performance_and_spending/1079/payments_over_500,01-Feb-2023,FINANCE (Inc SIU),VENN GROUP LTD,Assistant Chief Executive (Excl SIU),828.75,Agency Staff,2223P11_CR00568,49728
Sandwell Metropolitan Borough Council,http://www.sandwell.gov.uk/info/200202/performance_and_spending/1079/payments_over_500,01-Feb-2023,FINANCE (Inc SIU),VENN GROUP LTD,Assistant Chief Executive (Excl SIU),828.75,Agency Staff,2223P11_CR00569,49728
Sandwell Metropolitan Borough Council,http://www.sandwell.gov.uk/info/200202/performance_and_spending/1079/payments_over_500,01-Feb-2023,FINANCE (Inc SIU),VENN GROUP LTD,Assistant Chief Executive (Excl SIU),830.65,Agency Staff,2223P11_CR00570,49728
Sandwell Metropolitan Borough Council,http://www.sandwell.gov.uk/info/200202/performance_and_spending/1079/payments_over_500,02-Feb-2023,FINANCE (Inc SIU),VENN GROUP LTD,Assistant Chief Executive (Excl SIU),830.65,Agency Staff,2223P11_CR00571,49728
Sandwell Metropolitan Borough Council,http://www.sandwell.gov.uk/info/200202/performance_and_spending/1079/payments_over_500,02-Feb-2023,FINANCE (Inc SIU),VENN GROUP LTD,Assistant Chief Executive (Excl SIU),830.65,Agency Staff,2223P11_CR00572,49728
Sandwell Metropolitan Borough Council,http://www.sandwell.gov.uk/info/200202/performance_and_spending/1079/payments_over_500,01-Feb-2023,FINANCE (Inc SIU),VENN GROUP LTD,Assistant Chief Executive (Excl SIU),847.08,Agency Staff,2223P11_CR00573,49728
Sandwell Metropolitan Borough Council,http://www.sandwell.gov.uk/info/200202/performance_and_spending/1079/payments_over_500,01-Feb-2023,FINANCE (Inc SIU),VENN GROUP LTD,Assistant Chief Executive (Excl SIU),847.08,Agency Staff,2223P11_CR00574,49728
Sandwell Metropolitan Borough Council,http://www.sandwell.gov.uk/info/200202/performance_and_spending/1079/payments_over_500,02-Feb-2023,FINANCE (Inc SIU),VENN GROUP LTD,Assistant Chief Executive (Excl SIU),894.38,Agency Staff,2223P11_CR00575,49728
Sandwell Metropolitan Borough Council,http://www.sandwell.gov.uk/info/200202/performance_and_spending/1079/payments_over_500,02-Feb-2023,FINANCE (Inc SIU),VENN GROUP LTD,Assistant Chief Executive (Excl SIU),913.92,Agency Staff,2223P11_CR00576,49728
Sandwell Metropolitan Borough Council,http://www.sandwell.gov.uk/info/200202/performance_and_spending/1079/payments_over_500,01-Feb-2023,FINANCE (Inc SIU),VENN GROUP LTD,Assistant Chief Executive (Excl SIU),950.90,Agency Staff,2223P11_CR00577,49728
Sandwell Metropolitan Borough Council,http://www.sandwell.gov.uk/info/200202/performance_and_spending/1079/payments_over_500,02-Feb-2023,FINANCE (Inc SIU),VENN GROUP LTD,Assistant Chief Executive (Excl SIU),950.90,Agency Staff,2223P11_CR00578,49728
Sandwell Metropolitan Borough Council,http://www.sandwell.gov.uk/info/200202/performance_and_spending/1079/payments_over_500,02-Feb-2023,FINANCE (Inc SIU),VENN GROUP LTD,Assistant Chief Executive (Excl SIU),950.90,Agency Staff,2223P11_CR00579,49728
Sandwell Metropolitan Borough Council,http://www.sandwell.gov.uk/info/200202/performance_and_spending/1079/payments_over_500,01-Feb-2023,FINANCE (Inc SIU),VENN GROUP LTD,Assistant Chief Executive (Excl SIU),950.90,Agency Staff,2223P11_CR00580,49728
Sandwell Metropolitan Borough Council,http://www.sandwell.gov.uk/info/200202/performance_and_spending/1079/payments_over_500,02-Feb-2023,FINANCE (Inc SIU),VENN GROUP LTD,Assistant Chief Executive (Excl SIU),961.88,Agency Staff,2223P11_CR00581,49728
Sandwell Metropolitan Borough Council,http://www.sandwell.gov.uk/info/200202/performance_and_spending/1079/payments_over_500,02-Feb-2023,FINANCE (Inc SIU),VENN GROUP LTD,Assistant Chief Executive (Excl SIU),972.56,Agency Staff,2223P11_CR00582,49728
Sandwell Metropolitan Borough Council,http://www.sandwell.gov.uk/info/200202/performance_and_spending/1079/payments_over_500,01-Feb-2023,FINANCE (Inc SIU),VENN GROUP LTD,Assistant Chief Executive (Excl SIU),995.63,Agency Staff,2223P11_CR00583,49728
Sandwell Metropolitan Borough Council,http://www.sandwell.gov.uk/info/200202/performance_and_spending/1079/payments_over_500,01-Feb-2023,FINANCE (Inc SIU),VENN GROUP LTD,Assistant Chief Executive (Excl SIU),1043.03,Agency Staff,2223P11_CR00584,49728
Sandwell Metropolitan Borough Council,http://www.sandwell.gov.uk/info/200202/performance_and_spending/1079/payments_over_500,02-Feb-2023,FINANCE (Inc SIU),VENN GROUP LTD,Assistant Chief Executive (Excl SIU),1043.03,Agency Staff,2223P11_CR00585,49728
Sandwell Metropolitan Borough Council,http://www.sandwell.gov.uk/info/200202/performance_and_spending/1079/payments_over_500,01-Feb-2023,FINANCE (Inc SIU),VENN GROUP LTD,Assistant Chief Executive (Excl SIU),1043.03,Agency Staff,2223P11_CR00586,49728
Sandwell Metropolitan Borough Council,http://www.sandwell.gov.uk/info/200202/performance_and_spending/1079/payments_over_500,01-Feb-2023,FINANCE (Inc SIU),VENN GROUP LTD,Assistant Chief Executive (Excl SIU),1164.38,Agency Staff,2223P11_CR00587,49728
Sandwell Metropolitan Borough Council,http://www.sandwell.gov.uk/info/200202/performance_and_spending/1079/payments_over_500,01-Feb-2023,FINANCE (Inc SIU),VENN GROUP LTD,Assistant Chief Executive (Excl SIU),1200.00,Agency Staff,2223P11_CR00588,49728
Sandwell Metropolitan Borough Council,http://www.sandwell.gov.uk/info/200202/performance_and_spending/1079/payments_over_500,01-Feb-2023,FINANCE (Inc SIU),VENN GROUP LTD,Assistant Chief Executive (Excl SIU),1200.00,Agency Staff,2223P11_CR00589,49728
Sandwell Metropolitan Borough Council,http://www.sandwell.gov.uk/info/200202/performance_and_spending/1079/payments_over_500,02-Feb-2023,FINANCE (Inc SIU),VENN GROUP LTD,Assistant Chief Executive (Excl SIU),1200.00,Agency Staff,2223P11_CR00590,49728
Sandwell Metropolitan Borough Council,http://www.sandwell.gov.uk/info/200202/performance_and_spending/1079/payments_over_500,02-Feb-2023,FINANCE (Inc SIU),VENN GROUP LTD,Assistant Chief Executive (Excl SIU),1200.00,Agency Staff,2223P11_CR00591,49728
Sandwell Metropolitan Borough Council,http://www.sandwell.gov.uk/info/200202/performance_and_spending/1079/payments_over_500,02-Feb-2023,FINANCE (Inc SIU),VENN GROUP LTD,Assistant Chief Executive (Excl SIU),1200.00,Agency Staff,2223P11_CR00592,49728
Sandwell Metropolitan Borough Council,http://www.sandwell.gov.uk/info/200202/performance_and_spending/1079/payments_over_500,02-Feb-2023,FINANCE (Inc SIU),VENN GROUP LTD,Assistant Chief Executive (Excl SIU),1200.00,Agency Staff,2223P11_CR00593,49728
Sandwell Metropolitan Borough Council,http://www.sandwell.gov.uk/info/200202/performance_and_spending/1079/payments_over_500,01-Feb-2023,FINANCE (Inc SIU),VENN GROUP LTD,Assistant Chief Executive (Excl SIU),1200.00,Agency Staff,2223P11_CR00594,49728
Sandwell Metropolitan Borough Council,http://www.sandwell.gov.uk/info/200202/performance_and_spending/1079/payments_over_500,01-Feb-2023,FINANCE (Inc SIU),VENN GROUP LTD,Assistant Chief Executive (Excl SIU),1200.00,Agency Staff,2223P11_CR00595,49728
Sandwell Metropolitan Borough Council,http://www.sandwell.gov.uk/info/200202/performance_and_spending/1079/payments_over_500,01-Feb-2023,FINANCE (Inc SIU),VENN GROUP LTD,Assistant Chief Executive (Excl SIU),1211.75,Agency Staff,2223P11_CR00596,49728
Sandwell Metropolitan Borough Council,http://www.sandwell.gov.uk/info/200202/performance_and_spending/1079/payments_over_500,02-Feb-2023,FINANCE (Inc SIU),VENN GROUP LTD,Assistant Chief Executive (Excl SIU),1211.75,Agency Staff,2223P11_CR00597,49728
Sandwell Metropolitan Borough Council,http://www.sandwell.gov.uk/info/200202/performance_and_spending/1079/payments_over_500,01-Feb-2023,FINANCE (Inc SIU),VENN GROUP LTD,Assistant Chief Executive (Excl SIU),1276.00,Agency Staff,2223P11_CR00598,49728
Sandwell Metropolitan Borough Council,http://www.sandwell.gov.uk/info/200202/performance_and_spending/1079/payments_over_500,01-Feb-2023,FINANCE (Inc SIU),VENN GROUP LTD,Assistant Chief Executive (Excl SIU),1305.36,Agency Staff,2223P11_CR00599,49728
Sandwell Metropolitan Borough Council,http://www.sandwell.gov.uk/info/200202/performance_and_spending/1079/payments_over_500,02-Feb-2023,FINANCE (Inc SIU),VENN GROUP LTD,Assistant Chief Executive (Excl SIU),1305.36,Agency Staff,2223P11_CR00600,49728
Sandwell Metropolitan Borough Council,http://www.sandwell.gov.uk/info/200202/performance_and_spending/1079/payments_over_500,02-Feb-2023,FINANCE (Inc SIU),VENN GROUP LTD,Assistant Chief Executive (Excl SIU),1305.36,Agency Staff,2223P11_CR00601,49728
Sandwell Metropolitan Borough Council,http://www.sandwell.gov.uk/info/200202/performance_and_spending/1079/payments_over_500,01-Feb-2023,FINANCE (Inc SIU),VENN GROUP LTD,Assistant Chief Executive (Excl SIU),1305.36,Agency Staff,2223P11_CR00602,49728
Sandwell Metropolitan Borough Council,http://www.sandwell.gov.uk/info/200202/performance_and_spending/1079/payments_over_500,02-Feb-2023,FINANCE (Inc SIU),VENN GROUP LTD,Assistant Chief Executive (Excl SIU),1426.56,Agency Staff,2223P11_CR00603,49728
Sandwell Metropolitan Borough Council,http://www.sandwell.gov.uk/info/200202/performance_and_spending/1079/payments_over_500,01-Feb-2023,FINANCE (Inc SIU),VENN GROUP LTD,Assistant Chief Executive (Excl SIU),1434.61,Agency Staff,2223P11_CR00604,49728
Sandwell Metropolitan Borough Council,http://www.sandwell.gov.uk/info/200202/performance_and_spending/1079/payments_over_500,01-Feb-2023,FINANCE (Inc SIU),VENN GROUP LTD,Assistant Chief Executive (Excl SIU),1441.09,Agency Staff,2223P11_CR00605,49728
Sandwell Metropolitan Borough Council,http://www.sandwell.gov.uk/info/200202/performance_and_spending/1079/payments_over_500,01-Feb-2023,FINANCE (Inc SIU),VENN GROUP LTD,Assistant Chief Executive (Excl SIU),1449.32,Agency Staff,2223P11_CR00606,49728
Sandwell Metropolitan Borough Council,http://www.sandwell.gov.uk/info/200202/performance_and_spending/1079/payments_over_500,01-Feb-2023,FINANCE (Inc SIU),VENN GROUP LTD,Assistant Chief Executive (Excl SIU),1500.00,Agency Staff,2223P11_CR00607,49728
Sandwell Metropolitan Borough Council,http://www.sandwell.gov.uk/info/200202/performance_and_spending/1079/payments_over_500,02-Feb-2023,FINANCE (Inc SIU),VENN GROUP LTD,Assistant Chief Executive (Excl SIU),1631.85,Agency Staff,2223P11_CR00608,49728
Sandwell Metropolitan Borough Council,http://www.sandwell.gov.uk/info/200202/performance_and_spending/1079/payments_over_500,02-Feb-2023,FINANCE (Inc SIU),VENN GROUP LTD,Assistant Chief Executive (Excl SIU),1773.75,Agency Staff,2223P11_CR00609,49728
Sandwell Metropolitan Borough Council,http://www.sandwell.gov.uk/info/200202/performance_and_spending/1079/payments_over_500,01-Feb-2023,FINANCE (Inc SIU),VENN GROUP LTD,Assistant Chief Executive (Excl SIU),1773.75,Agency Staff,2223P11_CR00610,49728
Sandwell Metropolitan Borough Council,http://www.sandwell.gov.uk/info/200202/performance_and_spending/1079/payments_over_500,02-Feb-2023,FINANCE (Inc SIU),VENN GROUP LTD,Assistant Chief Executive (Excl SIU),1802.00,Agency Staff,2223P11_CR00611,49728
Sandwell Metropolitan Borough Council,http://www.sandwell.gov.uk/info/200202/performance_and_spending/1079/payments_over_500,02-Feb-2023,FINANCE (Inc SIU),VENN GROUP LTD,Assistant Chief Executive (Excl SIU),1816.47,Agency Staff,2223P11_CR00612,49728
Sandwell Metropolitan Borough Council,http://www.sandwell.gov.uk/info/200202/performance_and_spending/1079/payments_over_500,01-Feb-2023,FINANCE (Inc SIU),VENN GROUP LTD,Assistant Chief Executive (Excl SIU),1855.00,Agency Staff,2223P11_CR00613,49728
Sandwell Metropolitan Borough Council,http://www.sandwell.gov.uk/info/200202/performance_and_spending/1079/payments_over_500,02-Feb-2023,FINANCE (Inc SIU),VENN GROUP LTD,Assistant Chief Executive (Excl SIU),1855.00,Agency Staff,2223P11_CR00614,49728
Sandwell Metropolitan Borough Council,http://www.sandwell.gov.uk/info/200202/performance_and_spending/1079/payments_over_500,01-Feb-2023,FINANCE (Inc SIU),VENN GROUP LTD,Assistant Chief Executive (Excl SIU),1855.00,Agency Staff,2223P11_CR00615,49728
Sandwell Metropolitan Borough Council,http://www.sandwell.gov.uk/info/200202/performance_and_spending/1079/payments_over_500,01-Feb-2023,FINANCE (Inc SIU),VENN GROUP LTD,Assistant Chief Executive (Excl SIU),1967.60,Agency Staff,2223P11_CR00616,49728
Sandwell Metropolitan Borough Council,http://www.sandwell.gov.uk/info/200202/performance_and_spending/1079/payments_over_500,02-Feb-2023,FINANCE (Inc SIU),VENN GROUP LTD,Assistant Chief Executive (Excl SIU),1967.60,Agency Staff,2223P11_CR00617,49728
Sandwell Metropolitan Borough Council,http://www.sandwell.gov.uk/info/200202/performance_and_spending/1079/payments_over_500,02-Feb-2023,FINANCE (Inc SIU),VENN GROUP LTD,Assistant Chief Executive (Excl SIU),1967.60,Agency Staff,2223P11_CR00618,49728
Sandwell Metropolitan Borough Council,http://www.sandwell.gov.uk/info/200202/performance_and_spending/1079/payments_over_500,01-Feb-2023,FINANCE (Inc SIU),VENN GROUP LTD,Assistant Chief Executive (Excl SIU),1967.60,Agency Staff,2223P11_CR00619,49728
Sandwell Metropolitan Borough Council,http://www.sandwell.gov.uk/info/200202/performance_and_spending/1079/payments_over_500,02-Feb-2023,FINANCE (Inc SIU),VENN GROUP LTD,Assistant Chief Executive (Excl SIU),2250.00,Agency Staff,2223P11_CR00620,49728
Sandwell Metropolitan Borough Council,http://www.sandwell.gov.uk/info/200202/performance_and_spending/1079/payments_over_500,02-Feb-2023,FINANCE (Inc SIU),VENN GROUP LTD,Assistant Chief Executive (Excl SIU),2375.00,Agency Staff,2223P11_CR00621,49728
Sandwell Metropolitan Borough Council,http://www.sandwell.gov.uk/info/200202/performance_and_spending/1079/payments_over_500,02-Feb-2023,FINANCE (Inc SIU),VENN GROUP LTD,Assistant Chief Executive (Excl SIU),2421.96,Agency Staff,2223P11_CR00622,49728
Sandwell Metropolitan Borough Council,http://www.sandwell.gov.uk/info/200202/performance_and_spending/1079/payments_over_500,01-Feb-2023,FINANCE (Inc SIU),VENN GROUP LTD,Assistant Chief Executive (Excl SIU),2500.00,Agency Staff,2223P11_CR00623,49728
Sandwell Metropolitan Borough Council,http://www.sandwell.gov.uk/info/200202/performance_and_spending/1079/payments_over_500,01-Feb-2023,FINANCE (Inc SIU),VENN GROUP LTD,Assistant Chief Executive (Excl SIU),2525.04,Agency Staff,2223P11_CR00624,49728
Sandwell Metropolitan Borough Council,http://www.sandwell.gov.uk/info/200202/performance_and_spending/1079/payments_over_500,02-Feb-2023,FINANCE (Inc SIU),VENN GROUP LTD,Assistant Chief Executive (Excl SIU),2544.36,Agency Staff,2223P11_CR00625,49728
Sandwell Metropolitan Borough Council,http://www.sandwell.gov.uk/info/200202/performance_and_spending/1079/payments_over_500,02-Feb-2023,FINANCE (Inc SIU),VENN GROUP LTD,Assistant Chief Executive (Excl SIU),2555.22,Agency Staff,2223P11_CR00626,49728
Sandwell Metropolitan Borough Council,http://www.sandwell.gov.uk/info/200202/performance_and_spending/1079/payments_over_500,01-Feb-2023,FINANCE (Inc SIU),VENN GROUP LTD,Assistant Chief Executive (Excl SIU),2724.71,Agency Staff,2223P11_CR00627,49728
Sandwell Metropolitan Borough Council,http://www.sandwell.gov.uk/info/200202/performance_and_spending/1079/payments_over_500,01-Feb-2023,FINANCE (Inc SIU),VENN GROUP LTD,Assistant Chief Executive (Excl SIU),3027.45,Agency Staff,2223P11_CR00628,49728
Sandwell Metropolitan Borough Council,http://www.sandwell.gov.uk/info/200202/performance_and_spending/1079/payments_over_500,01-Feb-2023,FINANCE (Inc SIU),VENN GROUP LTD,Assistant Chief Executive (Excl SIU),3228.73,Agency Staff,2223P11_CR00629,49728
Sandwell Metropolitan Borough Council,http://www.sandwell.gov.uk/info/200202/performance_and_spending/1079/payments_over_500,01-Feb-2023,FINANCE (Inc SIU),VIVID RESOURCING,Assistant Chief Executive (Excl SIU),1687.50,Agency Staff,2223P11_CR00630,150562
Sandwell Metropolitan Borough Council,http://www.sandwell.gov.uk/info/200202/performance_and_spending/1079/payments_over_500,01-Feb-2023,FINANCE (Inc SIU),VIVID RESOURCING,Assistant Chief Executive (Excl SIU),1687.50,Agency Staff,2223P11_CR00631,150562
Sandwell Metropolitan Borough Council,http://www.sandwell.gov.uk/info/200202/performance_and_spending/1079/payments_over_500,15-Feb-2023,FINANCE (Inc SIU),VIVID RESOURCING,Assistant Chief Executive (Excl SIU),1687.50,Agency Staff,2223P11_CR00632,150562
Sandwell Metropolitan Borough Council,http://www.sandwell.gov.uk/info/200202/performance_and_spending/1079/payments_over_500,01-Feb-2023,FINANCE (Inc SIU),VIVID RESOURCING,Assistant Chief Executive (Excl SIU),1687.50,Agency Staff,2223P11_CR00633,150562
Sandwell Metropolitan Borough Council,http://www.sandwell.gov.uk/info/200202/performance_and_spending/1079/payments_over_500,01-Feb-2023,FINANCE (Inc SIU),WOLVERHAMPTON CC COMP,Assistant Chief Executive (Excl SIU),157875.00,Pensions,2223P11_CR00634,120965
Sandwell Metropolitan Borough Council,http://www.sandwell.gov.uk/info/200202/performance_and_spending/1079/payments_over_500,07-Feb-2023,FINANCE (Inc SIU),REDACTED PERSONAL DATA,Assistant Chief Executive (Excl SIU),500.00,Grant Payments,2223P11_CR00635,REDACTED PERSONAL DATA
Sandwell Metropolitan Borough Council,http://www.sandwell.gov.uk/info/200202/performance_and_spending/1079/payments_over_500,01-Feb-2023,FINANCE (Inc SIU),DOCTOR TAMAS G MARTON,Assistant Chief Executive (Excl SIU),595.90,Bereavement Expenses,2223P11_CR00636,8169
Sandwell Metropolitan Borough Council,http://www.sandwell.gov.uk/info/200202/performance_and_spending/1079/payments_over_500,01-Feb-2023,FINANCE (Inc SIU),DOCTOR TAMAS G MARTON,Assistant Chief Executive (Excl SIU),595.90,Bereavement Expenses,2223P11_CR00637,8169
Sandwell Metropolitan Borough Council,http://www.sandwell.gov.uk/info/200202/performance_and_spending/1079/payments_over_500,01-Feb-2023,FINANCE (Inc SIU),DOCTOR TAMAS G MARTON,Assistant Chief Executive (Excl SIU),595.90,Bereavement Expenses,2223P11_CR00638,8169
Sandwell Metropolitan Borough Council,http://www.sandwell.gov.uk/info/200202/performance_and_spending/1079/payments_over_500,14-Feb-2023,FINANCE (Inc SIU),DOCTOR TAMAS G MARTON,Assistant Chief Executive (Excl SIU),595.90,Bereavement Expenses,2223P11_CR00639,8169
Sandwell Metropolitan Borough Council,http://www.sandwell.gov.uk/info/200202/performance_and_spending/1079/payments_over_500,01-Feb-2023,FINANCE (Inc SIU),DOCTOR TAMAS G MARTON,Assistant Chief Executive (Excl SIU),595.90,Bereavement Expenses,2223P11_CR00640,8169
Sandwell Metropolitan Borough Council,http://www.sandwell.gov.uk/info/200202/performance_and_spending/1079/payments_over_500,01-Feb-2023,FINANCE (Inc SIU),DR MANEL MANGALIKA,Assistant Chief Executive (Excl SIU),1404.40,Bereavement Expenses,2223P11_CR00641,149491
Sandwell Metropolitan Borough Council,http://www.sandwell.gov.uk/info/200202/performance_and_spending/1079/payments_over_500,01-Feb-2023,FINANCE (Inc SIU),DR SMITA DESHPANDE,Assistant Chief Executive (Excl SIU),3707.00,Bereavement Expenses,2223P11_CR00642,149599
Sandwell Metropolitan Borough Council,http://www.sandwell.gov.uk/info/200202/performance_and_spending/1079/payments_over_500,01-Feb-2023,FINANCE (Inc SIU),DR SMITA DESHPANDE,Assistant Chief Executive (Excl SIU),4765.30,Bereavement Expenses,2223P11_CR00643,149599
Sandwell Metropolitan Borough Council,http://www.sandwell.gov.uk/info/200202/performance_and_spending/1079/payments_over_500,01-Feb-2023,FINANCE (Inc SIU),DR SWAPNA GHOSH,Assistant Chief Executive (Excl SIU),1565.20,Bereavement Expenses,2223P11_CR00644,149696
Sandwell Metropolitan Borough Council,http://www.sandwell.gov.uk/info/200202/performance_and_spending/1079/payments_over_500,13-Feb-2023,FINANCE (Inc SIU),ABBEY INFANT SCHOOL   ,Assistant Chief Executive (Excl SIU),690.00,Schools Support Services,2223P11_CR00645,60959
Sandwell Metropolitan Borough Council,http://www.sandwell.gov.uk/info/200202/performance_and_spending/1079/payments_over_500,13-Feb-2023,FINANCE (Inc SIU),ABBEY JUNIOR SCHOOL   ,Assistant Chief Executive (Excl SIU),1320.00,Schools Support Services,2223P11_CR00646,60961
Sandwell Metropolitan Borough Council,http://www.sandwell.gov.uk/info/200202/performance_and_spending/1079/payments_over_500,13-Feb-2023,FINANCE (Inc SIU),ALBERT PRITCHARD INFANT SCHOOL             ,Assistant Chief Executive (Excl SIU),1065.00,Schools Support Services,2223P11_CR00647,60962
Sandwell Metropolitan Borough Council,http://www.sandwell.gov.uk/info/200202/performance_and_spending/1079/payments_over_500,07-Feb-2023,FINANCE (Inc SIU),ALBRIGHT EDUCATION CENTRE,Assistant Chief Executive (Excl SIU),2639.17,Grant Payments,2223P11_CR00648,151478
Sandwell Metropolitan Borough Council,http://www.sandwell.gov.uk/info/200202/performance_and_spending/1079/payments_over_500,13-Feb-2023,FINANCE (Inc SIU),ALL SAINTS CE PRIMARY SCHOOL      ,Assistant Chief Executive (Excl SIU),1530.00,Schools Support Services,2223P11_CR00649,60964
Sandwell Metropolitan Borough Council,http://www.sandwell.gov.uk/info/200202/performance_and_spending/1079/payments_over_500,13-Feb-2023,FINANCE (Inc SIU),ANNIE LENNARD INFANT SCHOOL,Assistant Chief Executive (Excl SIU),1080.00,Schools Support Services,2223P11_CR00650,60966
Sandwell Metropolitan Borough Council,http://www.sandwell.gov.uk/info/200202/performance_and_spending/1079/payments_over_500,13-Feb-2023,FINANCE (Inc SIU),BEARWOOD PRIMARY SCHOOL    ,Assistant Chief Executive (Excl SIU),2325.00,Schools Support Services,2223P11_CR00651,60967
Sandwell Metropolitan Borough Council,http://www.sandwell.gov.uk/info/200202/performance_and_spending/1079/payments_over_500,13-Feb-2023,FINANCE (Inc SIU),BLACKHEATH PRIMARY SCHOOL ,Assistant Chief Executive (Excl SIU),2595.00,Schools Support Services,2223P11_CR00652,60968
Sandwell Metropolitan Borough Council,http://www.sandwell.gov.uk/info/200202/performance_and_spending/1079/payments_over_500,13-Feb-2023,FINANCE (Inc SIU),BLEAKHOUSE PRIMARY SCHOOL.,Assistant Chief Executive (Excl SIU),1605.00,Schools Support Services,2223P11_CR00653,60969
Sandwell Metropolitan Borough Council,http://www.sandwell.gov.uk/info/200202/performance_and_spending/1079/payments_over_500,13-Feb-2023,FINANCE (Inc SIU),BRANDHALL PRIMARY SCHOOL      ,Assistant Chief Executive (Excl SIU),2670.00,Schools Support Services,2223P11_CR00654,60971
Sandwell Metropolitan Borough Council,http://www.sandwell.gov.uk/info/200202/performance_and_spending/1079/payments_over_500,13-Feb-2023,FINANCE (Inc SIU),BRICKHOUSE PRIMARY SCHOOL         ,Assistant Chief Executive (Excl SIU),1350.00,Schools Support Services,2223P11_CR00655,60973
Sandwell Metropolitan Borough Council,http://www.sandwell.gov.uk/info/200202/performance_and_spending/1079/payments_over_500,13-Feb-2023,FINANCE (Inc SIU),BRISTNALL HALL ACADEMY,Assistant Chief Executive (Excl SIU),5265.00,Grant Payments,2223P11_CR00656,107471
Sandwell Metropolitan Borough Council,http://www.sandwell.gov.uk/info/200202/performance_and_spending/1079/payments_over_500,13-Feb-2023,FINANCE (Inc SIU),BURNT TREE PRIMARY SCHOOL       ,Assistant Chief Executive (Excl SIU),2265.00,Schools Support Services,2223P11_CR00657,60974
Sandwell Metropolitan Borough Council,http://www.sandwell.gov.uk/info/200202/performance_and_spending/1079/payments_over_500,13-Feb-2023,FINANCE (Inc SIU),CAPE PRIMARY SCHOOL,Assistant Chief Executive (Excl SIU),3345.00,Schools Support Services,2223P11_CR00658,01672537
Sandwell Metropolitan Borough Council,http://www.sandwell.gov.uk/info/200202/performance_and_spending/1079/payments_over_500,13-Feb-2023,FINANCE (Inc SIU),CAUSEWAY GREEN PRIMARY SCHOOL   ,Assistant Chief Executive (Excl SIU),1740.00,Schools Support Services,2223P11_CR00659,60976
Sandwell Metropolitan Borough Council,http://www.sandwell.gov.uk/info/200202/performance_and_spending/1079/payments_over_500,13-Feb-2023,FINANCE (Inc SIU),CHRIST CHURCH CE PRIMARY    ,Assistant Chief Executive (Excl SIU),1635.00,Schools Support Services,2223P11_CR00660,60978
Sandwell Metropolitan Borough Council,http://www.sandwell.gov.uk/info/200202/performance_and_spending/1079/payments_over_500,13-Feb-2023,FINANCE (Inc SIU),CORNGREAVES ACADEMY,Assistant Chief Executive (Excl SIU),870.00,Grant Payments,2223P11_CR00661,112862
Sandwell Metropolitan Borough Council,http://www.sandwell.gov.uk/info/200202/performance_and_spending/1079/payments_over_500,13-Feb-2023,FINANCE (Inc SIU),CROCKETTS LANE COMMUNITY PRIMARY SCHOOL  ,Assistant Chief Executive (Excl SIU),1950.00,Schools Support Services,2223P11_CR00662,60980
Sandwell Metropolitan Borough Council,http://www.sandwell.gov.uk/info/200202/performance_and_spending/1079/payments_over_500,13-Feb-2023,FINANCE (Inc SIU),DEVONSHIRE INFANTS ACADEMY,Assistant Chief Executive (Excl SIU),945.00,Grant Payments,2223P11_CR00663,118366
Sandwell Metropolitan Borough Council,http://www.sandwell.gov.uk/info/200202/performance_and_spending/1079/payments_over_500,13-Feb-2023,FINANCE (Inc SIU),DEVONSHIRE JUNIOR ACADEMY,Assistant Chief Executive (Excl SIU),1455.00,Grant Payments,2223P11_CR00664,118367
Sandwell Metropolitan Borough Council,http://www.sandwell.gov.uk/info/200202/performance_and_spending/1079/payments_over_500,13-Feb-2023,FINANCE (Inc SIU),EATON VALLEY PRIMARY SCHOOL,Assistant Chief Executive (Excl SIU),1815.00,Schools Support Services,2223P11_CR00665,60981
Sandwell Metropolitan Borough Council,http://www.sandwell.gov.uk/info/200202/performance_and_spending/1079/payments_over_500,07-Feb-2023,FINANCE (Inc SIU),ELM TREE PRIMARY ACADEMY,Assistant Chief Executive (Excl SIU),950.10,Grant Payments,2223P11_CR00666,164361
Sandwell Metropolitan Borough Council,http://www.sandwell.gov.uk/info/200202/performance_and_spending/1079/payments_over_500,13-Feb-2023,FINANCE (Inc SIU),FERNDALE PRIMARY SCHOOL       ,Assistant Chief Executive (Excl SIU),2445.00,Schools Support Services,2223P11_CR00667,60987
Sandwell Metropolitan Borough Council,http://www.sandwell.gov.uk/info/200202/performance_and_spending/1079/payments_over_500,13-Feb-2023,FINANCE (Inc SIU),GALTON VALLEY PRIMARY SCHOOL    ,Assistant Chief Executive (Excl SIU),2130.00,Schools Support Services,2223P11_CR00668,73124
Sandwell Metropolitan Borough Council,http://www.sandwell.gov.uk/info/200202/performance_and_spending/1079/payments_over_500,13-Feb-2023,FINANCE (Inc SIU),GEORGE BETTS PRIMARY ACADEMY,Assistant Chief Executive (Excl SIU),2235.00,Grant Payments,2223P11_CR00669,113420
Sandwell Metropolitan Borough Council,http://www.sandwell.gov.uk/info/200202/performance_and_spending/1079/payments_over_500,13-Feb-2023,FINANCE (Inc SIU),GEORGE SALTER COLLEGIATE ACADEMY ORMISTON ACADEMIES TRUST,Assistant Chief Executive (Excl SIU),6420.00,Grant Payments,2223P11_CR00670,01217798
Sandwell Metropolitan Borough Council,http://www.sandwell.gov.uk/info/200202/performance_and_spending/1079/payments_over_500,13-Feb-2023,FINANCE (Inc SIU),GLEBEFIELDS PRIMARY SCHOOL    ,Assistant Chief Executive (Excl SIU),2910.00,Schools Support Services,2223P11_CR00671,60989
Sandwell Metropolitan Borough Council,http://www.sandwell.gov.uk/info/200202/performance_and_spending/1079/payments_over_500,13-Feb-2023,FINANCE (Inc SIU),GOSPEL OAK SCHOOL,Assistant Chief Executive (Excl SIU),6240.00,Grant Payments,2223P11_CR00672,60952
Sandwell Metropolitan Borough Council,http://www.sandwell.gov.uk/info/200202/performance_and_spending/1079/payments_over_500,13-Feb-2023,FINANCE (Inc SIU),GRACE MARY PRIMARY SCHOOL   ,Assistant Chief Executive (Excl SIU),1260.00,Schools Support Services,2223P11_CR00673,60991
Sandwell Metropolitan Borough Council,http://www.sandwell.gov.uk/info/200202/performance_and_spending/1079/payments_over_500,13-Feb-2023,FINANCE (Inc SIU),GREAT BRIDGE PRIMARY SCHOOL    ,Assistant Chief Executive (Excl SIU),2175.00,Schools Support Services,2223P11_CR00674,42484
Sandwell Metropolitan Borough Council,http://www.sandwell.gov.uk/info/200202/performance_and_spending/1079/payments_over_500,13-Feb-2023,FINANCE (Inc SIU),GROVE VALE PRIMARY SCHOOL,Assistant Chief Executive (Excl SIU),690.00,Schools Support Services,2223P11_CR00675,60993
Sandwell Metropolitan Borough Council,http://www.sandwell.gov.uk/info/200202/performance_and_spending/1079/payments_over_500,13-Feb-2023,FINANCE (Inc SIU),HALL GREEN PRIMARY SCHOOL           ,Assistant Chief Executive (Excl SIU),2505.00,Schools Support Services,2223P11_CR00676,60996
Sandwell Metropolitan Borough Council,http://www.sandwell.gov.uk/info/200202/performance_and_spending/1079/payments_over_500,13-Feb-2023,FINANCE (Inc SIU),HAMSTEAD INFANT SCHOOL     ,Assistant Chief Executive (Excl SIU),585.00,Schools Support Services,2223P11_CR00677,60997
Sandwell Metropolitan Borough Council,http://www.sandwell.gov.uk/info/200202/performance_and_spending/1079/payments_over_500,13-Feb-2023,FINANCE (Inc SIU),HAMSTEAD JUNIOR SCHOOL       ,Assistant Chief Executive (Excl SIU),1125.00,Schools Support Services,2223P11_CR00678,60998
Sandwell Metropolitan Borough Council,http://www.sandwell.gov.uk/info/200202/performance_and_spending/1079/payments_over_500,13-Feb-2023,FINANCE (Inc SIU),HANBURY PRIMARY SCHOOL         ,Assistant Chief Executive (Excl SIU),2055.00,Schools Support Services,2223P11_CR00679,60995
Sandwell Metropolitan Borough Council,http://www.sandwell.gov.uk/info/200202/performance_and_spending/1079/payments_over_500,13-Feb-2023,FINANCE (Inc SIU),HARGATE PRIMARY SCHOOL         ,Assistant Chief Executive (Excl SIU),2130.00,Schools Support Services,2223P11_CR00680,60999
Sandwell Metropolitan Borough Council,http://www.sandwell.gov.uk/info/200202/performance_and_spending/1079/payments_over_500,13-Feb-2023,FINANCE (Inc SIU),HARTSHORNE MOTOR SERVICES LTD       ,Assistant Chief Executive (Excl SIU),1845.00,Schools Support Services,2223P11_CR00681,01782074
Sandwell Metropolitan Borough Council,http://www.sandwell.gov.uk/info/200202/performance_and_spending/1079/payments_over_500,13-Feb-2023,FINANCE (Inc SIU),HATELEY HEATH PRIMARY ACADEMY    ,Assistant Chief Executive (Excl SIU),2415.00,Grant Payments,2223P11_CR00682,61000
Sandwell Metropolitan Borough Council,http://www.sandwell.gov.uk/info/200202/performance_and_spending/1079/payments_over_500,07-Feb-2023,FINANCE (Inc SIU),HIGH POINT ACADEMY,Assistant Chief Executive (Excl SIU),2639.17,Grant Payments,2223P11_CR00683,152394
Sandwell Metropolitan Borough Council,http://www.sandwell.gov.uk/info/200202/performance_and_spending/1079/payments_over_500,13-Feb-2023,FINANCE (Inc SIU),HIGHFIELDS PRIMARY SCHOOL    ,Assistant Chief Executive (Excl SIU),2040.00,Schools Support Services,2223P11_CR00684,01782118
Sandwell Metropolitan Borough Council,http://www.sandwell.gov.uk/info/200202/performance_and_spending/1079/payments_over_500,13-Feb-2023,FINANCE (Inc SIU),HOLLY LODGE FOUNDATION HIGH SCHOOL,Assistant Chief Executive (Excl SIU),8010.00,Schools Support Services,2223P11_CR00685,60942
Sandwell Metropolitan Borough Council,http://www.sandwell.gov.uk/info/200202/performance_and_spending/1079/payments_over_500,13-Feb-2023,FINANCE (Inc SIU),HOLY NAME CATHOLIC PRIMARY,Assistant Chief Executive (Excl SIU),630.00,Schools Support Services,2223P11_CR00686,92683
Sandwell Metropolitan Borough Council,http://www.sandwell.gov.uk/info/200202/performance_and_spending/1079/payments_over_500,13-Feb-2023,FINANCE (Inc SIU),HOLY TRINITY CE PRIMARY               ,Assistant Chief Executive (Excl SIU),2205.00,Schools Support Services,2223P11_CR00687,61004
Sandwell Metropolitan Borough Council,http://www.sandwell.gov.uk/info/200202/performance_and_spending/1079/payments_over_500,13-Feb-2023,FINANCE (Inc SIU),HOLYHEAD PRIMARY ACADEMY     ,Assistant Chief Executive (Excl SIU),1245.00,Grant Payments,2223P11_CR00688,61005
Sandwell Metropolitan Borough Council,http://www.sandwell.gov.uk/info/200202/performance_and_spending/1079/payments_over_500,13-Feb-2023,FINANCE (Inc SIU),JOSEPH TURNER PRIMARY SCHOOL    ,Assistant Chief Executive (Excl SIU),2835.00,Schools Support Services,2223P11_CR00689,61006
Sandwell Metropolitan Borough Council,http://www.sandwell.gov.uk/info/200202/performance_and_spending/1079/payments_over_500,13-Feb-2023,FINANCE (Inc SIU),JUBILEE PARK ACADEMY TRUST,Assistant Chief Executive (Excl SIU),1650.00,Grant Payments,2223P11_CR00690,113377
Sandwell Metropolitan Borough Council,http://www.sandwell.gov.uk/info/200202/performance_and_spending/1079/payments_over_500,13-Feb-2023,FINANCE (Inc SIU),KING GEORGE V PRIMARY SCHOOL             ,Assistant Chief Executive (Excl SIU),1335.00,Schools Support Services,2223P11_CR00691,61009
Sandwell Metropolitan Borough Council,http://www.sandwell.gov.uk/info/200202/performance_and_spending/1079/payments_over_500,13-Feb-2023,FINANCE (Inc SIU),LANGLEY PRIMARY SCHOOL      ,Assistant Chief Executive (Excl SIU),2385.00,Schools Support Services,2223P11_CR00692,61011
Sandwell Metropolitan Borough Council,http://www.sandwell.gov.uk/info/200202/performance_and_spending/1079/payments_over_500,13-Feb-2023,FINANCE (Inc SIU),LIGHTWOODS PRIMARY ACADEMY .,Assistant Chief Executive (Excl SIU),825.00,Grant Payments,2223P11_CR00693,61012
Sandwell Metropolitan Borough Council,http://www.sandwell.gov.uk/info/200202/performance_and_spending/1079/payments_over_500,13-Feb-2023,FINANCE (Inc SIU),LODGE PRIMARY SCHOOL      ,Assistant Chief Executive (Excl SIU),2205.00,Schools Support Services,2223P11_CR00694,61015
Sandwell Metropolitan Borough Council,http://www.sandwell.gov.uk/info/200202/performance_and_spending/1079/payments_over_500,13-Feb-2023,FINANCE (Inc SIU),LYNG PRIMARY SCHOOL   ,Assistant Chief Executive (Excl SIU),2025.00,Schools Support Services,2223P11_CR00695,61026
Sandwell Metropolitan Borough Council,http://www.sandwell.gov.uk/info/200202/performance_and_spending/1079/payments_over_500,07-Feb-2023,FINANCE (Inc SIU),MEADOWS SCHOOL,Assistant Chief Executive (Excl SIU),11348.44,Grant Payments,2223P11_CR00696,60955
Sandwell Metropolitan Borough Council,http://www.sandwell.gov.uk/info/200202/performance_and_spending/1079/payments_over_500,13-Feb-2023,FINANCE (Inc SIU),MEADOWS SCHOOL,Assistant Chief Executive (Excl SIU),1680.00,Schools Support Services,2223P11_CR00697,60955
Sandwell Metropolitan Borough Council,http://www.sandwell.gov.uk/info/200202/performance_and_spending/1079/payments_over_500,13-Feb-2023,FINANCE (Inc SIU),MESTY CROFT ACADEMY,Assistant Chief Executive (Excl SIU),2280.00,Grant Payments,2223P11_CR00698,106208
Sandwell Metropolitan Borough Council,http://www.sandwell.gov.uk/info/200202/performance_and_spending/1079/payments_over_500,13-Feb-2023,FINANCE (Inc SIU),MOAT FARM INFANTS SCHOOL    ,Assistant Chief Executive (Excl SIU),1620.00,Schools Support Services,2223P11_CR00699,61031
Sandwell Metropolitan Borough Council,http://www.sandwell.gov.uk/info/200202/performance_and_spending/1079/payments_over_500,13-Feb-2023,FINANCE (Inc SIU),MOAT FARM JUNIOR SCHOOL    ,Assistant Chief Executive (Excl SIU),2220.00,Grant Payments,2223P11_CR00700,61032
Sandwell Metropolitan Borough Council,http://www.sandwell.gov.uk/info/200202/performance_and_spending/1079/payments_over_500,13-Feb-2023,FINANCE (Inc SIU),MOORLANDS PRIMARY SCHOOL    ,Assistant Chief Executive (Excl SIU),1170.00,Schools Support Services,2223P11_CR00701,04036544
Sandwell Metropolitan Borough Council,http://www.sandwell.gov.uk/info/200202/performance_and_spending/1079/payments_over_500,13-Feb-2023,FINANCE (Inc SIU),NEWTOWN PRIMARY ACADEMY       ,Assistant Chief Executive (Excl SIU),1485.00,Grant Payments,2223P11_CR00702,61034
Sandwell Metropolitan Borough Council,http://www.sandwell.gov.uk/info/200202/performance_and_spending/1079/payments_over_500,13-Feb-2023,FINANCE (Inc SIU),OAKHAM PRIMARY SCHOOL       ,Assistant Chief Executive (Excl SIU),1410.00,Schools Support Services,2223P11_CR00703,61035
Sandwell Metropolitan Borough Council,http://www.sandwell.gov.uk/info/200202/performance_and_spending/1079/payments_over_500,13-Feb-2023,FINANCE (Inc SIU),OCKER HILL ACADEMY,Assistant Chief Executive (Excl SIU),1365.00,Grant Payments,2223P11_CR00704,113691
Sandwell Metropolitan Borough Council,http://www.sandwell.gov.uk/info/200202/performance_and_spending/1079/payments_over_500,13-Feb-2023,FINANCE (Inc SIU),OCKER HILL INFANT SCHOOL         ,Assistant Chief Executive (Excl SIU),870.00,Schools Support Services,2223P11_CR00705,61036
Sandwell Metropolitan Borough Council,http://www.sandwell.gov.uk/info/200202/performance_and_spending/1079/payments_over_500,13-Feb-2023,FINANCE (Inc SIU),OLD HILL PRIMARY SCHOOL      ,Assistant Chief Executive (Excl SIU),1230.00,Schools Support Services,2223P11_CR00706,61038
Sandwell Metropolitan Borough Council,http://www.sandwell.gov.uk/info/200202/performance_and_spending/1079/payments_over_500,13-Feb-2023,FINANCE (Inc SIU),OLD PARK PRIMARY SCHOOL               ,Assistant Chief Executive (Excl SIU),1560.00,Schools Support Services,2223P11_CR00707,61039
Sandwell Metropolitan Borough Council,http://www.sandwell.gov.uk/info/200202/performance_and_spending/1079/payments_over_500,13-Feb-2023,FINANCE (Inc SIU),OLDBURY ACADEMY,Assistant Chief Executive (Excl SIU),9150.00,Grant Payments,2223P11_CR00708,69241
Sandwell Metropolitan Borough Council,http://www.sandwell.gov.uk/info/200202/performance_and_spending/1079/payments_over_500,07-Feb-2023,FINANCE (Inc SIU),ORCHARD SCHOOL    ,Assistant Chief Executive (Excl SIU),7759.17,Grant Payments,2223P11_CR00709,60956
Sandwell Metropolitan Borough Council,http://www.sandwell.gov.uk/info/200202/performance_and_spending/1079/payments_over_500,13-Feb-2023,FINANCE (Inc SIU),ORCHARD SCHOOL    ,Assistant Chief Executive (Excl SIU),1035.00,Schools Support Services,2223P11_CR00710,60956
Sandwell Metropolitan Borough Council,http://www.sandwell.gov.uk/info/200202/performance_and_spending/1079/payments_over_500,13-Feb-2023,FINANCE (Inc SIU),ORMISTON FORGE ACADEMY,Assistant Chief Executive (Excl SIU),7875.00,Grant Payments,2223P11_CR00711,60941
Sandwell Metropolitan Borough Council,http://www.sandwell.gov.uk/info/200202/performance_and_spending/1079/payments_over_500,13-Feb-2023,FINANCE (Inc SIU),ORMISTON SANDWELL COMMUNITY ACADEMY   ,Assistant Chief Executive (Excl SIU),5205.00,Grant Payments,2223P11_CR00712,60950
Sandwell Metropolitan Borough Council,http://www.sandwell.gov.uk/info/200202/performance_and_spending/1079/payments_over_500,13-Feb-2023,FINANCE (Inc SIU),OUR LADY AND ST HUBERTS CATHOLIC PRIMARY SCHOOL  ,Assistant Chief Executive (Excl SIU),1065.00,Grant Payments,2223P11_CR00713,61053
Sandwell Metropolitan Borough Council,http://www.sandwell.gov.uk/info/200202/performance_and_spending/1079/payments_over_500,13-Feb-2023,FINANCE (Inc SIU),PARK HILL PRIMARY SCHOOL         ,Assistant Chief Executive (Excl SIU),915.00,Schools Support Services,2223P11_CR00714,61040
Sandwell Metropolitan Borough Council,http://www.sandwell.gov.uk/info/200202/performance_and_spending/1079/payments_over_500,13-Feb-2023,FINANCE (Inc SIU),PENNYHILL PRIMARY,Assistant Chief Executive (Excl SIU),4110.00,Schools Support Services,2223P11_CR00715,73125
Sandwell Metropolitan Borough Council,http://www.sandwell.gov.uk/info/200202/performance_and_spending/1079/payments_over_500,13-Feb-2023,FINANCE (Inc SIU),PERRYFIELDS HIGH SCHOOL       ,Assistant Chief Executive (Excl SIU),3870.00,Grant Payments,2223P11_CR00716,60946
Sandwell Metropolitan Borough Council,http://www.sandwell.gov.uk/info/200202/performance_and_spending/1079/payments_over_500,13-Feb-2023,FINANCE (Inc SIU),PERRYFIELDS PRIMARY SCHOOL    ,Assistant Chief Executive (Excl SIU),1365.00,Schools Support Services,2223P11_CR00717,61042
Sandwell Metropolitan Borough Council,http://www.sandwell.gov.uk/info/200202/performance_and_spending/1079/payments_over_500,13-Feb-2023,FINANCE (Inc SIU),PHOENIX COLLEGIATE COLLEGE,Assistant Chief Executive (Excl SIU),10425.00,Schools Support Services,2223P11_CR00718,95444
Sandwell Metropolitan Borough Council,http://www.sandwell.gov.uk/info/200202/performance_and_spending/1079/payments_over_500,13-Feb-2023,FINANCE (Inc SIU),Q3 ACADEMY LANGLEY,Assistant Chief Executive (Excl SIU),4965.00,Grant Payments,2223P11_CR00719,128009
Sandwell Metropolitan Borough Council,http://www.sandwell.gov.uk/info/200202/performance_and_spending/1079/payments_over_500,13-Feb-2023,FINANCE (Inc SIU),Q3 ACADEMY TIPTON - THE MERCIAN TRUST,Assistant Chief Executive (Excl SIU),8730.00,Grant Payments,2223P11_CR00720,112047
Sandwell Metropolitan Borough Council,http://www.sandwell.gov.uk/info/200202/performance_and_spending/1079/payments_over_500,13-Feb-2023,FINANCE (Inc SIU),QUAERERE ACADEMY TRUST                  ,Assistant Chief Executive (Excl SIU),3210.00,Grant Payments,2223P11_CR00721,60939
Sandwell Metropolitan Borough Council,http://www.sandwell.gov.uk/info/200202/performance_and_spending/1079/payments_over_500,13-Feb-2023,FINANCE (Inc SIU),REDDAL HILL PRIMARY SCHOOL   ,Assistant Chief Executive (Excl SIU),2265.00,Schools Support Services,2223P11_CR00722,61043
Sandwell Metropolitan Borough Council,http://www.sandwell.gov.uk/info/200202/performance_and_spending/1079/payments_over_500,13-Feb-2023,FINANCE (Inc SIU),ROOD END PRIMARY SCHOOL             ,Assistant Chief Executive (Excl SIU),2955.00,Schools Support Services,2223P11_CR00723,61044
Sandwell Metropolitan Borough Council,http://www.sandwell.gov.uk/info/200202/performance_and_spending/1079/payments_over_500,13-Feb-2023,FINANCE (Inc SIU),ROUNDS GREEN PRIMARY ACADEMY   ,Assistant Chief Executive (Excl SIU),1920.00,Grant Payments,2223P11_CR00724,61045
Sandwell Metropolitan Borough Council,http://www.sandwell.gov.uk/info/200202/performance_and_spending/1079/payments_over_500,13-Feb-2023,FINANCE (Inc SIU),ROWLEY HALL PRIMARY SCHOOL     ,Assistant Chief Executive (Excl SIU),3465.00,Schools Support Services,2223P11_CR00725,61046
Sandwell Metropolitan Borough Council,http://www.sandwell.gov.uk/info/200202/performance_and_spending/1079/payments_over_500,13-Feb-2023,FINANCE (Inc SIU),RYDERS GREEN PRIMARY SCHOOL   ,Assistant Chief Executive (Excl SIU),1830.00,Schools Support Services,2223P11_CR00726,61047
Sandwell Metropolitan Borough Council,http://www.sandwell.gov.uk/info/200202/performance_and_spending/1079/payments_over_500,13-Feb-2023,FINANCE (Inc SIU),SACRED HEART PRIMARY SCHOOL            ,Assistant Chief Executive (Excl SIU),2565.00,Schools Support Services,2223P11_CR00727,61048
Sandwell Metropolitan Borough Council,http://www.sandwell.gov.uk/info/200202/performance_and_spending/1079/payments_over_500,13-Feb-2023,FINANCE (Inc SIU),SANDWELL ACADEMY TRUST LTD.,Assistant Chief Executive (Excl SIU),4155.00,Grant Payments,2223P11_CR00728,126137
Sandwell Metropolitan Borough Council,http://www.sandwell.gov.uk/info/200202/performance_and_spending/1079/payments_over_500,13-Feb-2023,FINANCE (Inc SIU),SHENSTONE LODGE SCHOOL             ,Assistant Chief Executive (Excl SIU),1170.00,Grant Payments,2223P11_CR00729,22995
Sandwell Metropolitan Borough Council,http://www.sandwell.gov.uk/info/200202/performance_and_spending/1079/payments_over_500,07-Feb-2023,FINANCE (Inc SIU),SHENSTONE LODGE SCHOOL             ,Assistant Chief Executive (Excl SIU),5014.43,Grant Payments,2223P11_CR00730,22995
Sandwell Metropolitan Borough Council,http://www.sandwell.gov.uk/info/200202/performance_and_spending/1079/payments_over_500,13-Feb-2023,FINANCE (Inc SIU),SHIRELAND BIOMEDICAL UTC,Assistant Chief Executive (Excl SIU),1200.00,Grant Payments,2223P11_CR00731,128174
Sandwell Metropolitan Borough Council,http://www.sandwell.gov.uk/info/200202/performance_and_spending/1079/payments_over_500,13-Feb-2023,FINANCE (Inc SIU),SHIRELAND COLLEGIATE ACADEMY              ,Assistant Chief Executive (Excl SIU),8325.00,Grant Payments,2223P11_CR00732,60947
Sandwell Metropolitan Borough Council,http://www.sandwell.gov.uk/info/200202/performance_and_spending/1079/payments_over_500,13-Feb-2023,FINANCE (Inc SIU),SHIRELAND COLLEGIATE ACADEMY TRUST T/A TAMESIDE,Assistant Chief Executive (Excl SIU),3720.00,Grant Payments,2223P11_CR00733,61064
Sandwell Metropolitan Borough Council,http://www.sandwell.gov.uk/info/200202/performance_and_spending/1079/payments_over_500,13-Feb-2023,FINANCE (Inc SIU),SHIRELAND HALL PRIMARY ACADEMY,Assistant Chief Executive (Excl SIU),2775.00,Grant Payments,2223P11_CR00734,15209
Sandwell Metropolitan Borough Council,http://www.sandwell.gov.uk/info/200202/performance_and_spending/1079/payments_over_500,13-Feb-2023,FINANCE (Inc SIU),SHIRELAND TECHNOLOGY PRIMARY SCHOOL,Assistant Chief Executive (Excl SIU),1200.00,Grant Payments,2223P11_CR00735,148598
Sandwell Metropolitan Borough Council,http://www.sandwell.gov.uk/info/200202/performance_and_spending/1079/payments_over_500,13-Feb-2023,FINANCE (Inc SIU),SILVERTREES ACADEMY TRUST,Assistant Chief Executive (Excl SIU),1305.00,Grant Payments,2223P11_CR00736,113719
Sandwell Metropolitan Borough Council,http://www.sandwell.gov.uk/info/200202/performance_and_spending/1079/payments_over_500,13-Feb-2023,FINANCE (Inc SIU),SPRINGFIELD PRIMARY SCHOOL                   ,Assistant Chief Executive (Excl SIU),2250.00,Schools Support Services,2223P11_CR00737,61050
Sandwell Metropolitan Borough Council,http://www.sandwell.gov.uk/info/200202/performance_and_spending/1079/payments_over_500,13-Feb-2023,FINANCE (Inc SIU),ST CATHERINE OF SIENA MULTI ACADEMY COMPANY     ,Assistant Chief Executive (Excl SIU),765.00,Grant Payments,2223P11_CR00738,61052
Sandwell Metropolitan Borough Council,http://www.sandwell.gov.uk/info/200202/performance_and_spending/1079/payments_over_500,13-Feb-2023,FINANCE (Inc SIU),ST FRANCIS XAVIER CATHOLIC PRIMARY,Assistant Chief Executive (Excl SIU),645.00,Grant Payments,2223P11_CR00739,61051
Sandwell Metropolitan Borough Council,http://www.sandwell.gov.uk/info/200202/performance_and_spending/1079/payments_over_500,13-Feb-2023,FINANCE (Inc SIU),ST JAMES C OF E PRIMARY SCHOOL,Assistant Chief Executive (Excl SIU),2970.00,Schools Support Services,2223P11_CR00740,61054
Sandwell Metropolitan Borough Council,http://www.sandwell.gov.uk/info/200202/performance_and_spending/1079/payments_over_500,13-Feb-2023,FINANCE (Inc SIU),ST JOHN BOSCO RC PRIMARY SCHOOL        ,Assistant Chief Executive (Excl SIU),705.00,Grant Payments,2223P11_CR00741,61055
Sandwell Metropolitan Borough Council,http://www.sandwell.gov.uk/info/200202/performance_and_spending/1079/payments_over_500,13-Feb-2023,FINANCE (Inc SIU),ST JOHNS C OF E PRIMARY ACADEMY,Assistant Chief Executive (Excl SIU),1170.00,Grant Payments,2223P11_CR00742,61056
Sandwell Metropolitan Borough Council,http://www.sandwell.gov.uk/info/200202/performance_and_spending/1079/payments_over_500,13-Feb-2023,FINANCE (Inc SIU),ST MARTINS CE PRIMARY SCHOOL,Assistant Chief Executive (Excl SIU),660.00,Schools Support Services,2223P11_CR00743,61058
Sandwell Metropolitan Borough Council,http://www.sandwell.gov.uk/info/200202/performance_and_spending/1079/payments_over_500,13-Feb-2023,FINANCE (Inc SIU),ST MARY MAGDALENE CE PRIMARY SCHOOL      ,Assistant Chief Executive (Excl SIU),810.00,Schools Support Services,2223P11_CR00744,61059
Sandwell Metropolitan Borough Council,http://www.sandwell.gov.uk/info/200202/performance_and_spending/1079/payments_over_500,13-Feb-2023,FINANCE (Inc SIU),ST MARYS RC PRIMARY SCHOOL                 ,Assistant Chief Executive (Excl SIU),645.00,Grant Payments,2223P11_CR00745,61060
Sandwell Metropolitan Borough Council,http://www.sandwell.gov.uk/info/200202/performance_and_spending/1079/payments_over_500,13-Feb-2023,FINANCE (Inc SIU),ST MATTHEWS CE PRIMARY SCHOOL              ,Assistant Chief Executive (Excl SIU),2565.00,Schools Support Services,2223P11_CR00746,61061
Sandwell Metropolitan Borough Council,http://www.sandwell.gov.uk/info/200202/performance_and_spending/1079/payments_over_500,13-Feb-2023,FINANCE (Inc SIU),ST MICHAELS CE HIGH SCHOOL,Assistant Chief Executive (Excl SIU),6120.00,Schools Support Services,2223P11_CR00747,60948
Sandwell Metropolitan Borough Council,http://www.sandwell.gov.uk/info/200202/performance_and_spending/1079/payments_over_500,13-Feb-2023,FINANCE (Inc SIU),ST PAULS C OF E ACADEMY,Assistant Chief Executive (Excl SIU),855.00,Grant Payments,2223P11_CR00748,118126
Sandwell Metropolitan Borough Council,http://www.sandwell.gov.uk/info/200202/performance_and_spending/1079/payments_over_500,13-Feb-2023,FINANCE (Inc SIU),ST PHILIPS CATHOLIC PRIMARY     ,Assistant Chief Executive (Excl SIU),1335.00,Grant Payments,2223P11_CR00749,61063
Sandwell Metropolitan Borough Council,http://www.sandwell.gov.uk/info/200202/performance_and_spending/1079/payments_over_500,13-Feb-2023,FINANCE (Inc SIU),STUART BATHURST CATHOLIC HIGH SCHOOL    ,Assistant Chief Executive (Excl SIU),4515.00,Grant Payments,2223P11_CR00750,60949
Sandwell Metropolitan Borough Council,http://www.sandwell.gov.uk/info/200202/performance_and_spending/1079/payments_over_500,13-Feb-2023,FINANCE (Inc SIU),TEMPLE MEADOW PRIMARY SCHOOL    ,Assistant Chief Executive (Excl SIU),2175.00,Schools Support Services,2223P11_CR00751,61065
Sandwell Metropolitan Borough Council,http://www.sandwell.gov.uk/info/200202/performance_and_spending/1079/payments_over_500,13-Feb-2023,FINANCE (Inc SIU),THE PRIORY PRIMARY    ,Assistant Chief Executive (Excl SIU),3105.00,Schools Support Services,2223P11_CR00752,61066
Sandwell Metropolitan Borough Council,http://www.sandwell.gov.uk/info/200202/performance_and_spending/1079/payments_over_500,13-Feb-2023,FINANCE (Inc SIU),THE RIVERS MULTI ACADEMY TRUST,Assistant Chief Executive (Excl SIU),5415.00,Grant Payments,2223P11_CR00753,61014
